Body Name,Body,Date,Department,Beneficiary,Summary of Purpose (SerCOP),Amount,Merchant Code,Transaction Number,Supplier ID
Sandwell Metropolitan Borough Council,http://www.sandwell.gov.uk/info/200202/performance_and_spending/1079/payments_over_500,08-Oct-2021,Adult Social Care,WMCA OPERATIONS LTD,Adult Social Care,13629.00,Residential - Short Term,2122P07_CR00001,135917
Sandwell Metropolitan Borough Council,http://www.sandwell.gov.uk/info/200202/performance_and_spending/1079/payments_over_500,27-Oct-2021,Adult Social Care,DEPARTMENT OF HEALTH AND SOCIAL CARE (HGC),Adult Social Care,28689.00,Government Grants & Subsidies,2122P07_CR00002,151225
Sandwell Metropolitan Borough Council,http://www.sandwell.gov.uk/info/200202/performance_and_spending/1079/payments_over_500,01-Oct-2021,Adult Social Care,LIQUIDLOGIC LIMITED,Adult Social Care,9720.00,ICT ,2122P07_CR00003,83167
Sandwell Metropolitan Borough Council,http://www.sandwell.gov.uk/info/200202/performance_and_spending/1079/payments_over_500,01-Oct-2021,Adults Social Care Capital,DLM BUILDING & MAINTENANCE LTD,Adults Social Care Capital,5863.65,CIP - Infrastructure,2122P07_CR00004,137596
Sandwell Metropolitan Borough Council,http://www.sandwell.gov.uk/info/200202/performance_and_spending/1079/payments_over_500,04-Oct-2021,Adults Social Care Capital,LIFT & ENGINEERING SERVICES LTD,Adults Social Care Capital,5505.98,"CIP - New Construction,Conversion, Enhancement & Reno",2122P07_CR00005,77003962
Sandwell Metropolitan Borough Council,http://www.sandwell.gov.uk/info/200202/performance_and_spending/1079/payments_over_500,05-Oct-2021,Adults Social Care Capital,LIFT & ENGINEERING SERVICES LTD,Adults Social Care Capital,5595.33,"CIP - New Construction,Conversion, Enhancement & Reno",2122P07_CR00006,77003962
Sandwell Metropolitan Borough Council,http://www.sandwell.gov.uk/info/200202/performance_and_spending/1079/payments_over_500,12-Oct-2021,Adults Social Care Capital,WILLMOTT DIXON CONSTRUCTION LIMITED,Adults Social Care Capital,615224.77,"CIP - New Construction,Conversion, Enhancement & Reno",2122P07_CR00007,34081
Sandwell Metropolitan Borough Council,http://www.sandwell.gov.uk/info/200202/performance_and_spending/1079/payments_over_500,01-Oct-2021,Adults Social Care Capital,PR PROPERTY MAINTENANCE,Adults Social Care Capital,1650.00,Deferred Charges/Grant Payments,2122P07_CR00008,33836
Sandwell Metropolitan Borough Council,http://www.sandwell.gov.uk/info/200202/performance_and_spending/1079/payments_over_500,01-Oct-2021,Adults Social Care Capital,PR PROPERTY MAINTENANCE,Adults Social Care Capital,8264.86,Deferred Charges/Grant Payments,2122P07_CR00009,33836
Sandwell Metropolitan Borough Council,http://www.sandwell.gov.uk/info/200202/performance_and_spending/1079/payments_over_500,04-Oct-2021,Adults Social Care Capital,PR PROPERTY MAINTENANCE,Adults Social Care Capital,8321.00,Deferred Charges/Grant Payments,2122P07_CR00010,33836
Sandwell Metropolitan Borough Council,http://www.sandwell.gov.uk/info/200202/performance_and_spending/1079/payments_over_500,01-Oct-2021,Adults Social Care Capital,PR PROPERTY MAINTENANCE,Adults Social Care Capital,10288.68,Deferred Charges/Grant Payments,2122P07_CR00011,33836
Sandwell Metropolitan Borough Council,http://www.sandwell.gov.uk/info/200202/performance_and_spending/1079/payments_over_500,01-Oct-2021,Adults Social Care Capital,TERRY GROUP LIMITED,Adults Social Care Capital,10371.50,Deferred Charges/Grant Payments,2122P07_CR00012,77002029
Sandwell Metropolitan Borough Council,http://www.sandwell.gov.uk/info/200202/performance_and_spending/1079/payments_over_500,01-Oct-2021,Adults Social Care Capital,PR PROPERTY MAINTENANCE,Adults Social Care Capital,30106.57,Deferred Charges/Grant Payments,2122P07_CR00013,33836
Sandwell Metropolitan Borough Council,http://www.sandwell.gov.uk/info/200202/performance_and_spending/1079/payments_over_500,01-Oct-2021,Adults Social Care Capital,ECLIPSE ACCESS SOLUTIONS LTD,Adults Social Care Capital,3390.00,Externally Purchased Professional Services ,2122P07_CR00014,131248
Sandwell Metropolitan Borough Council,http://www.sandwell.gov.uk/info/200202/performance_and_spending/1079/payments_over_500,07-Oct-2021,Adults Social Care Capital,REDACTED PERSONAL DATA,Adults Social Care Capital,10000.00,Deferred Charges/Grant Payments,2122P07_CR00015,REDACTED PERSONAL DATA
Sandwell Metropolitan Borough Council,http://www.sandwell.gov.uk/info/200202/performance_and_spending/1079/payments_over_500,01-Oct-2021,Adults Social Care Capital,TDF DESIGN LIMITED,Adults Social Care Capital,10000.00,Deferred Charges/Grant Payments,2122P07_CR00016,10320
Sandwell Metropolitan Borough Council,http://www.sandwell.gov.uk/info/200202/performance_and_spending/1079/payments_over_500,05-Oct-2021,Adults Social Care Capital,MASTER DESIGN STUDIO,Adults Social Care Capital,12045.00,Deferred Charges/Grant Payments,2122P07_CR00017,118104
Sandwell Metropolitan Borough Council,http://www.sandwell.gov.uk/info/200202/performance_and_spending/1079/payments_over_500,26-Oct-2021,Adults Social Care Capital,TDF DESIGN LIMITED,Adults Social Care Capital,12250.00,Deferred Charges/Grant Payments,2122P07_CR00018,10320
Sandwell Metropolitan Borough Council,http://www.sandwell.gov.uk/info/200202/performance_and_spending/1079/payments_over_500,25-Oct-2021,Adults Social Care Capital,HOME DESIGN,Adults Social Care Capital,13500.00,Deferred Charges/Grant Payments,2122P07_CR00019,141847
Sandwell Metropolitan Borough Council,http://www.sandwell.gov.uk/info/200202/performance_and_spending/1079/payments_over_500,01-Oct-2021,Adults Social Care Capital,TDF DESIGN LIMITED,Adults Social Care Capital,14730.00,Deferred Charges/Grant Payments,2122P07_CR00020,10320
Sandwell Metropolitan Borough Council,http://www.sandwell.gov.uk/info/200202/performance_and_spending/1079/payments_over_500,06-Oct-2021,Childrens Services,REDACTED PERSONAL DATA,Childrens Services,550.00,Advertising & Publicity,2122P07_CR00021,REDACTED PERSONAL DATA
Sandwell Metropolitan Borough Council,http://www.sandwell.gov.uk/info/200202/performance_and_spending/1079/payments_over_500,01-Oct-2021,Childrens Services,BEST WEB JOBS LTD,Childrens Services,2000.00,Advertising & Publicity,2122P07_CR00022,125874
Sandwell Metropolitan Borough Council,http://www.sandwell.gov.uk/info/200202/performance_and_spending/1079/payments_over_500,20-Oct-2021,Childrens Services,NEWAVE LTD,Childrens Services,500.00,Agency Staff,2122P07_CR00023,101666
Sandwell Metropolitan Borough Council,http://www.sandwell.gov.uk/info/200202/performance_and_spending/1079/payments_over_500,01-Oct-2021,Childrens Services,NEWAVE LTD,Childrens Services,584.48,Agency Staff,2122P07_CR00024,101666
Sandwell Metropolitan Borough Council,http://www.sandwell.gov.uk/info/200202/performance_and_spending/1079/payments_over_500,06-Oct-2021,Childrens Services,NEWAVE LTD,Childrens Services,704.48,Agency Staff,2122P07_CR00025,101666
Sandwell Metropolitan Borough Council,http://www.sandwell.gov.uk/info/200202/performance_and_spending/1079/payments_over_500,01-Oct-2021,Childrens Services,NEWAVE LTD,Childrens Services,955.48,Agency Staff,2122P07_CR00026,101666
Sandwell Metropolitan Borough Council,http://www.sandwell.gov.uk/info/200202/performance_and_spending/1079/payments_over_500,01-Oct-2021,Childrens Services,NEWAVE LTD,Childrens Services,1330.48,Agency Staff,2122P07_CR00027,101666
Sandwell Metropolitan Borough Council,http://www.sandwell.gov.uk/info/200202/performance_and_spending/1079/payments_over_500,20-Oct-2021,Childrens Services,NEWAVE LTD,Childrens Services,1330.48,Agency Staff,2122P07_CR00028,101666
Sandwell Metropolitan Borough Council,http://www.sandwell.gov.uk/info/200202/performance_and_spending/1079/payments_over_500,01-Oct-2021,Childrens Services,NEWAVE LTD,Childrens Services,1484.48,Agency Staff,2122P07_CR00029,101666
Sandwell Metropolitan Borough Council,http://www.sandwell.gov.uk/info/200202/performance_and_spending/1079/payments_over_500,01-Oct-2021,Childrens Services,NEWAVE LTD,Childrens Services,4243.51,Agency Staff,2122P07_CR00030,101666
Sandwell Metropolitan Borough Council,http://www.sandwell.gov.uk/info/200202/performance_and_spending/1079/payments_over_500,01-Oct-2021,Childrens Services,BLAKEMORE FOOD SERVICE LTD,Childrens Services,536.14,Catering Provisions,2122P07_CR00031,2518
Sandwell Metropolitan Borough Council,http://www.sandwell.gov.uk/info/200202/performance_and_spending/1079/payments_over_500,01-Oct-2021,Childrens Services,BLAKEMORE FOOD SERVICE LTD,Childrens Services,594.36,Catering Provisions,2122P07_CR00032,2518
Sandwell Metropolitan Borough Council,http://www.sandwell.gov.uk/info/200202/performance_and_spending/1079/payments_over_500,01-Oct-2021,Childrens Services,BLAKEMORE FOOD SERVICE LTD,Childrens Services,659.15,Catering Provisions,2122P07_CR00033,2518
Sandwell Metropolitan Borough Council,http://www.sandwell.gov.uk/info/200202/performance_and_spending/1079/payments_over_500,04-Oct-2021,Childrens Services,IDEAL FOR ALL LIMITED,Childrens Services,674.00,Catering Provisions,2122P07_CR00034,01678484
Sandwell Metropolitan Borough Council,http://www.sandwell.gov.uk/info/200202/performance_and_spending/1079/payments_over_500,01-Oct-2021,Childrens Services,SIPS EDUCATION LTD,Childrens Services,2688.00,Catering Provisions,2122P07_CR00035,110784
Sandwell Metropolitan Borough Council,http://www.sandwell.gov.uk/info/200202/performance_and_spending/1079/payments_over_500,01-Oct-2021,Childrens Services,SIPS EDUCATION LTD,Childrens Services,2796.85,Catering Provisions,2122P07_CR00036,110784
Sandwell Metropolitan Borough Council,http://www.sandwell.gov.uk/info/200202/performance_and_spending/1079/payments_over_500,01-Oct-2021,Childrens Services,HAWK INCENTIVES LTD,Childrens Services,3000.00,Catering Provisions,2122P07_CR00037,148982
Sandwell Metropolitan Borough Council,http://www.sandwell.gov.uk/info/200202/performance_and_spending/1079/payments_over_500,01-Oct-2021,Childrens Services,SIPS EDUCATION LTD,Childrens Services,3392.40,Catering Provisions,2122P07_CR00038,110784
Sandwell Metropolitan Borough Council,http://www.sandwell.gov.uk/info/200202/performance_and_spending/1079/payments_over_500,01-Oct-2021,Childrens Services,SIPS EDUCATION LTD,Childrens Services,3568.80,Catering Provisions,2122P07_CR00039,110784
Sandwell Metropolitan Borough Council,http://www.sandwell.gov.uk/info/200202/performance_and_spending/1079/payments_over_500,01-Oct-2021,Childrens Services,SIPS EDUCATION LTD,Childrens Services,3932.50,Catering Provisions,2122P07_CR00040,110784
Sandwell Metropolitan Borough Council,http://www.sandwell.gov.uk/info/200202/performance_and_spending/1079/payments_over_500,01-Oct-2021,Childrens Services,ACTION FOR CHILDREN SERVICES LIMITED,Childrens Services,239858.04,Contract Payments,2122P07_CR00041,111189
Sandwell Metropolitan Borough Council,http://www.sandwell.gov.uk/info/200202/performance_and_spending/1079/payments_over_500,01-Oct-2021,Childrens Services,ACTION FOR CHILDREN SERVICES LIMITED,Childrens Services,303309.81,Contract Payments,2122P07_CR00042,111189
Sandwell Metropolitan Borough Council,http://www.sandwell.gov.uk/info/200202/performance_and_spending/1079/payments_over_500,11-Oct-2021,Childrens Services,LOCAL EDUCATION AND DEVELOPMENT,Childrens Services,1121.25,Discretionary Awards,2122P07_CR00043,148259
Sandwell Metropolitan Borough Council,http://www.sandwell.gov.uk/info/200202/performance_and_spending/1079/payments_over_500,12-Oct-2021,Childrens Services,TOPPS MANAGEMENT & SUPPORT SERVICES LTD,Childrens Services,2142.84,Discretionary Awards,2122P07_CR00044,68846
Sandwell Metropolitan Borough Council,http://www.sandwell.gov.uk/info/200202/performance_and_spending/1079/payments_over_500,09-Oct-2021,Childrens Services,TOTALENERGIES GAS & POWER LTD,Childrens Services,515.17,Electricity,2122P07_CR00045,107605
Sandwell Metropolitan Borough Council,http://www.sandwell.gov.uk/info/200202/performance_and_spending/1079/payments_over_500,09-Oct-2021,Childrens Services,TOTALENERGIES GAS & POWER LTD,Childrens Services,533.27,Electricity,2122P07_CR00046,107605
Sandwell Metropolitan Borough Council,http://www.sandwell.gov.uk/info/200202/performance_and_spending/1079/payments_over_500,09-Oct-2021,Childrens Services,TOTALENERGIES GAS & POWER LTD,Childrens Services,618.77,Electricity,2122P07_CR00047,107605
Sandwell Metropolitan Borough Council,http://www.sandwell.gov.uk/info/200202/performance_and_spending/1079/payments_over_500,19-Oct-2021,Childrens Services,E.ON UK PLC,Childrens Services,646.75,Electricity,2122P07_CR00048,28639
Sandwell Metropolitan Borough Council,http://www.sandwell.gov.uk/info/200202/performance_and_spending/1079/payments_over_500,09-Oct-2021,Childrens Services,TOTALENERGIES GAS & POWER LTD,Childrens Services,772.56,Electricity,2122P07_CR00049,107605
Sandwell Metropolitan Borough Council,http://www.sandwell.gov.uk/info/200202/performance_and_spending/1079/payments_over_500,09-Oct-2021,Childrens Services,TOTALENERGIES GAS & POWER LTD,Childrens Services,938.27,Electricity,2122P07_CR00050,107605
Sandwell Metropolitan Borough Council,http://www.sandwell.gov.uk/info/200202/performance_and_spending/1079/payments_over_500,01-Oct-2021,Childrens Services,TOTALENERGIES GAS & POWER LTD,Childrens Services,1043.56,Electricity,2122P07_CR00051,107605
Sandwell Metropolitan Borough Council,http://www.sandwell.gov.uk/info/200202/performance_and_spending/1079/payments_over_500,07-Oct-2021,Childrens Services,PENNYHILL PRIMARY SCHOOL,Childrens Services,2058.05,Electricity,2122P07_CR00052,73032
Sandwell Metropolitan Borough Council,http://www.sandwell.gov.uk/info/200202/performance_and_spending/1079/payments_over_500,07-Oct-2021,Childrens Services,PENNYHILL PRIMARY SCHOOL,Childrens Services,6761.28,Electricity,2122P07_CR00053,73032
Sandwell Metropolitan Borough Council,http://www.sandwell.gov.uk/info/200202/performance_and_spending/1079/payments_over_500,01-Oct-2021,Childrens Services,ABRAXAS CATERING EQUIPMENT LTD,Childrens Services,586.00,Equipment & Furniture ,2122P07_CR00054,124644
Sandwell Metropolitan Borough Council,http://www.sandwell.gov.uk/info/200202/performance_and_spending/1079/payments_over_500,01-Oct-2021,Childrens Services,HARTLEY SEWING MACHINES,Childrens Services,1275.00,Equipment & Furniture ,2122P07_CR00055,152495
Sandwell Metropolitan Borough Council,http://www.sandwell.gov.uk/info/200202/performance_and_spending/1079/payments_over_500,26-Oct-2021,Childrens Services,REDACTED PERSONAL DATA,Childrens Services,541.62,External Contract Hire,2122P07_CR00056,REDACTED PERSONAL DATA
Sandwell Metropolitan Borough Council,http://www.sandwell.gov.uk/info/200202/performance_and_spending/1079/payments_over_500,26-Oct-2021,Childrens Services,REDACTED PERSONAL DATA,Childrens Services,863.28,External Contract Hire,2122P07_CR00057,REDACTED PERSONAL DATA
Sandwell Metropolitan Borough Council,http://www.sandwell.gov.uk/info/200202/performance_and_spending/1079/payments_over_500,01-Oct-2021,Childrens Services,DUDLEY MBC,Childrens Services,5322.24,External Contract Hire,2122P07_CR00058,01349846
Sandwell Metropolitan Borough Council,http://www.sandwell.gov.uk/info/200202/performance_and_spending/1079/payments_over_500,01-Oct-2021,Childrens Services,CPOMS SYSTEMS LIMITED,Childrens Services,530.00,Externally Purchased Professional Services ,2122P07_CR00059,146336
Sandwell Metropolitan Borough Council,http://www.sandwell.gov.uk/info/200202/performance_and_spending/1079/payments_over_500,13-Oct-2021,Childrens Services,CARLYLE LTD,Childrens Services,941.16,Externally Purchased Professional Services ,2122P07_CR00060,01507965
Sandwell Metropolitan Borough Council,http://www.sandwell.gov.uk/info/200202/performance_and_spending/1079/payments_over_500,13-Oct-2021,Childrens Services,CARLYLE LTD,Childrens Services,941.16,Externally Purchased Professional Services ,2122P07_CR00061,01507965
Sandwell Metropolitan Borough Council,http://www.sandwell.gov.uk/info/200202/performance_and_spending/1079/payments_over_500,04-Oct-2021,Childrens Services,TWINKL LTD,Childrens Services,949.00,Externally Purchased Professional Services ,2122P07_CR00062,119941
Sandwell Metropolitan Borough Council,http://www.sandwell.gov.uk/info/200202/performance_and_spending/1079/payments_over_500,01-Oct-2021,Childrens Services,OPEN LENS MEDIA,Childrens Services,996.00,Externally Purchased Professional Services ,2122P07_CR00063,154205
Sandwell Metropolitan Borough Council,http://www.sandwell.gov.uk/info/200202/performance_and_spending/1079/payments_over_500,13-Oct-2021,Childrens Services,BSN ASSOCIATES LIMITED,Childrens Services,1010.75,Externally Purchased Professional Services ,2122P07_CR00064,152374
Sandwell Metropolitan Borough Council,http://www.sandwell.gov.uk/info/200202/performance_and_spending/1079/payments_over_500,14-Oct-2021,Childrens Services,CRYSTAL HR & PAYROLL LTD,Childrens Services,1010.75,Externally Purchased Professional Services ,2122P07_CR00065,124658
Sandwell Metropolitan Borough Council,http://www.sandwell.gov.uk/info/200202/performance_and_spending/1079/payments_over_500,07-Oct-2021,Childrens Services,SKILLS NETWORK LTD,Childrens Services,1500.00,Externally Purchased Professional Services ,2122P07_CR00066,146052
Sandwell Metropolitan Borough Council,http://www.sandwell.gov.uk/info/200202/performance_and_spending/1079/payments_over_500,07-Oct-2021,Childrens Services,SKILLS NETWORK LTD,Childrens Services,2000.00,Externally Purchased Professional Services ,2122P07_CR00067,146052
Sandwell Metropolitan Borough Council,http://www.sandwell.gov.uk/info/200202/performance_and_spending/1079/payments_over_500,13-Oct-2021,Childrens Services,IDOX SOFTWARE LTD,Childrens Services,7500.00,Externally Purchased Professional Services ,2122P07_CR00068,17007
Sandwell Metropolitan Borough Council,http://www.sandwell.gov.uk/info/200202/performance_and_spending/1079/payments_over_500,12-Oct-2021,Childrens Services,ACTION FOR CHILDREN SERVICES LIMITED,Childrens Services,30602.07,Externally Purchased Professional Services ,2122P07_CR00069,111189
Sandwell Metropolitan Borough Council,http://www.sandwell.gov.uk/info/200202/performance_and_spending/1079/payments_over_500,01-Oct-2021,Childrens Services,CORONA ENERGY RETAIL 2 LIMITED,Childrens Services,1396.99,Gas,2122P07_CR00070,118395
Sandwell Metropolitan Borough Council,http://www.sandwell.gov.uk/info/200202/performance_and_spending/1079/payments_over_500,01-Oct-2021,Childrens Services,AVANTI GAS LIMITED,Childrens Services,1508.75,Gas,2122P07_CR00071,60069
Sandwell Metropolitan Borough Council,http://www.sandwell.gov.uk/info/200202/performance_and_spending/1079/payments_over_500,01-Oct-2021,Childrens Services,AVANTI GAS LIMITED,Childrens Services,2250.70,Gas,2122P07_CR00072,60069
Sandwell Metropolitan Borough Council,http://www.sandwell.gov.uk/info/200202/performance_and_spending/1079/payments_over_500,20-Oct-2021,Childrens Services,EARLS GYMNASTICS CLUB,Childrens Services,1605.00,Grant Payments,2122P07_CR00073,96950
Sandwell Metropolitan Borough Council,http://www.sandwell.gov.uk/info/200202/performance_and_spending/1079/payments_over_500,11-Oct-2021,Childrens Services,EARLS GYMNASTICS CLUB,Childrens Services,1605.00,Grant Payments,2122P07_CR00074,96950
Sandwell Metropolitan Borough Council,http://www.sandwell.gov.uk/info/200202/performance_and_spending/1079/payments_over_500,21-Oct-2021,Childrens Services,4 COMMUNITY TRUST CIC,Childrens Services,1647.00,Grant Payments,2122P07_CR00075,137880
Sandwell Metropolitan Borough Council,http://www.sandwell.gov.uk/info/200202/performance_and_spending/1079/payments_over_500,20-Oct-2021,Childrens Services,RB SPORTS ACTIVITIES LTD,Childrens Services,1658.00,Grant Payments,2122P07_CR00076,126163
Sandwell Metropolitan Borough Council,http://www.sandwell.gov.uk/info/200202/performance_and_spending/1079/payments_over_500,01-Oct-2021,Childrens Services,CREATIVE ACADEMIES LTD,Childrens Services,2000.00,Grant Payments,2122P07_CR00077,116825
Sandwell Metropolitan Borough Council,http://www.sandwell.gov.uk/info/200202/performance_and_spending/1079/payments_over_500,11-Oct-2021,Childrens Services,REDACTED PERSONAL DATA,Childrens Services,2500.00,Grant Payments,2122P07_CR00078,REDACTED PERSONAL DATA
Sandwell Metropolitan Borough Council,http://www.sandwell.gov.uk/info/200202/performance_and_spending/1079/payments_over_500,20-Oct-2021,Childrens Services,EARLS GYMNASTICS CLUB,Childrens Services,2652.00,Grant Payments,2122P07_CR00079,96950
Sandwell Metropolitan Borough Council,http://www.sandwell.gov.uk/info/200202/performance_and_spending/1079/payments_over_500,14-Oct-2021,Childrens Services,4 COMMUNITY TRUST CIC,Childrens Services,2826.00,Grant Payments,2122P07_CR00080,137880
Sandwell Metropolitan Borough Council,http://www.sandwell.gov.uk/info/200202/performance_and_spending/1079/payments_over_500,08-Oct-2021,Childrens Services,HEART OF ENGLAND COMMUNITY FOUNDATION,Childrens Services,3000.00,Grant Payments,2122P07_CR00081,133427
Sandwell Metropolitan Borough Council,http://www.sandwell.gov.uk/info/200202/performance_and_spending/1079/payments_over_500,19-Oct-2021,Childrens Services,REDACTED PERSONAL DATA,Childrens Services,3000.00,Grant Payments,2122P07_CR00082,REDACTED PERSONAL DATA
Sandwell Metropolitan Borough Council,http://www.sandwell.gov.uk/info/200202/performance_and_spending/1079/payments_over_500,01-Oct-2021,Childrens Services,SANDWELL PARENTS FOR DISABLED CHILDREN,Childrens Services,6000.00,Grant Payments,2122P07_CR00083,70991
Sandwell Metropolitan Borough Council,http://www.sandwell.gov.uk/info/200202/performance_and_spending/1079/payments_over_500,01-Oct-2021,Childrens Services,AUTISM WEST MIDLANDS                                                           01,Childrens Services,9215.50,Grant Payments,2122P07_CR00084,65002404
Sandwell Metropolitan Borough Council,http://www.sandwell.gov.uk/info/200202/performance_and_spending/1079/payments_over_500,13-Oct-2021,Childrens Services,BANGLADESHI WOMEN'S ASSOCIATION LIMITED,Childrens Services,716.39,Grants,2122P07_CR00085,69648
Sandwell Metropolitan Borough Council,http://www.sandwell.gov.uk/info/200202/performance_and_spending/1079/payments_over_500,13-Oct-2021,Childrens Services,CARLYLE LTD,Childrens Services,716.39,Grants,2122P07_CR00086,01507965
Sandwell Metropolitan Borough Council,http://www.sandwell.gov.uk/info/200202/performance_and_spending/1079/payments_over_500,13-Oct-2021,Childrens Services,CARLYLE LTD,Childrens Services,716.39,Grants,2122P07_CR00087,01507965
Sandwell Metropolitan Borough Council,http://www.sandwell.gov.uk/info/200202/performance_and_spending/1079/payments_over_500,15-Oct-2021,Childrens Services,CONFEDERATION OF BANGLADESHI ORGANISATIONS (CBO) LIMITED,Childrens Services,941.16,Grants,2122P07_CR00088,10034
Sandwell Metropolitan Borough Council,http://www.sandwell.gov.uk/info/200202/performance_and_spending/1079/payments_over_500,13-Oct-2021,Childrens Services,CONWAY PACKING SERVICES LTD,Childrens Services,941.16,Grants,2122P07_CR00089,151356
Sandwell Metropolitan Borough Council,http://www.sandwell.gov.uk/info/200202/performance_and_spending/1079/payments_over_500,01-Oct-2021,Childrens Services,DRYWALL STEEL SECTIONS LTD,Childrens Services,1010.75,Grants,2122P07_CR00090,132994
Sandwell Metropolitan Borough Council,http://www.sandwell.gov.uk/info/200202/performance_and_spending/1079/payments_over_500,01-Oct-2021,Childrens Services,INGESTRE ORANGERY AND GARDENS,Childrens Services,650.00,Materials & Consumables,2122P07_CR00091,127331
Sandwell Metropolitan Borough Council,http://www.sandwell.gov.uk/info/200202/performance_and_spending/1079/payments_over_500,21-Oct-2021,Childrens Services,SANDWELL CHILDREN'S TRUST,Childrens Services,1202158.61,Other Establishments,2122P07_CR00092,133302
Sandwell Metropolitan Borough Council,http://www.sandwell.gov.uk/info/200202/performance_and_spending/1079/payments_over_500,06-Oct-2021,Childrens Services,SANDWELL CHILDREN'S TRUST,Childrens Services,5232939.38,Other Establishments,2122P07_CR00093,133302
Sandwell Metropolitan Borough Council,http://www.sandwell.gov.uk/info/200202/performance_and_spending/1079/payments_over_500,18-Oct-2021,Childrens Services,TENNALS PEST CONTROL LTD,Childrens Services,2445.00,Pest Control,2122P07_CR00094,138145
Sandwell Metropolitan Borough Council,http://www.sandwell.gov.uk/info/200202/performance_and_spending/1079/payments_over_500,15-Oct-2021,Childrens Services,CLIVE MARK SCHOOLWEAR LTD,Childrens Services,858.99,Protective Clothing & Uniforms,2122P07_CR00095,01058664
Sandwell Metropolitan Borough Council,http://www.sandwell.gov.uk/info/200202/performance_and_spending/1079/payments_over_500,18-Oct-2021,Childrens Services,CLIVE MARK SCHOOLWEAR LTD,Childrens Services,1311.28,Protective Clothing & Uniforms,2122P07_CR00096,01058664
Sandwell Metropolitan Borough Council,http://www.sandwell.gov.uk/info/200202/performance_and_spending/1079/payments_over_500,01-Oct-2021,Childrens Services,CC UNIFORMS LIMITED,Childrens Services,6555.00,Protective Clothing & Uniforms,2122P07_CR00097,141379
Sandwell Metropolitan Borough Council,http://www.sandwell.gov.uk/info/200202/performance_and_spending/1079/payments_over_500,01-Oct-2021,Childrens Services,WEST MIDLANDS TRAVEL LIMITED,Childrens Services,588.50,Public Transport,2122P07_CR00098,01736688
Sandwell Metropolitan Borough Council,http://www.sandwell.gov.uk/info/200202/performance_and_spending/1079/payments_over_500,01-Oct-2021,Childrens Services,TOH TAXIS,Childrens Services,939.68,Public Transport,2122P07_CR00099,12250
Sandwell Metropolitan Borough Council,http://www.sandwell.gov.uk/info/200202/performance_and_spending/1079/payments_over_500,13-Oct-2021,Childrens Services,BAINS TRAVEL,Childrens Services,1280.00,Public Transport,2122P07_CR00100,06002298
Sandwell Metropolitan Borough Council,http://www.sandwell.gov.uk/info/200202/performance_and_spending/1079/payments_over_500,01-Oct-2021,Childrens Services,BAINS TRAVEL,Childrens Services,1378.00,Public Transport,2122P07_CR00101,06002298
Sandwell Metropolitan Borough Council,http://www.sandwell.gov.uk/info/200202/performance_and_spending/1079/payments_over_500,26-Oct-2021,Childrens Services,BAINS TRAVEL,Childrens Services,1378.00,Public Transport,2122P07_CR00102,06002298
Sandwell Metropolitan Borough Council,http://www.sandwell.gov.uk/info/200202/performance_and_spending/1079/payments_over_500,06-Oct-2021,Childrens Services,TOH TAXIS,Childrens Services,1557.84,Public Transport,2122P07_CR00103,12250
Sandwell Metropolitan Borough Council,http://www.sandwell.gov.uk/info/200202/performance_and_spending/1079/payments_over_500,01-Oct-2021,Childrens Services,TOH TAXIS,Childrens Services,1589.64,Public Transport,2122P07_CR00104,12250
Sandwell Metropolitan Borough Council,http://www.sandwell.gov.uk/info/200202/performance_and_spending/1079/payments_over_500,01-Oct-2021,Childrens Services,BAINS TRAVEL,Childrens Services,1848.67,Public Transport,2122P07_CR00105,06002298
Sandwell Metropolitan Borough Council,http://www.sandwell.gov.uk/info/200202/performance_and_spending/1079/payments_over_500,01-Oct-2021,Childrens Services,UNITY TRAVEL,Childrens Services,1880.00,Public Transport,2122P07_CR00106,64986
Sandwell Metropolitan Borough Council,http://www.sandwell.gov.uk/info/200202/performance_and_spending/1079/payments_over_500,13-Oct-2021,Childrens Services,GREEN DESTINATIONS LTD,Childrens Services,1939.92,Public Transport,2122P07_CR00107,109275
Sandwell Metropolitan Borough Council,http://www.sandwell.gov.uk/info/200202/performance_and_spending/1079/payments_over_500,13-Oct-2021,Childrens Services,121 CARZ,Childrens Services,2010.00,Public Transport,2122P07_CR00108,116848
Sandwell Metropolitan Borough Council,http://www.sandwell.gov.uk/info/200202/performance_and_spending/1079/payments_over_500,26-Oct-2021,Childrens Services,BAINS TRAVEL,Childrens Services,2084.67,Public Transport,2122P07_CR00109,06002298
Sandwell Metropolitan Borough Council,http://www.sandwell.gov.uk/info/200202/performance_and_spending/1079/payments_over_500,26-Oct-2021,Childrens Services,UNITY TRAVEL,Childrens Services,2120.00,Public Transport,2122P07_CR00110,64986
Sandwell Metropolitan Borough Council,http://www.sandwell.gov.uk/info/200202/performance_and_spending/1079/payments_over_500,25-Oct-2021,Childrens Services,BAINS TRAVEL,Childrens Services,2400.00,Public Transport,2122P07_CR00111,06002298
Sandwell Metropolitan Borough Council,http://www.sandwell.gov.uk/info/200202/performance_and_spending/1079/payments_over_500,01-Oct-2021,Childrens Services,D J TRAVEL,Childrens Services,2632.00,Public Transport,2122P07_CR00112,96415
Sandwell Metropolitan Borough Council,http://www.sandwell.gov.uk/info/200202/performance_and_spending/1079/payments_over_500,13-Oct-2021,Childrens Services,BUTT TAXIS,Childrens Services,3626.85,Public Transport,2122P07_CR00113,109306
Sandwell Metropolitan Borough Council,http://www.sandwell.gov.uk/info/200202/performance_and_spending/1079/payments_over_500,26-Oct-2021,Childrens Services,BUTT TAXIS,Childrens Services,4213.32,Public Transport,2122P07_CR00114,109306
Sandwell Metropolitan Borough Council,http://www.sandwell.gov.uk/info/200202/performance_and_spending/1079/payments_over_500,13-Oct-2021,Childrens Services,YELLOW CARS,Childrens Services,16951.34,Public Transport,2122P07_CR00115,116819
Sandwell Metropolitan Borough Council,http://www.sandwell.gov.uk/info/200202/performance_and_spending/1079/payments_over_500,13-Oct-2021,Childrens Services,CLASSIC CARS 1997,Childrens Services,45266.36,Public Transport,2122P07_CR00116,06005093
Sandwell Metropolitan Borough Council,http://www.sandwell.gov.uk/info/200202/performance_and_spending/1079/payments_over_500,01-Oct-2021,Childrens Services,JPC TRAVEL SOLUTION,Childrens Services,46225.90,Public Transport,2122P07_CR00117,138533
Sandwell Metropolitan Borough Council,http://www.sandwell.gov.uk/info/200202/performance_and_spending/1079/payments_over_500,01-Oct-2021,Childrens Services,ONE 4 YOU SERVICES LTD,Childrens Services,48830.13,Public Transport,2122P07_CR00118,81204
Sandwell Metropolitan Borough Council,http://www.sandwell.gov.uk/info/200202/performance_and_spending/1079/payments_over_500,26-Oct-2021,Childrens Services,ONE 4 YOU SERVICES LTD,Childrens Services,56158.30,Public Transport,2122P07_CR00119,81204
Sandwell Metropolitan Borough Council,http://www.sandwell.gov.uk/info/200202/performance_and_spending/1079/payments_over_500,13-Oct-2021,Childrens Services,GREEN DESTINATIONS LTD,Childrens Services,77109.40,Public Transport,2122P07_CR00120,109275
Sandwell Metropolitan Borough Council,http://www.sandwell.gov.uk/info/200202/performance_and_spending/1079/payments_over_500,06-Oct-2021,Childrens Services,FIVE STAR TAXIS (DUDLEY) LTD,Childrens Services,79141.42,Public Transport,2122P07_CR00121,133542
Sandwell Metropolitan Borough Council,http://www.sandwell.gov.uk/info/200202/performance_and_spending/1079/payments_over_500,26-Oct-2021,Childrens Services,FIVE STAR TAXIS (DUDLEY) LTD,Childrens Services,94099.81,Public Transport,2122P07_CR00122,133542
Sandwell Metropolitan Borough Council,http://www.sandwell.gov.uk/info/200202/performance_and_spending/1079/payments_over_500,08-Oct-2021,Childrens Services,PENNYHILL PRIMARY SCHOOL,Childrens Services,1881.12,Rents,2122P07_CR00123,73032
Sandwell Metropolitan Borough Council,http://www.sandwell.gov.uk/info/200202/performance_and_spending/1079/payments_over_500,01-Oct-2021,Childrens Services,THE PRIORY PRIMARY,Childrens Services,2534.28,Rents,2122P07_CR00124,01746051
Sandwell Metropolitan Borough Council,http://www.sandwell.gov.uk/info/200202/performance_and_spending/1079/payments_over_500,01-Oct-2021,Childrens Services,TEMPLE MEADOW PRIMARY SCHOOL                                     01,Childrens Services,2780.00,Rents,2122P07_CR00125,04015109
Sandwell Metropolitan Borough Council,http://www.sandwell.gov.uk/info/200202/performance_and_spending/1079/payments_over_500,01-Oct-2021,Childrens Services,SITEWATCH FIRE AND SURVEILLANCE LIMITED,Childrens Services,811.02,Security,2122P07_CR00126,55288
Sandwell Metropolitan Borough Council,http://www.sandwell.gov.uk/info/200202/performance_and_spending/1079/payments_over_500,22-Oct-2021,Childrens Services,OPEN AWARDS,Childrens Services,500.00,Subscriptions,2122P07_CR00127,124650
Sandwell Metropolitan Borough Council,http://www.sandwell.gov.uk/info/200202/performance_and_spending/1079/payments_over_500,01-Oct-2021,Childrens Services,CASCAID LIMITED,Childrens Services,699.00,Subscriptions,2122P07_CR00128,01757445
Sandwell Metropolitan Borough Council,http://www.sandwell.gov.uk/info/200202/performance_and_spending/1079/payments_over_500,01-Oct-2021,Childrens Services,TOTALENERGIES GAS & POWER LTD,Childrens Services,536.57,Telephones,2122P07_CR00129,107605
Sandwell Metropolitan Borough Council,http://www.sandwell.gov.uk/info/200202/performance_and_spending/1079/payments_over_500,01-Oct-2021,Childrens Services,GWYNEDD COUNCIL,Childrens Services,689.00,Waste Disposal Charges,2122P07_CR00130,01513572
Sandwell Metropolitan Borough Council,http://www.sandwell.gov.uk/info/200202/performance_and_spending/1079/payments_over_500,01-Oct-2021,Childrens Services,AMP BIOMASS FUEL LTD T/A AMP CLEAN ENERGY,Childrens Services,1338.00,Bio Energy Costs,2122P07_CR00131,128761
Sandwell Metropolitan Borough Council,http://www.sandwell.gov.uk/info/200202/performance_and_spending/1079/payments_over_500,19-Oct-2021,Childrens Services,AMP BIOMASS FUEL LTD T/A AMP CLEAN ENERGY,Childrens Services,2127.42,Bio Energy Costs,2122P07_CR00132,128761
Sandwell Metropolitan Borough Council,http://www.sandwell.gov.uk/info/200202/performance_and_spending/1079/payments_over_500,15-Oct-2021,Childrens Services,ST CATHERINE OF SIENA MULTI ACADEMY COMPANY                       02,Childrens Services,525.00,Grant Payments,2122P07_CR00133,61052
Sandwell Metropolitan Borough Council,http://www.sandwell.gov.uk/info/200202/performance_and_spending/1079/payments_over_500,15-Oct-2021,Childrens Services,ST FRANCIS XAVIER CATHOLIC PRIMARY,Childrens Services,555.00,Grant Payments,2122P07_CR00134,61051
Sandwell Metropolitan Borough Council,http://www.sandwell.gov.uk/info/200202/performance_and_spending/1079/payments_over_500,15-Oct-2021,Childrens Services,ST MARYS RC PRIMARY SCHOOL                                    02,Childrens Services,555.00,Grant Payments,2122P07_CR00135,61060
Sandwell Metropolitan Borough Council,http://www.sandwell.gov.uk/info/200202/performance_and_spending/1079/payments_over_500,15-Oct-2021,Childrens Services,LIGHTWOODS PRIMARY ACADEMY .,Childrens Services,630.00,Grant Payments,2122P07_CR00136,61012
Sandwell Metropolitan Borough Council,http://www.sandwell.gov.uk/info/200202/performance_and_spending/1079/payments_over_500,15-Oct-2021,Childrens Services,ST JOHN BOSCO RC PRIMARY SCHOOL                             02,Childrens Services,645.00,Grant Payments,2122P07_CR00137,61055
Sandwell Metropolitan Borough Council,http://www.sandwell.gov.uk/info/200202/performance_and_spending/1079/payments_over_500,15-Oct-2021,Childrens Services,SHIRELAND TECHNOLOGY PRIMARY SCHOOL,Childrens Services,720.00,Grant Payments,2122P07_CR00138,148598
Sandwell Metropolitan Borough Council,http://www.sandwell.gov.uk/info/200202/performance_and_spending/1079/payments_over_500,15-Oct-2021,Childrens Services,ST PAULS C OF E ACADEMY,Childrens Services,810.00,Grant Payments,2122P07_CR00139,118126
Sandwell Metropolitan Borough Council,http://www.sandwell.gov.uk/info/200202/performance_and_spending/1079/payments_over_500,15-Oct-2021,Childrens Services,SHENSTONE LODGE SCHOOL                                             01,Childrens Services,810.00,Grant Payments,2122P07_CR00140,22995
Sandwell Metropolitan Borough Council,http://www.sandwell.gov.uk/info/200202/performance_and_spending/1079/payments_over_500,15-Oct-2021,Childrens Services,CORNGREAVES ACADEMY,Childrens Services,825.00,Grant Payments,2122P07_CR00141,112862
Sandwell Metropolitan Borough Council,http://www.sandwell.gov.uk/info/200202/performance_and_spending/1079/payments_over_500,15-Oct-2021,Childrens Services,DEVONSHIRE INFANTS ACADEMY,Childrens Services,885.00,Grant Payments,2122P07_CR00142,118366
Sandwell Metropolitan Borough Council,http://www.sandwell.gov.uk/info/200202/performance_and_spending/1079/payments_over_500,15-Oct-2021,Childrens Services,OUR LADY AND ST HUBERTS CATHOLIC PRIMARY SCHOOL                                      02,Childrens Services,960.00,Grant Payments,2122P07_CR00143,61053
Sandwell Metropolitan Borough Council,http://www.sandwell.gov.uk/info/200202/performance_and_spending/1079/payments_over_500,15-Oct-2021,Childrens Services,HEALTH FUTURES UTC LIMITED,Childrens Services,975.00,Grant Payments,2122P07_CR00144,128174
Sandwell Metropolitan Borough Council,http://www.sandwell.gov.uk/info/200202/performance_and_spending/1079/payments_over_500,15-Oct-2021,Childrens Services,ST PHILIPS CATHOLIC PRIMARY                           02,Childrens Services,1005.00,Grant Payments,2122P07_CR00145,61063
Sandwell Metropolitan Borough Council,http://www.sandwell.gov.uk/info/200202/performance_and_spending/1079/payments_over_500,15-Oct-2021,Childrens Services,TIMBERTREE (ACADEMY) PRIMARY SCHOOL,Childrens Services,1020.00,Grant Payments,2122P07_CR00146,112804
Sandwell Metropolitan Borough Council,http://www.sandwell.gov.uk/info/200202/performance_and_spending/1079/payments_over_500,15-Oct-2021,Childrens Services,OCKER HILL ACADEMY,Childrens Services,1095.00,Grant Payments,2122P07_CR00147,113691
Sandwell Metropolitan Borough Council,http://www.sandwell.gov.uk/info/200202/performance_and_spending/1079/payments_over_500,15-Oct-2021,Childrens Services,DEVONSHIRE JUNIOR ACADEMY,Childrens Services,1110.00,Grant Payments,2122P07_CR00148,118367
Sandwell Metropolitan Borough Council,http://www.sandwell.gov.uk/info/200202/performance_and_spending/1079/payments_over_500,15-Oct-2021,Childrens Services,ST JOHNS C OF E PRIMARY ACADEMY,Childrens Services,1140.00,Grant Payments,2122P07_CR00149,61056
Sandwell Metropolitan Borough Council,http://www.sandwell.gov.uk/info/200202/performance_and_spending/1079/payments_over_500,15-Oct-2021,Childrens Services,HOLYHEAD PRIMARY ACADEMY           02,Childrens Services,1200.00,Grant Payments,2122P07_CR00150,61005
Sandwell Metropolitan Borough Council,http://www.sandwell.gov.uk/info/200202/performance_and_spending/1079/payments_over_500,15-Oct-2021,Childrens Services,JUBILEE PARK ACADEMY TRUST,Childrens Services,1275.00,Grant Payments,2122P07_CR00151,113377
Sandwell Metropolitan Borough Council,http://www.sandwell.gov.uk/info/200202/performance_and_spending/1079/payments_over_500,15-Oct-2021,Childrens Services,SILVERTREES ACADEMY TRUST,Childrens Services,1305.00,Grant Payments,2122P07_CR00152,113719
Sandwell Metropolitan Borough Council,http://www.sandwell.gov.uk/info/200202/performance_and_spending/1079/payments_over_500,15-Oct-2021,Childrens Services,NEWTOWN PRIMARY ACADEMY                                             02,Childrens Services,1410.00,Grant Payments,2122P07_CR00153,61034
Sandwell Metropolitan Borough Council,http://www.sandwell.gov.uk/info/200202/performance_and_spending/1079/payments_over_500,15-Oct-2021,Childrens Services,MESTY CROFT ACADEMY,Childrens Services,1620.00,Grant Payments,2122P07_CR00154,106208
Sandwell Metropolitan Borough Council,http://www.sandwell.gov.uk/info/200202/performance_and_spending/1079/payments_over_500,15-Oct-2021,Childrens Services,GEORGE BETTS PRIMARY ACADEMY,Childrens Services,1695.00,Grant Payments,2122P07_CR00155,113420
Sandwell Metropolitan Borough Council,http://www.sandwell.gov.uk/info/200202/performance_and_spending/1079/payments_over_500,15-Oct-2021,Childrens Services,HATELEY HEATH PRIMARY ACADEMY                                02,Childrens Services,2010.00,Grant Payments,2122P07_CR00156,61000
Sandwell Metropolitan Borough Council,http://www.sandwell.gov.uk/info/200202/performance_and_spending/1079/payments_over_500,15-Oct-2021,Childrens Services,WEDNESBURY OAK ACADEMY,Childrens Services,2055.00,Grant Payments,2122P07_CR00157,116882
Sandwell Metropolitan Borough Council,http://www.sandwell.gov.uk/info/200202/performance_and_spending/1079/payments_over_500,15-Oct-2021,Childrens Services,WEST BROMWICH COLLEGIATE ACADEMY,Childrens Services,2235.00,Grant Payments,2122P07_CR00158,137780
Sandwell Metropolitan Borough Council,http://www.sandwell.gov.uk/info/200202/performance_and_spending/1079/payments_over_500,15-Oct-2021,Childrens Services,SHIRELAND HALL PRIMARY ACADEMY,Childrens Services,2475.00,Grant Payments,2122P07_CR00159,15209
Sandwell Metropolitan Borough Council,http://www.sandwell.gov.uk/info/200202/performance_and_spending/1079/payments_over_500,15-Oct-2021,Childrens Services,QUAERERE ACADEMY TRUST                                                                 02,Childrens Services,2565.00,Grant Payments,2122P07_CR00160,60939
Sandwell Metropolitan Borough Council,http://www.sandwell.gov.uk/info/200202/performance_and_spending/1079/payments_over_500,15-Oct-2021,Childrens Services,VICTORIA PARK PRIMARY ACADEMY,Childrens Services,3045.00,Grant Payments,2122P07_CR00161,106209
Sandwell Metropolitan Borough Council,http://www.sandwell.gov.uk/info/200202/performance_and_spending/1079/payments_over_500,15-Oct-2021,Childrens Services,SHIRELAND COLLEGIATE ACADEMY TRUST T/A TAMESIDE,Childrens Services,3630.00,Grant Payments,2122P07_CR00162,61064
Sandwell Metropolitan Borough Council,http://www.sandwell.gov.uk/info/200202/performance_and_spending/1079/payments_over_500,15-Oct-2021,Childrens Services,SANDWELL ACADEMY TRUST LTD.,Childrens Services,3630.00,Grant Payments,2122P07_CR00163,126137
Sandwell Metropolitan Borough Council,http://www.sandwell.gov.uk/info/200202/performance_and_spending/1079/payments_over_500,15-Oct-2021,Childrens Services,PERRYFIELDS HIGH SCHOOL                                             02,Childrens Services,3780.00,Grant Payments,2122P07_CR00164,60946
Sandwell Metropolitan Borough Council,http://www.sandwell.gov.uk/info/200202/performance_and_spending/1079/payments_over_500,14-Oct-2021,Childrens Services,BRISTNALL HALL ACADEMY,Childrens Services,3850.00,Grant Payments,2122P07_CR00165,107471
Sandwell Metropolitan Borough Council,http://www.sandwell.gov.uk/info/200202/performance_and_spending/1079/payments_over_500,15-Oct-2021,Childrens Services,STUART BATHURST CATHOLIC HIGH SCHOOL                  02,Childrens Services,4110.00,Grant Payments,2122P07_CR00166,60949
Sandwell Metropolitan Borough Council,http://www.sandwell.gov.uk/info/200202/performance_and_spending/1079/payments_over_500,15-Oct-2021,Childrens Services,Q3 ACADEMY LANGLEY,Childrens Services,4275.00,Grant Payments,2122P07_CR00167,128009
Sandwell Metropolitan Borough Council,http://www.sandwell.gov.uk/info/200202/performance_and_spending/1079/payments_over_500,15-Oct-2021,Childrens Services,ORMISTON SANDWELL COMMUNITY ACADEMY                                           01,Childrens Services,4440.00,Grant Payments,2122P07_CR00168,60950
Sandwell Metropolitan Borough Council,http://www.sandwell.gov.uk/info/200202/performance_and_spending/1079/payments_over_500,15-Oct-2021,Childrens Services,THE RIVERS MULTI ACADEMY TRUST,Childrens Services,4515.00,Grant Payments,2122P07_CR00169,61014
Sandwell Metropolitan Borough Council,http://www.sandwell.gov.uk/info/200202/performance_and_spending/1079/payments_over_500,15-Oct-2021,Childrens Services,BRISTNALL HALL ACADEMY,Childrens Services,4545.00,Grant Payments,2122P07_CR00170,107471
Sandwell Metropolitan Borough Council,http://www.sandwell.gov.uk/info/200202/performance_and_spending/1079/payments_over_500,15-Oct-2021,Childrens Services,WOOD GREEN ACADEMY                                    01,Childrens Services,5145.00,Grant Payments,2122P07_CR00171,100125
Sandwell Metropolitan Borough Council,http://www.sandwell.gov.uk/info/200202/performance_and_spending/1079/payments_over_500,15-Oct-2021,Childrens Services,GEORGE SALTER COLLEGIATE ACADEMY ORMISTON ACADEMIES TRUST,Childrens Services,5640.00,Grant Payments,2122P07_CR00172,01217798
Sandwell Metropolitan Borough Council,http://www.sandwell.gov.uk/info/200202/performance_and_spending/1079/payments_over_500,15-Oct-2021,Childrens Services,GOSPEL OAK SCHOOL,Childrens Services,5925.00,Grant Payments,2122P07_CR00173,60952
Sandwell Metropolitan Borough Council,http://www.sandwell.gov.uk/info/200202/performance_and_spending/1079/payments_over_500,15-Oct-2021,Childrens Services,SHIRELAND COLLEGIATE ACADEMY                                           03,Childrens Services,7350.00,Grant Payments,2122P07_CR00174,60947
Sandwell Metropolitan Borough Council,http://www.sandwell.gov.uk/info/200202/performance_and_spending/1079/payments_over_500,15-Oct-2021,Childrens Services,WODENSBOROUGH ORMISTON ACADEMY,Childrens Services,7365.00,Grant Payments,2122P07_CR00175,115040
Sandwell Metropolitan Borough Council,http://www.sandwell.gov.uk/info/200202/performance_and_spending/1079/payments_over_500,15-Oct-2021,Childrens Services,ORMISTON FORGE ACADEMY,Childrens Services,7395.00,Grant Payments,2122P07_CR00176,60941
Sandwell Metropolitan Borough Council,http://www.sandwell.gov.uk/info/200202/performance_and_spending/1079/payments_over_500,15-Oct-2021,Childrens Services,OLDBURY ACADEMY,Childrens Services,8325.00,Grant Payments,2122P07_CR00177,69241
Sandwell Metropolitan Borough Council,http://www.sandwell.gov.uk/info/200202/performance_and_spending/1079/payments_over_500,15-Oct-2021,Childrens Services,Q3 ACADEMY TIPTON,Childrens Services,8715.00,Grant Payments,2122P07_CR00178,112047
Sandwell Metropolitan Borough Council,http://www.sandwell.gov.uk/info/200202/performance_and_spending/1079/payments_over_500,15-Oct-2021,Childrens Services,ABBEY INFANT SCHOOL                                             02,Childrens Services,510.00,Schools Support Services,2122P07_CR00179,60959
Sandwell Metropolitan Borough Council,http://www.sandwell.gov.uk/info/200202/performance_and_spending/1079/payments_over_500,15-Oct-2021,Childrens Services,ST MARTINS CE PRIMARY SCHOOL,Childrens Services,525.00,Schools Support Services,2122P07_CR00180,61058
Sandwell Metropolitan Borough Council,http://www.sandwell.gov.uk/info/200202/performance_and_spending/1079/payments_over_500,15-Oct-2021,Childrens Services,OCKER HILL INFANT SCHOOL                                    02,Childrens Services,570.00,Schools Support Services,2122P07_CR00181,61036
Sandwell Metropolitan Borough Council,http://www.sandwell.gov.uk/info/200202/performance_and_spending/1079/payments_over_500,15-Oct-2021,Childrens Services,HAMSTEAD INFANT SCHOOL                                  02,Childrens Services,585.00,Schools Support Services,2122P07_CR00182,60997
Sandwell Metropolitan Borough Council,http://www.sandwell.gov.uk/info/200202/performance_and_spending/1079/payments_over_500,15-Oct-2021,Childrens Services,ST MARY MAGDALENE CE PRIMARY SCHOOL                                    01,Childrens Services,585.00,Schools Support Services,2122P07_CR00183,61059
Sandwell Metropolitan Borough Council,http://www.sandwell.gov.uk/info/200202/performance_and_spending/1079/payments_over_500,15-Oct-2021,Childrens Services,GROVE VALE PRIMARY SCHOOL,Childrens Services,600.00,Schools Support Services,2122P07_CR00184,60993
Sandwell Metropolitan Borough Council,http://www.sandwell.gov.uk/info/200202/performance_and_spending/1079/payments_over_500,15-Oct-2021,Childrens Services,PARK HILL PRIMARY SCHOOL                                             02,Childrens Services,780.00,Schools Support Services,2122P07_CR00185,61040
Sandwell Metropolitan Borough Council,http://www.sandwell.gov.uk/info/200202/performance_and_spending/1079/payments_over_500,15-Oct-2021,Childrens Services,ANNIE LENNARD INFANT SCHOOL,Childrens Services,840.00,Schools Support Services,2122P07_CR00186,60966
Sandwell Metropolitan Borough Council,http://www.sandwell.gov.uk/info/200202/performance_and_spending/1079/payments_over_500,15-Oct-2021,Childrens Services,ALBERT PRITCHARD INFANT SCHOOL                                02,Childrens Services,870.00,Schools Support Services,2122P07_CR00187,60962
Sandwell Metropolitan Borough Council,http://www.sandwell.gov.uk/info/200202/performance_and_spending/1079/payments_over_500,15-Oct-2021,Childrens Services,OLD HILL PRIMARY SCHOOL                                  02,Childrens Services,900.00,Schools Support Services,2122P07_CR00188,61038
Sandwell Metropolitan Borough Council,http://www.sandwell.gov.uk/info/200202/performance_and_spending/1079/payments_over_500,15-Oct-2021,Childrens Services,HAMSTEAD JUNIOR SCHOOL                                   02,Childrens Services,930.00,Schools Support Services,2122P07_CR00189,60998
Sandwell Metropolitan Borough Council,http://www.sandwell.gov.uk/info/200202/performance_and_spending/1079/payments_over_500,15-Oct-2021,Childrens Services,ORCHARD SCHOOL                                                          02,Childrens Services,945.00,Schools Support Services,2122P07_CR00190,60956
Sandwell Metropolitan Borough Council,http://www.sandwell.gov.uk/info/200202/performance_and_spending/1079/payments_over_500,15-Oct-2021,Childrens Services,PERRYFIELDS PRIMARY SCHOOL                                       02,Childrens Services,945.00,Schools Support Services,2122P07_CR00191,61042
Sandwell Metropolitan Borough Council,http://www.sandwell.gov.uk/info/200202/performance_and_spending/1079/payments_over_500,15-Oct-2021,Childrens Services,TIVIDALE COMMUNITY PRIMARY                              02,Childrens Services,960.00,Schools Support Services,2122P07_CR00192,61069
Sandwell Metropolitan Borough Council,http://www.sandwell.gov.uk/info/200202/performance_and_spending/1079/payments_over_500,15-Oct-2021,Childrens Services,MOORLANDS PRIMARY SCHOOL                                 01,Childrens Services,960.00,Schools Support Services,2122P07_CR00193,04036544
Sandwell Metropolitan Borough Council,http://www.sandwell.gov.uk/info/200202/performance_and_spending/1079/payments_over_500,15-Oct-2021,Childrens Services,BRICKHOUSE PRIMARY SCHOOL                                             02,Childrens Services,1080.00,Schools Support Services,2122P07_CR00194,60973
Sandwell Metropolitan Borough Council,http://www.sandwell.gov.uk/info/200202/performance_and_spending/1079/payments_over_500,15-Oct-2021,Childrens Services,GRACE MARY PRIMARY SCHOOL                                         02,Childrens Services,1110.00,Schools Support Services,2122P07_CR00195,60991
Sandwell Metropolitan Borough Council,http://www.sandwell.gov.uk/info/200202/performance_and_spending/1079/payments_over_500,15-Oct-2021,Childrens Services,OAKHAM PRIMARY SCHOOL                                         02,Childrens Services,1140.00,Schools Support Services,2122P07_CR00196,61035
Sandwell Metropolitan Borough Council,http://www.sandwell.gov.uk/info/200202/performance_and_spending/1079/payments_over_500,15-Oct-2021,Childrens Services,ABBEY JUNIOR SCHOOL                                  02,Childrens Services,1200.00,Schools Support Services,2122P07_CR00197,60961
Sandwell Metropolitan Borough Council,http://www.sandwell.gov.uk/info/200202/performance_and_spending/1079/payments_over_500,15-Oct-2021,Childrens Services,KING GEORGE V PRIMARY SCHOOL                                             02,Childrens Services,1200.00,Schools Support Services,2122P07_CR00198,61009
Sandwell Metropolitan Borough Council,http://www.sandwell.gov.uk/info/200202/performance_and_spending/1079/payments_over_500,15-Oct-2021,Childrens Services,ALL SAINTS CE PRIMARY SCHOOL                                         02,Childrens Services,1245.00,Schools Support Services,2122P07_CR00199,60964
Sandwell Metropolitan Borough Council,http://www.sandwell.gov.uk/info/200202/performance_and_spending/1079/payments_over_500,15-Oct-2021,Childrens Services,TIVIDALE HALL PRIMARY SCHOOL                                     02,Childrens Services,1320.00,Schools Support Services,2122P07_CR00200,61070
Sandwell Metropolitan Borough Council,http://www.sandwell.gov.uk/info/200202/performance_and_spending/1079/payments_over_500,15-Oct-2021,Childrens Services,OLD PARK PRIMARY SCHOOL                                           02,Childrens Services,1380.00,Schools Support Services,2122P07_CR00201,61039
Sandwell Metropolitan Borough Council,http://www.sandwell.gov.uk/info/200202/performance_and_spending/1079/payments_over_500,15-Oct-2021,Childrens Services,CHRIST CHURCH CE PRIMARY                                    02,Childrens Services,1500.00,Schools Support Services,2122P07_CR00202,60978
Sandwell Metropolitan Borough Council,http://www.sandwell.gov.uk/info/200202/performance_and_spending/1079/payments_over_500,15-Oct-2021,Childrens Services,MOAT FARM INFANTS SCHOOL                                     02,Childrens Services,1500.00,Schools Support Services,2122P07_CR00203,61031
Sandwell Metropolitan Borough Council,http://www.sandwell.gov.uk/info/200202/performance_and_spending/1079/payments_over_500,15-Oct-2021,Childrens Services,RYDERS GREEN PRIMARY SCHOOL                                           02,Childrens Services,1500.00,Schools Support Services,2122P07_CR00204,61047
Sandwell Metropolitan Borough Council,http://www.sandwell.gov.uk/info/200202/performance_and_spending/1079/payments_over_500,15-Oct-2021,Childrens Services,HIGHFIELDS PRIMARY SCHOOL                                01,Childrens Services,1545.00,Schools Support Services,2122P07_CR00205,01782118
Sandwell Metropolitan Borough Council,http://www.sandwell.gov.uk/info/200202/performance_and_spending/1079/payments_over_500,15-Oct-2021,Childrens Services,CROCKETTS LANE COMMUNITY PRIMARY SCHOOL                           02,Childrens Services,1560.00,Schools Support Services,2122P07_CR00206,60980
Sandwell Metropolitan Borough Council,http://www.sandwell.gov.uk/info/200202/performance_and_spending/1079/payments_over_500,15-Oct-2021,Childrens Services,EATON VALLEY PRIMARY SCHOOL,Childrens Services,1560.00,Schools Support Services,2122P07_CR00207,60981
Sandwell Metropolitan Borough Council,http://www.sandwell.gov.uk/info/200202/performance_and_spending/1079/payments_over_500,15-Oct-2021,Childrens Services,BLEAKHOUSE JUNIOR SCHOOL                                02,Childrens Services,1575.00,Schools Support Services,2122P07_CR00208,60969
Sandwell Metropolitan Borough Council,http://www.sandwell.gov.uk/info/200202/performance_and_spending/1079/payments_over_500,15-Oct-2021,Childrens Services,MEADOWS SCHOOL,Childrens Services,1650.00,Schools Support Services,2122P07_CR00209,60955
Sandwell Metropolitan Borough Council,http://www.sandwell.gov.uk/info/200202/performance_and_spending/1079/payments_over_500,15-Oct-2021,Childrens Services,HANBURY PRIMARY SCHOOL                                                             01,Childrens Services,1665.00,Schools Support Services,2122P07_CR00210,60995
Sandwell Metropolitan Borough Council,http://www.sandwell.gov.uk/info/200202/performance_and_spending/1079/payments_over_500,15-Oct-2021,Childrens Services,WESTMINSTER SCHOOL                              02,Childrens Services,1665.00,Schools Support Services,2122P07_CR00211,60957
Sandwell Metropolitan Borough Council,http://www.sandwell.gov.uk/info/200202/performance_and_spending/1079/payments_over_500,15-Oct-2021,Childrens Services,WOOD GREEN JUNIOR SCHOOL                                       02,Childrens Services,1695.00,Schools Support Services,2122P07_CR00212,61076
Sandwell Metropolitan Borough Council,http://www.sandwell.gov.uk/info/200202/performance_and_spending/1079/payments_over_500,15-Oct-2021,Childrens Services,CAUSEWAY GREEN PRIMARY SCHOOL                           02,Childrens Services,1710.00,Schools Support Services,2122P07_CR00213,60976
Sandwell Metropolitan Borough Council,http://www.sandwell.gov.uk/info/200202/performance_and_spending/1079/payments_over_500,15-Oct-2021,Childrens Services,HARVILLS HAWTHORN PRIMARY SCHOOL                             01,Childrens Services,1710.00,Schools Support Services,2122P07_CR00214,01782074
Sandwell Metropolitan Borough Council,http://www.sandwell.gov.uk/info/200202/performance_and_spending/1079/payments_over_500,15-Oct-2021,Childrens Services,LYNG PRIMARY SCHOOL                                        02,Childrens Services,1755.00,Schools Support Services,2122P07_CR00215,61026
Sandwell Metropolitan Borough Council,http://www.sandwell.gov.uk/info/200202/performance_and_spending/1079/payments_over_500,15-Oct-2021,Childrens Services,ST MATTHEWS CE PRIMARY SCHOOL                                             02,Childrens Services,1800.00,Schools Support Services,2122P07_CR00216,61061
Sandwell Metropolitan Borough Council,http://www.sandwell.gov.uk/info/200202/performance_and_spending/1079/payments_over_500,15-Oct-2021,Childrens Services,HARGATE PRIMARY SCHOOL                                   02,Childrens Services,1860.00,Schools Support Services,2122P07_CR00217,60999
Sandwell Metropolitan Borough Council,http://www.sandwell.gov.uk/info/200202/performance_and_spending/1079/payments_over_500,15-Oct-2021,Childrens Services,HOLY TRINITY CE PRIMARY                                    02,Childrens Services,1875.00,Schools Support Services,2122P07_CR00218,61004
Sandwell Metropolitan Borough Council,http://www.sandwell.gov.uk/info/200202/performance_and_spending/1079/payments_over_500,15-Oct-2021,Childrens Services,FERNDALE PRIMARY SCHOOL                                02,Childrens Services,1875.00,Schools Support Services,2122P07_CR00219,60987
Sandwell Metropolitan Borough Council,http://www.sandwell.gov.uk/info/200202/performance_and_spending/1079/payments_over_500,15-Oct-2021,Childrens Services,BEARWOOD PRIMARY SCHOOL                                   02,Childrens Services,1890.00,Schools Support Services,2122P07_CR00220,60967
Sandwell Metropolitan Borough Council,http://www.sandwell.gov.uk/info/200202/performance_and_spending/1079/payments_over_500,15-Oct-2021,Childrens Services,GREAT BRIDGE PRIMARY SCHOOL                          02,Childrens Services,1905.00,Schools Support Services,2122P07_CR00221,42484
Sandwell Metropolitan Borough Council,http://www.sandwell.gov.uk/info/200202/performance_and_spending/1079/payments_over_500,15-Oct-2021,Childrens Services,TEMPLE MEADOW PRIMARY SCHOOL                                 02,Childrens Services,1935.00,Schools Support Services,2122P07_CR00222,61065
Sandwell Metropolitan Borough Council,http://www.sandwell.gov.uk/info/200202/performance_and_spending/1079/payments_over_500,15-Oct-2021,Childrens Services,GALTON VALLEY PRIMARY SCHOOL                                             02,Childrens Services,1950.00,Schools Support Services,2122P07_CR00223,73124
Sandwell Metropolitan Borough Council,http://www.sandwell.gov.uk/info/200202/performance_and_spending/1079/payments_over_500,15-Oct-2021,Childrens Services,ROUNDS GREEN PRIMARY SCHOOL                                         02,Childrens Services,2025.00,Schools Support Services,2122P07_CR00224,61045
Sandwell Metropolitan Borough Council,http://www.sandwell.gov.uk/info/200202/performance_and_spending/1079/payments_over_500,15-Oct-2021,Childrens Services,SPRINGFIELD PRIMARY SCHOOL                                       02,Childrens Services,2025.00,Schools Support Services,2122P07_CR00225,61050
Sandwell Metropolitan Borough Council,http://www.sandwell.gov.uk/info/200202/performance_and_spending/1079/payments_over_500,15-Oct-2021,Childrens Services,BURNT TREE PRIMARY SCHOOL                                             01,Childrens Services,2040.00,Schools Support Services,2122P07_CR00226,60974
Sandwell Metropolitan Borough Council,http://www.sandwell.gov.uk/info/200202/performance_and_spending/1079/payments_over_500,15-Oct-2021,Childrens Services,TIPTON GREEN JUNIOR SCHOOL,Childrens Services,2040.00,Schools Support Services,2122P07_CR00227,61068
Sandwell Metropolitan Borough Council,http://www.sandwell.gov.uk/info/200202/performance_and_spending/1079/payments_over_500,15-Oct-2021,Childrens Services,LODGE PRIMARY SCHOOL                                     02,Childrens Services,2055.00,Schools Support Services,2122P07_CR00228,61015
Sandwell Metropolitan Borough Council,http://www.sandwell.gov.uk/info/200202/performance_and_spending/1079/payments_over_500,15-Oct-2021,Childrens Services,SACRED HEART PRIMARY SCHOOL                                             01,Childrens Services,2070.00,Schools Support Services,2122P07_CR00229,61048
Sandwell Metropolitan Borough Council,http://www.sandwell.gov.uk/info/200202/performance_and_spending/1079/payments_over_500,15-Oct-2021,Childrens Services,REDDAL HILL PRIMARY SCHOOL             02,Childrens Services,2085.00,Schools Support Services,2122P07_CR00230,61043
Sandwell Metropolitan Borough Council,http://www.sandwell.gov.uk/info/200202/performance_and_spending/1079/payments_over_500,15-Oct-2021,Childrens Services,MOAT FARM JUNIOR SCHOOL                                    02,Childrens Services,2130.00,Schools Support Services,2122P07_CR00231,61032
Sandwell Metropolitan Borough Council,http://www.sandwell.gov.uk/info/200202/performance_and_spending/1079/payments_over_500,15-Oct-2021,Childrens Services,HALL GREEN PRIMARY SCHOOL                                             02,Childrens Services,2175.00,Schools Support Services,2122P07_CR00232,60996
Sandwell Metropolitan Borough Council,http://www.sandwell.gov.uk/info/200202/performance_and_spending/1079/payments_over_500,15-Oct-2021,Childrens Services,LANGLEY PRIMARY SCHOOL                                 02,Childrens Services,2265.00,Schools Support Services,2122P07_CR00233,61011
Sandwell Metropolitan Borough Council,http://www.sandwell.gov.uk/info/200202/performance_and_spending/1079/payments_over_500,15-Oct-2021,Childrens Services,BLACKHEATH PRIMARY SCHOOL                            02,Childrens Services,2310.00,Schools Support Services,2122P07_CR00234,60968
Sandwell Metropolitan Borough Council,http://www.sandwell.gov.uk/info/200202/performance_and_spending/1079/payments_over_500,15-Oct-2021,Childrens Services,BRANDHALL PRIMARY SCHOOL                                          02,Childrens Services,2340.00,Schools Support Services,2122P07_CR00235,60971
Sandwell Metropolitan Borough Council,http://www.sandwell.gov.uk/info/200202/performance_and_spending/1079/payments_over_500,15-Oct-2021,Childrens Services,JOSEPH TURNER PRIMARY SCHOOL                               02,Childrens Services,2460.00,Schools Support Services,2122P07_CR00236,61006
Sandwell Metropolitan Borough Council,http://www.sandwell.gov.uk/info/200202/performance_and_spending/1079/payments_over_500,15-Oct-2021,Childrens Services,ROOD END PRIMARY SCHOOL                                         02,Childrens Services,2535.00,Schools Support Services,2122P07_CR00237,61044
Sandwell Metropolitan Borough Council,http://www.sandwell.gov.uk/info/200202/performance_and_spending/1079/payments_over_500,15-Oct-2021,Childrens Services,GLEBEFIELDS PRIMARY SCHOOL                             02,Childrens Services,2580.00,Schools Support Services,2122P07_CR00238,60989
Sandwell Metropolitan Borough Council,http://www.sandwell.gov.uk/info/200202/performance_and_spending/1079/payments_over_500,15-Oct-2021,Childrens Services,THE PRIORY PRIMARY                       02,Childrens Services,2775.00,Schools Support Services,2122P07_CR00239,61066
Sandwell Metropolitan Borough Council,http://www.sandwell.gov.uk/info/200202/performance_and_spending/1079/payments_over_500,15-Oct-2021,Childrens Services,CAPE PRIMARY SCHOOL,Childrens Services,2775.00,Schools Support Services,2122P07_CR00240,01672537
Sandwell Metropolitan Borough Council,http://www.sandwell.gov.uk/info/200202/performance_and_spending/1079/payments_over_500,15-Oct-2021,Childrens Services,ST JAMES C OF E PRIMARY SCHOOL,Childrens Services,3000.00,Schools Support Services,2122P07_CR00241,61054
Sandwell Metropolitan Borough Council,http://www.sandwell.gov.uk/info/200202/performance_and_spending/1079/payments_over_500,15-Oct-2021,Childrens Services,ROWLEY HALL PRIMARY SCHOOL                             02,Childrens Services,3090.00,Schools Support Services,2122P07_CR00242,61046
Sandwell Metropolitan Borough Council,http://www.sandwell.gov.uk/info/200202/performance_and_spending/1079/payments_over_500,15-Oct-2021,Childrens Services,YEW TREE PRIMARY SCHOOL                         02,Childrens Services,3165.00,Schools Support Services,2122P07_CR00243,61078
Sandwell Metropolitan Borough Council,http://www.sandwell.gov.uk/info/200202/performance_and_spending/1079/payments_over_500,15-Oct-2021,Childrens Services,PENNYHILL PRIMARY,Childrens Services,3675.00,Schools Support Services,2122P07_CR00244,73125
Sandwell Metropolitan Borough Council,http://www.sandwell.gov.uk/info/200202/performance_and_spending/1079/payments_over_500,15-Oct-2021,Childrens Services,UPLANDS MANOR PRIMARY               02,Childrens Services,4380.00,Schools Support Services,2122P07_CR00245,61071
Sandwell Metropolitan Borough Council,http://www.sandwell.gov.uk/info/200202/performance_and_spending/1079/payments_over_500,15-Oct-2021,Childrens Services,ST MICHAELS CE HIGH SCHOOL,Childrens Services,5475.00,Schools Support Services,2122P07_CR00246,60948
Sandwell Metropolitan Borough Council,http://www.sandwell.gov.uk/info/200202/performance_and_spending/1079/payments_over_500,15-Oct-2021,Childrens Services,HOLLY LODGE FOUNDATION HIGH SCHOOL,Childrens Services,7140.00,Schools Support Services,2122P07_CR00247,60942
Sandwell Metropolitan Borough Council,http://www.sandwell.gov.uk/info/200202/performance_and_spending/1079/payments_over_500,15-Oct-2021,Childrens Services,PHOENIX COLLEGIATE COLLEGE,Childrens Services,9150.00,Schools Support Services,2122P07_CR00248,95444
Sandwell Metropolitan Borough Council,http://www.sandwell.gov.uk/info/200202/performance_and_spending/1079/payments_over_500,11-Oct-2021,Childrens Services,REDACTED PERSONAL DATA,Childrens Services,545.45,External Contract Hire,2122P07_CR00249,REDACTED PERSONAL DATA
Sandwell Metropolitan Borough Council,http://www.sandwell.gov.uk/info/200202/performance_and_spending/1079/payments_over_500,11-Oct-2021,Childrens Services,REDACTED PERSONAL DATA,Childrens Services,545.45,External Contract Hire,2122P07_CR00250,REDACTED PERSONAL DATA
Sandwell Metropolitan Borough Council,http://www.sandwell.gov.uk/info/200202/performance_and_spending/1079/payments_over_500,11-Oct-2021,Childrens Services,REDACTED PERSONAL DATA,Childrens Services,545.45,External Contract Hire,2122P07_CR00251,REDACTED PERSONAL DATA
Sandwell Metropolitan Borough Council,http://www.sandwell.gov.uk/info/200202/performance_and_spending/1079/payments_over_500,11-Oct-2021,Childrens Services,REDACTED PERSONAL DATA,Childrens Services,545.45,External Contract Hire,2122P07_CR00252,REDACTED PERSONAL DATA
Sandwell Metropolitan Borough Council,http://www.sandwell.gov.uk/info/200202/performance_and_spending/1079/payments_over_500,11-Oct-2021,Childrens Services,REDACTED PERSONAL DATA,Childrens Services,545.45,External Contract Hire,2122P07_CR00253,REDACTED PERSONAL DATA
Sandwell Metropolitan Borough Council,http://www.sandwell.gov.uk/info/200202/performance_and_spending/1079/payments_over_500,11-Oct-2021,Childrens Services,REDACTED PERSONAL DATA,Childrens Services,545.45,External Contract Hire,2122P07_CR00254,REDACTED PERSONAL DATA
Sandwell Metropolitan Borough Council,http://www.sandwell.gov.uk/info/200202/performance_and_spending/1079/payments_over_500,11-Oct-2021,Childrens Services,REDACTED PERSONAL DATA,Childrens Services,545.45,External Contract Hire,2122P07_CR00255,REDACTED PERSONAL DATA
Sandwell Metropolitan Borough Council,http://www.sandwell.gov.uk/info/200202/performance_and_spending/1079/payments_over_500,11-Oct-2021,Childrens Services,REDACTED PERSONAL DATA,Childrens Services,545.45,External Contract Hire,2122P07_CR00256,REDACTED PERSONAL DATA
Sandwell Metropolitan Borough Council,http://www.sandwell.gov.uk/info/200202/performance_and_spending/1079/payments_over_500,11-Oct-2021,Childrens Services,REDACTED PERSONAL DATA,Childrens Services,545.45,External Contract Hire,2122P07_CR00257,REDACTED PERSONAL DATA
Sandwell Metropolitan Borough Council,http://www.sandwell.gov.uk/info/200202/performance_and_spending/1079/payments_over_500,11-Oct-2021,Childrens Services,REDACTED PERSONAL DATA,Childrens Services,545.45,External Contract Hire,2122P07_CR00258,REDACTED PERSONAL DATA
Sandwell Metropolitan Borough Council,http://www.sandwell.gov.uk/info/200202/performance_and_spending/1079/payments_over_500,11-Oct-2021,Childrens Services,REDACTED PERSONAL DATA,Childrens Services,545.45,External Contract Hire,2122P07_CR00259,REDACTED PERSONAL DATA
Sandwell Metropolitan Borough Council,http://www.sandwell.gov.uk/info/200202/performance_and_spending/1079/payments_over_500,11-Oct-2021,Childrens Services,REDACTED PERSONAL DATA,Childrens Services,545.45,External Contract Hire,2122P07_CR00260,REDACTED PERSONAL DATA
Sandwell Metropolitan Borough Council,http://www.sandwell.gov.uk/info/200202/performance_and_spending/1079/payments_over_500,11-Oct-2021,Childrens Services,REDACTED PERSONAL DATA,Childrens Services,545.45,External Contract Hire,2122P07_CR00261,REDACTED PERSONAL DATA
Sandwell Metropolitan Borough Council,http://www.sandwell.gov.uk/info/200202/performance_and_spending/1079/payments_over_500,11-Oct-2021,Childrens Services,REDACTED PERSONAL DATA,Childrens Services,545.45,External Contract Hire,2122P07_CR00262,REDACTED PERSONAL DATA
Sandwell Metropolitan Borough Council,http://www.sandwell.gov.uk/info/200202/performance_and_spending/1079/payments_over_500,11-Oct-2021,Childrens Services,REDACTED PERSONAL DATA,Childrens Services,545.45,External Contract Hire,2122P07_CR00263,REDACTED PERSONAL DATA
Sandwell Metropolitan Borough Council,http://www.sandwell.gov.uk/info/200202/performance_and_spending/1079/payments_over_500,11-Oct-2021,Childrens Services,REDACTED PERSONAL DATA,Childrens Services,545.45,External Contract Hire,2122P07_CR00264,REDACTED PERSONAL DATA
Sandwell Metropolitan Borough Council,http://www.sandwell.gov.uk/info/200202/performance_and_spending/1079/payments_over_500,11-Oct-2021,Childrens Services,REDACTED PERSONAL DATA,Childrens Services,545.45,External Contract Hire,2122P07_CR00265,REDACTED PERSONAL DATA
Sandwell Metropolitan Borough Council,http://www.sandwell.gov.uk/info/200202/performance_and_spending/1079/payments_over_500,11-Oct-2021,Childrens Services,REDACTED PERSONAL DATA,Childrens Services,545.45,External Contract Hire,2122P07_CR00266,REDACTED PERSONAL DATA
Sandwell Metropolitan Borough Council,http://www.sandwell.gov.uk/info/200202/performance_and_spending/1079/payments_over_500,11-Oct-2021,Childrens Services,REDACTED PERSONAL DATA,Childrens Services,545.45,External Contract Hire,2122P07_CR00267,REDACTED PERSONAL DATA
Sandwell Metropolitan Borough Council,http://www.sandwell.gov.uk/info/200202/performance_and_spending/1079/payments_over_500,11-Oct-2021,Childrens Services,REDACTED PERSONAL DATA,Childrens Services,545.45,External Contract Hire,2122P07_CR00268,REDACTED PERSONAL DATA
Sandwell Metropolitan Borough Council,http://www.sandwell.gov.uk/info/200202/performance_and_spending/1079/payments_over_500,11-Oct-2021,Childrens Services,REDACTED PERSONAL DATA,Childrens Services,545.45,External Contract Hire,2122P07_CR00269,REDACTED PERSONAL DATA
Sandwell Metropolitan Borough Council,http://www.sandwell.gov.uk/info/200202/performance_and_spending/1079/payments_over_500,11-Oct-2021,Childrens Services,REDACTED PERSONAL DATA,Childrens Services,727.20,External Contract Hire,2122P07_CR00270,REDACTED PERSONAL DATA
Sandwell Metropolitan Borough Council,http://www.sandwell.gov.uk/info/200202/performance_and_spending/1079/payments_over_500,11-Oct-2021,Childrens Services,REDACTED PERSONAL DATA,Childrens Services,727.27,External Contract Hire,2122P07_CR00271,REDACTED PERSONAL DATA
Sandwell Metropolitan Borough Council,http://www.sandwell.gov.uk/info/200202/performance_and_spending/1079/payments_over_500,11-Oct-2021,Childrens Services,REDACTED PERSONAL DATA,Childrens Services,727.27,External Contract Hire,2122P07_CR00272,REDACTED PERSONAL DATA
Sandwell Metropolitan Borough Council,http://www.sandwell.gov.uk/info/200202/performance_and_spending/1079/payments_over_500,11-Oct-2021,Childrens Services,REDACTED PERSONAL DATA,Childrens Services,727.27,External Contract Hire,2122P07_CR00273,REDACTED PERSONAL DATA
Sandwell Metropolitan Borough Council,http://www.sandwell.gov.uk/info/200202/performance_and_spending/1079/payments_over_500,11-Oct-2021,Childrens Services,REDACTED PERSONAL DATA,Childrens Services,727.27,External Contract Hire,2122P07_CR00274,REDACTED PERSONAL DATA
Sandwell Metropolitan Borough Council,http://www.sandwell.gov.uk/info/200202/performance_and_spending/1079/payments_over_500,11-Oct-2021,Childrens Services,REDACTED PERSONAL DATA,Childrens Services,727.27,External Contract Hire,2122P07_CR00275,REDACTED PERSONAL DATA
Sandwell Metropolitan Borough Council,http://www.sandwell.gov.uk/info/200202/performance_and_spending/1079/payments_over_500,11-Oct-2021,Childrens Services,REDACTED PERSONAL DATA,Childrens Services,727.27,External Contract Hire,2122P07_CR00276,REDACTED PERSONAL DATA
Sandwell Metropolitan Borough Council,http://www.sandwell.gov.uk/info/200202/performance_and_spending/1079/payments_over_500,11-Oct-2021,Childrens Services,REDACTED PERSONAL DATA,Childrens Services,727.27,External Contract Hire,2122P07_CR00277,REDACTED PERSONAL DATA
Sandwell Metropolitan Borough Council,http://www.sandwell.gov.uk/info/200202/performance_and_spending/1079/payments_over_500,11-Oct-2021,Childrens Services,REDACTED PERSONAL DATA,Childrens Services,727.27,External Contract Hire,2122P07_CR00278,REDACTED PERSONAL DATA
Sandwell Metropolitan Borough Council,http://www.sandwell.gov.uk/info/200202/performance_and_spending/1079/payments_over_500,11-Oct-2021,Childrens Services,REDACTED PERSONAL DATA,Childrens Services,727.27,External Contract Hire,2122P07_CR00279,REDACTED PERSONAL DATA
Sandwell Metropolitan Borough Council,http://www.sandwell.gov.uk/info/200202/performance_and_spending/1079/payments_over_500,11-Oct-2021,Childrens Services,REDACTED PERSONAL DATA,Childrens Services,727.27,External Contract Hire,2122P07_CR00280,REDACTED PERSONAL DATA
Sandwell Metropolitan Borough Council,http://www.sandwell.gov.uk/info/200202/performance_and_spending/1079/payments_over_500,11-Oct-2021,Childrens Services,REDACTED PERSONAL DATA,Childrens Services,727.27,External Contract Hire,2122P07_CR00281,REDACTED PERSONAL DATA
Sandwell Metropolitan Borough Council,http://www.sandwell.gov.uk/info/200202/performance_and_spending/1079/payments_over_500,11-Oct-2021,Childrens Services,REDACTED PERSONAL DATA,Childrens Services,727.27,External Contract Hire,2122P07_CR00282,REDACTED PERSONAL DATA
Sandwell Metropolitan Borough Council,http://www.sandwell.gov.uk/info/200202/performance_and_spending/1079/payments_over_500,11-Oct-2021,Childrens Services,REDACTED PERSONAL DATA,Childrens Services,727.27,External Contract Hire,2122P07_CR00283,REDACTED PERSONAL DATA
Sandwell Metropolitan Borough Council,http://www.sandwell.gov.uk/info/200202/performance_and_spending/1079/payments_over_500,11-Oct-2021,Childrens Services,REDACTED PERSONAL DATA,Childrens Services,727.27,External Contract Hire,2122P07_CR00284,REDACTED PERSONAL DATA
Sandwell Metropolitan Borough Council,http://www.sandwell.gov.uk/info/200202/performance_and_spending/1079/payments_over_500,11-Oct-2021,Childrens Services,REDACTED PERSONAL DATA,Childrens Services,727.28,External Contract Hire,2122P07_CR00285,REDACTED PERSONAL DATA
Sandwell Metropolitan Borough Council,http://www.sandwell.gov.uk/info/200202/performance_and_spending/1079/payments_over_500,11-Oct-2021,Childrens Services,REDACTED PERSONAL DATA,Childrens Services,727.28,External Contract Hire,2122P07_CR00286,REDACTED PERSONAL DATA
Sandwell Metropolitan Borough Council,http://www.sandwell.gov.uk/info/200202/performance_and_spending/1079/payments_over_500,11-Oct-2021,Childrens Services,REDACTED PERSONAL DATA,Childrens Services,727.28,External Contract Hire,2122P07_CR00287,REDACTED PERSONAL DATA
Sandwell Metropolitan Borough Council,http://www.sandwell.gov.uk/info/200202/performance_and_spending/1079/payments_over_500,11-Oct-2021,Childrens Services,REDACTED PERSONAL DATA,Childrens Services,727.28,External Contract Hire,2122P07_CR00288,REDACTED PERSONAL DATA
Sandwell Metropolitan Borough Council,http://www.sandwell.gov.uk/info/200202/performance_and_spending/1079/payments_over_500,11-Oct-2021,Childrens Services,REDACTED PERSONAL DATA,Childrens Services,727.28,External Contract Hire,2122P07_CR00289,REDACTED PERSONAL DATA
Sandwell Metropolitan Borough Council,http://www.sandwell.gov.uk/info/200202/performance_and_spending/1079/payments_over_500,11-Oct-2021,Childrens Services,REDACTED PERSONAL DATA,Childrens Services,800.00,External Contract Hire,2122P07_CR00290,REDACTED PERSONAL DATA
Sandwell Metropolitan Borough Council,http://www.sandwell.gov.uk/info/200202/performance_and_spending/1079/payments_over_500,11-Oct-2021,Childrens Services,REDACTED PERSONAL DATA,Childrens Services,909.09,External Contract Hire,2122P07_CR00291,REDACTED PERSONAL DATA
Sandwell Metropolitan Borough Council,http://www.sandwell.gov.uk/info/200202/performance_and_spending/1079/payments_over_500,11-Oct-2021,Childrens Services,REDACTED PERSONAL DATA,Childrens Services,1090.90,External Contract Hire,2122P07_CR00292,REDACTED PERSONAL DATA
Sandwell Metropolitan Borough Council,http://www.sandwell.gov.uk/info/200202/performance_and_spending/1079/payments_over_500,19-Oct-2021,Childrens Services,BEARWOOD COMMUNITY HUB,Childrens Services,855.00,Grant Payments,2122P07_CR00293,152312
Sandwell Metropolitan Borough Council,http://www.sandwell.gov.uk/info/200202/performance_and_spending/1079/payments_over_500,18-Oct-2021,Childrens Services,ILEYS COMMUNITY ASSOCIATION,Childrens Services,1091.00,Grant Payments,2122P07_CR00294,88247
Sandwell Metropolitan Borough Council,http://www.sandwell.gov.uk/info/200202/performance_and_spending/1079/payments_over_500,19-Oct-2021,Childrens Services,BEARWOOD COMMUNITY HUB,Childrens Services,1500.00,Grant Payments,2122P07_CR00295,152312
Sandwell Metropolitan Borough Council,http://www.sandwell.gov.uk/info/200202/performance_and_spending/1079/payments_over_500,18-Oct-2021,Childrens Services,HILL TOP COMMUNITY DEVELOPMENT ASSOCIATION,Childrens Services,1503.00,Grant Payments,2122P07_CR00296,97197
Sandwell Metropolitan Borough Council,http://www.sandwell.gov.uk/info/200202/performance_and_spending/1079/payments_over_500,18-Oct-2021,Childrens Services,FRIAR PARK MILLENNIUM CENTRE,Childrens Services,1619.00,Grant Payments,2122P07_CR00297,28476
Sandwell Metropolitan Borough Council,http://www.sandwell.gov.uk/info/200202/performance_and_spending/1079/payments_over_500,18-Oct-2021,Childrens Services,LION FARM ACTION CENTRE (SANDWELL) LTD,Childrens Services,1780.00,Grant Payments,2122P07_CR00298,21023409
Sandwell Metropolitan Borough Council,http://www.sandwell.gov.uk/info/200202/performance_and_spending/1079/payments_over_500,18-Oct-2021,Childrens Services,CAPE COMMUNITY CARE DAY CENTRE,Childrens Services,1830.00,Grant Payments,2122P07_CR00299,01693179
Sandwell Metropolitan Borough Council,http://www.sandwell.gov.uk/info/200202/performance_and_spending/1079/payments_over_500,11-Oct-2021,Childrens Services,THE ABRAHAMIC FOUNDATION,Childrens Services,1929.00,Grant Payments,2122P07_CR00300,130572
Sandwell Metropolitan Borough Council,http://www.sandwell.gov.uk/info/200202/performance_and_spending/1079/payments_over_500,07-Oct-2021,Childrens Services,SANDWELL DEAF COMMUNITY ASSOCIATION,Childrens Services,2000.00,Grant Payments,2122P07_CR00301,3138
Sandwell Metropolitan Borough Council,http://www.sandwell.gov.uk/info/200202/performance_and_spending/1079/payments_over_500,18-Oct-2021,Childrens Services,SANDWELL DEAF COMMUNITY ASSOCIATION,Childrens Services,2265.00,Grant Payments,2122P07_CR00302,3138
Sandwell Metropolitan Borough Council,http://www.sandwell.gov.uk/info/200202/performance_and_spending/1079/payments_over_500,18-Oct-2021,Childrens Services,AFRICAN FRENCH SPEAKING COMMUNITY SUPPORT,Childrens Services,2384.00,Grant Payments,2122P07_CR00303,107906
Sandwell Metropolitan Borough Council,http://www.sandwell.gov.uk/info/200202/performance_and_spending/1079/payments_over_500,08-Oct-2021,Childrens Services,CAPE COMMUNITY CARE DAY CENTRE,Childrens Services,2550.00,Grant Payments,2122P07_CR00304,01693179
Sandwell Metropolitan Borough Council,http://www.sandwell.gov.uk/info/200202/performance_and_spending/1079/payments_over_500,06-Oct-2021,Childrens Services,FRIAR PARK MILLENNIUM CENTRE,Childrens Services,2562.00,Grant Payments,2122P07_CR00305,28476
Sandwell Metropolitan Borough Council,http://www.sandwell.gov.uk/info/200202/performance_and_spending/1079/payments_over_500,18-Oct-2021,Childrens Services,BENSON COMMUNITY PROJECT,Childrens Services,2700.00,Grant Payments,2122P07_CR00306,125061
Sandwell Metropolitan Borough Council,http://www.sandwell.gov.uk/info/200202/performance_and_spending/1079/payments_over_500,18-Oct-2021,Childrens Services,PLACES FOR PEOPLE LEISURE MANAGEMENT LTD,Childrens Services,2790.00,Grant Payments,2122P07_CR00307,118956
Sandwell Metropolitan Borough Council,http://www.sandwell.gov.uk/info/200202/performance_and_spending/1079/payments_over_500,13-Oct-2021,Childrens Services,ILEYS COMMUNITY ASSOCIATION,Childrens Services,2902.00,Grant Payments,2122P07_CR00308,88247
Sandwell Metropolitan Borough Council,http://www.sandwell.gov.uk/info/200202/performance_and_spending/1079/payments_over_500,13-Oct-2021,Childrens Services,SPORTING YOUR FUTURES,Childrens Services,2924.00,Grant Payments,2122P07_CR00309,153219
Sandwell Metropolitan Borough Council,http://www.sandwell.gov.uk/info/200202/performance_and_spending/1079/payments_over_500,18-Oct-2021,Childrens Services,SANDWELL PARENTS FOR DISABLED CHILDREN,Childrens Services,2945.00,Grant Payments,2122P07_CR00310,70991
Sandwell Metropolitan Borough Council,http://www.sandwell.gov.uk/info/200202/performance_and_spending/1079/payments_over_500,18-Oct-2021,Childrens Services,SPORTING YOUR FUTURES,Childrens Services,2975.00,Grant Payments,2122P07_CR00311,153219
Sandwell Metropolitan Borough Council,http://www.sandwell.gov.uk/info/200202/performance_and_spending/1079/payments_over_500,18-Oct-2021,Childrens Services,SPORTS 4 LIFE UK,Childrens Services,2975.00,Grant Payments,2122P07_CR00312,153208
Sandwell Metropolitan Borough Council,http://www.sandwell.gov.uk/info/200202/performance_and_spending/1079/payments_over_500,18-Oct-2021,Childrens Services,ALL STARS WALSALL C.I.C.,Childrens Services,3000.00,Grant Payments,2122P07_CR00313,153410
Sandwell Metropolitan Borough Council,http://www.sandwell.gov.uk/info/200202/performance_and_spending/1079/payments_over_500,18-Oct-2021,Childrens Services,SAM'S HEALTH AND FITNESS SUITE,Childrens Services,3000.00,Grant Payments,2122P07_CR00314,153276
Sandwell Metropolitan Borough Council,http://www.sandwell.gov.uk/info/200202/performance_and_spending/1079/payments_over_500,18-Oct-2021,Childrens Services,SPORTS 4 LIFE UK,Childrens Services,3000.00,Grant Payments,2122P07_CR00315,153208
Sandwell Metropolitan Borough Council,http://www.sandwell.gov.uk/info/200202/performance_and_spending/1079/payments_over_500,13-Oct-2021,Childrens Services,"THE DOG, DUCK AND CAT TRUST",Childrens Services,3000.00,Grant Payments,2122P07_CR00316,135232
Sandwell Metropolitan Borough Council,http://www.sandwell.gov.uk/info/200202/performance_and_spending/1079/payments_over_500,18-Oct-2021,Childrens Services,"THE DOG, DUCK AND CAT TRUST",Childrens Services,3000.00,Grant Payments,2122P07_CR00317,135232
Sandwell Metropolitan Borough Council,http://www.sandwell.gov.uk/info/200202/performance_and_spending/1079/payments_over_500,12-Oct-2021,Childrens Services,YEMENI COMMUNITY ASSOCIATION IN SANDWELL,Childrens Services,3000.00,Grant Payments,2122P07_CR00318,01711292
Sandwell Metropolitan Borough Council,http://www.sandwell.gov.uk/info/200202/performance_and_spending/1079/payments_over_500,18-Oct-2021,Childrens Services,YEMENI COMMUNITY ASSOCIATION IN SANDWELL,Childrens Services,3000.00,Grant Payments,2122P07_CR00319,01711292
Sandwell Metropolitan Borough Council,http://www.sandwell.gov.uk/info/200202/performance_and_spending/1079/payments_over_500,18-Oct-2021,Childrens Services,CONFEDERATION OF BANGLADESHI ORGANISATIONS (CBO) LIMITED,Childrens Services,3000.00,Grant Payments,2122P07_CR00320,10034
Sandwell Metropolitan Borough Council,http://www.sandwell.gov.uk/info/200202/performance_and_spending/1079/payments_over_500,01-Oct-2021,Childrens Services,IDEAL FOR ALL LIMITED,Childrens Services,14046.00,Grant Payments,2122P07_CR00321,01678484
Sandwell Metropolitan Borough Council,http://www.sandwell.gov.uk/info/200202/performance_and_spending/1079/payments_over_500,07-Oct-2021,Childrens Services,SADWICA DAY NURSERY,Childrens Services,22612.50,Grant Payments,2122P07_CR00322,01667892
Sandwell Metropolitan Borough Council,http://www.sandwell.gov.uk/info/200202/performance_and_spending/1079/payments_over_500,01-Oct-2021,Childrens Services,THE BRANCH,Childrens Services,23316.00,Grant Payments,2122P07_CR00323,08588514
Sandwell Metropolitan Borough Council,http://www.sandwell.gov.uk/info/200202/performance_and_spending/1079/payments_over_500,01-Oct-2021,Childrens Services,LION FARM ACTION CENTRE (SANDWELL) LTD,Childrens Services,35700.50,Grant Payments,2122P07_CR00324,21023409
Sandwell Metropolitan Borough Council,http://www.sandwell.gov.uk/info/200202/performance_and_spending/1079/payments_over_500,01-Oct-2021,Childrens Services,MURRAY HALL COMMUNITY TRUST,Childrens Services,42821.00,Grant Payments,2122P07_CR00325,01627284
Sandwell Metropolitan Borough Council,http://www.sandwell.gov.uk/info/200202/performance_and_spending/1079/payments_over_500,01-Oct-2021,Childrens Services,CREATIVE ACADEMIES LTD,Childrens Services,44777.50,Grant Payments,2122P07_CR00326,116825
Sandwell Metropolitan Borough Council,http://www.sandwell.gov.uk/info/200202/performance_and_spending/1079/payments_over_500,01-Oct-2021,Childrens Services,SKILLS WORK AND ENTERPRISE DEVELOPMENT AGENCY LTD,Childrens Services,50633.50,Grant Payments,2122P07_CR00327,5092
Sandwell Metropolitan Borough Council,http://www.sandwell.gov.uk/info/200202/performance_and_spending/1079/payments_over_500,01-Oct-2021,Childrens Services,GROUNDWORK WEST MIDLANDS,Childrens Services,78606.00,Grant Payments,2122P07_CR00328,92743
Sandwell Metropolitan Borough Council,http://www.sandwell.gov.uk/info/200202/performance_and_spending/1079/payments_over_500,11-Oct-2021,Childrens Services Capital,BRYLAND FIRE PROTECTION LTD,Childrens Services Capital,678.50,CIP - Fixtures & Fittings,2122P07_CR00329,3520
Sandwell Metropolitan Borough Council,http://www.sandwell.gov.uk/info/200202/performance_and_spending/1079/payments_over_500,01-Oct-2021,Childrens Services Capital,STONE COMPUTERS LIMITED,Childrens Services Capital,19578.00,CIP - Fixtures & Fittings,2122P07_CR00330,23360
Sandwell Metropolitan Borough Council,http://www.sandwell.gov.uk/info/200202/performance_and_spending/1079/payments_over_500,01-Oct-2021,Childrens Services Capital,"ACIVICO (DESIGN,CONSTRUCTION AND FACILITIES MANAGEMENT) LTD",Childrens Services Capital,950.16,"CIP - New Construction,Conversion, Enhancement & Reno",2122P07_CR00331,148500
Sandwell Metropolitan Borough Council,http://www.sandwell.gov.uk/info/200202/performance_and_spending/1079/payments_over_500,01-Oct-2021,Childrens Services Capital,TECHNOLOGY SUPPLIES LTD,Childrens Services Capital,1177.92,"CIP - New Construction,Conversion, Enhancement & Reno",2122P07_CR00332,01073314
Sandwell Metropolitan Borough Council,http://www.sandwell.gov.uk/info/200202/performance_and_spending/1079/payments_over_500,05-Oct-2021,Childrens Services Capital,WSM ENGINEERING FACILITIES LTD,Childrens Services Capital,1768.77,"CIP - New Construction,Conversion, Enhancement & Reno",2122P07_CR00333,151265
Sandwell Metropolitan Borough Council,http://www.sandwell.gov.uk/info/200202/performance_and_spending/1079/payments_over_500,01-Oct-2021,Childrens Services Capital,BROXAP LIMITED,Childrens Services Capital,2371.50,"CIP - New Construction,Conversion, Enhancement & Reno",2122P07_CR00334,99472
Sandwell Metropolitan Borough Council,http://www.sandwell.gov.uk/info/200202/performance_and_spending/1079/payments_over_500,04-Oct-2021,Childrens Services Capital,WSM ENGINEERING FACILITIES LTD,Childrens Services Capital,3230.00,"CIP - New Construction,Conversion, Enhancement & Reno",2122P07_CR00335,151265
Sandwell Metropolitan Borough Council,http://www.sandwell.gov.uk/info/200202/performance_and_spending/1079/payments_over_500,01-Oct-2021,Childrens Services Capital,"ACIVICO (DESIGN,CONSTRUCTION AND FACILITIES MANAGEMENT) LTD",Childrens Services Capital,4156.95,"CIP - New Construction,Conversion, Enhancement & Reno",2122P07_CR00336,148500
Sandwell Metropolitan Borough Council,http://www.sandwell.gov.uk/info/200202/performance_and_spending/1079/payments_over_500,01-Oct-2021,Childrens Services Capital,"ACIVICO (DESIGN,CONSTRUCTION AND FACILITIES MANAGEMENT) LTD",Childrens Services Capital,4574.89,"CIP - New Construction,Conversion, Enhancement & Reno",2122P07_CR00337,148500
Sandwell Metropolitan Borough Council,http://www.sandwell.gov.uk/info/200202/performance_and_spending/1079/payments_over_500,01-Oct-2021,Childrens Services Capital,NORTHERN KILNS LTD,Childrens Services Capital,5559.21,"CIP - New Construction,Conversion, Enhancement & Reno",2122P07_CR00338,150052
Sandwell Metropolitan Borough Council,http://www.sandwell.gov.uk/info/200202/performance_and_spending/1079/payments_over_500,06-Oct-2021,Childrens Services Capital,WILLMOTT DIXON CONSTRUCTION LIMITED,Childrens Services Capital,41260.25,"CIP - New Construction,Conversion, Enhancement & Reno",2122P07_CR00339,34081
Sandwell Metropolitan Borough Council,http://www.sandwell.gov.uk/info/200202/performance_and_spending/1079/payments_over_500,12-Oct-2021,Childrens Services Capital,WILLMOTT DIXON CONSTRUCTION LIMITED,Childrens Services Capital,46020.32,"CIP - New Construction,Conversion, Enhancement & Reno",2122P07_CR00340,34081
Sandwell Metropolitan Borough Council,http://www.sandwell.gov.uk/info/200202/performance_and_spending/1079/payments_over_500,25-Oct-2021,Childrens Services Capital,WILLMOTT DIXON CONSTRUCTION LIMITED,Childrens Services Capital,132798.17,"CIP - New Construction,Conversion, Enhancement & Reno",2122P07_CR00341,34081
Sandwell Metropolitan Borough Council,http://www.sandwell.gov.uk/info/200202/performance_and_spending/1079/payments_over_500,01-Oct-2021,Corporate Management,LIEUTENANCY SERVICES (WEST MIDLANDS) LIMITED,Corporate Management,7875.00,Externally Purchased Professional Services ,2122P07_CR00342,132672
Sandwell Metropolitan Borough Council,http://www.sandwell.gov.uk/info/200202/performance_and_spending/1079/payments_over_500,19-Oct-2021,Housing & Communities,GEMCO SERVICE LTD,Neighbourhoods,1543.00,Equipment & Furniture ,2122P07_CR00343,01431459
Sandwell Metropolitan Borough Council,http://www.sandwell.gov.uk/info/200202/performance_and_spending/1079/payments_over_500,01-Oct-2021,Housing & Communities,TECALEMIT GARAGE EQUIPMENT CO LTD,Neighbourhoods,1610.75,Equipment & Furniture ,2122P07_CR00344,01079225
Sandwell Metropolitan Borough Council,http://www.sandwell.gov.uk/info/200202/performance_and_spending/1079/payments_over_500,07-Oct-2021,Housing & Communities,SIMON TULLETT MACHINERY COMPANY LIMITED,Neighbourhoods,700.00,Externally Purchased Professional Services ,2122P07_CR00345,109117
Sandwell Metropolitan Borough Council,http://www.sandwell.gov.uk/info/200202/performance_and_spending/1079/payments_over_500,01-Oct-2021,Housing & Communities,DENNIS EAGLE LTD,Neighbourhoods,500.00,Fire Service Workshops,2122P07_CR00346,01004865
Sandwell Metropolitan Borough Council,http://www.sandwell.gov.uk/info/200202/performance_and_spending/1079/payments_over_500,07-Oct-2021,Housing & Communities,RYGOR COMMERCIALS LTD,Neighbourhoods,500.64,Fire Service Workshops,2122P07_CR00347,3345
Sandwell Metropolitan Borough Council,http://www.sandwell.gov.uk/info/200202/performance_and_spending/1079/payments_over_500,11-Oct-2021,Housing & Communities,TAYLOR ENGINEERING & FABRICATIONS LTD,Neighbourhoods,510.35,Fire Service Workshops,2122P07_CR00348,87793
Sandwell Metropolitan Borough Council,http://www.sandwell.gov.uk/info/200202/performance_and_spending/1079/payments_over_500,11-Oct-2021,Housing & Communities,TAYLOR ENGINEERING & FABRICATIONS LTD,Neighbourhoods,512.35,Fire Service Workshops,2122P07_CR00349,87793
Sandwell Metropolitan Borough Council,http://www.sandwell.gov.uk/info/200202/performance_and_spending/1079/payments_over_500,19-Oct-2021,Housing & Communities,RYGOR COMMERCIALS LTD,Neighbourhoods,512.42,Fire Service Workshops,2122P07_CR00350,3345
Sandwell Metropolitan Borough Council,http://www.sandwell.gov.uk/info/200202/performance_and_spending/1079/payments_over_500,01-Oct-2021,Housing & Communities,SCARAB SWEEPERS LTD,Neighbourhoods,520.00,Fire Service Workshops,2122P07_CR00351,01710482
Sandwell Metropolitan Borough Council,http://www.sandwell.gov.uk/info/200202/performance_and_spending/1079/payments_over_500,01-Oct-2021,Housing & Communities,SCARAB SWEEPERS LTD,Neighbourhoods,520.00,Fire Service Workshops,2122P07_CR00352,01710482
Sandwell Metropolitan Borough Council,http://www.sandwell.gov.uk/info/200202/performance_and_spending/1079/payments_over_500,14-Oct-2021,Housing & Communities,COOPER MOBILE SERVICES LTD,Neighbourhoods,523.00,Fire Service Workshops,2122P07_CR00353,01304378
Sandwell Metropolitan Borough Council,http://www.sandwell.gov.uk/info/200202/performance_and_spending/1079/payments_over_500,12-Oct-2021,Housing & Communities,DENNIS EAGLE LTD,Neighbourhoods,553.45,Fire Service Workshops,2122P07_CR00354,01004865
Sandwell Metropolitan Borough Council,http://www.sandwell.gov.uk/info/200202/performance_and_spending/1079/payments_over_500,27-Oct-2021,Housing & Communities,ROBINS & DAY PARTS WEST MIDLANDS,Neighbourhoods,562.05,Fire Service Workshops,2122P07_CR00355,118812
Sandwell Metropolitan Borough Council,http://www.sandwell.gov.uk/info/200202/performance_and_spending/1079/payments_over_500,01-Oct-2021,Housing & Communities,MACKWORTH VEHICLE CONVERSIONS,Neighbourhoods,610.00,Fire Service Workshops,2122P07_CR00356,124922
Sandwell Metropolitan Borough Council,http://www.sandwell.gov.uk/info/200202/performance_and_spending/1079/payments_over_500,01-Oct-2021,Housing & Communities,MIDLAND TRUCK & VAN LTD,Neighbourhoods,618.20,Fire Service Workshops,2122P07_CR00357,128784
Sandwell Metropolitan Borough Council,http://www.sandwell.gov.uk/info/200202/performance_and_spending/1079/payments_over_500,01-Oct-2021,Housing & Communities,PARTSPLUS,Neighbourhoods,630.16,Fire Service Workshops,2122P07_CR00358,01087922
Sandwell Metropolitan Borough Council,http://www.sandwell.gov.uk/info/200202/performance_and_spending/1079/payments_over_500,26-Oct-2021,Housing & Communities,DENNIS EAGLE LTD,Neighbourhoods,637.51,Fire Service Workshops,2122P07_CR00359,01004865
Sandwell Metropolitan Borough Council,http://www.sandwell.gov.uk/info/200202/performance_and_spending/1079/payments_over_500,01-Oct-2021,Housing & Communities,DENNIS EAGLE LTD,Neighbourhoods,667.28,Fire Service Workshops,2122P07_CR00360,01004865
Sandwell Metropolitan Borough Council,http://www.sandwell.gov.uk/info/200202/performance_and_spending/1079/payments_over_500,01-Oct-2021,Housing & Communities,DENNIS EAGLE LTD,Neighbourhoods,676.87,Fire Service Workshops,2122P07_CR00361,01004865
Sandwell Metropolitan Borough Council,http://www.sandwell.gov.uk/info/200202/performance_and_spending/1079/payments_over_500,11-Oct-2021,Housing & Communities,TERBERG MATEC UK LTD,Neighbourhoods,683.21,Fire Service Workshops,2122P07_CR00362,21235
Sandwell Metropolitan Borough Council,http://www.sandwell.gov.uk/info/200202/performance_and_spending/1079/payments_over_500,06-Oct-2021,Housing & Communities,H L SMITH (TRANSMISSIONS) LTD,Neighbourhoods,685.00,Fire Service Workshops,2122P07_CR00363,01032886
Sandwell Metropolitan Borough Council,http://www.sandwell.gov.uk/info/200202/performance_and_spending/1079/payments_over_500,01-Oct-2021,Housing & Communities,RYGOR COMMERCIALS LTD,Neighbourhoods,713.36,Fire Service Workshops,2122P07_CR00364,3345
Sandwell Metropolitan Borough Council,http://www.sandwell.gov.uk/info/200202/performance_and_spending/1079/payments_over_500,22-Oct-2021,Housing & Communities,TERBERG MATEC UK LTD,Neighbourhoods,713.56,Fire Service Workshops,2122P07_CR00365,21235
Sandwell Metropolitan Borough Council,http://www.sandwell.gov.uk/info/200202/performance_and_spending/1079/payments_over_500,07-Oct-2021,Housing & Communities,PARTSPLUS,Neighbourhoods,808.28,Fire Service Workshops,2122P07_CR00366,01087922
Sandwell Metropolitan Borough Council,http://www.sandwell.gov.uk/info/200202/performance_and_spending/1079/payments_over_500,01-Oct-2021,Housing & Communities,JAMES LISTER & SONS LTD,Neighbourhoods,827.22,Fire Service Workshops,2122P07_CR00367,01021821
Sandwell Metropolitan Borough Council,http://www.sandwell.gov.uk/info/200202/performance_and_spending/1079/payments_over_500,07-Oct-2021,Housing & Communities,DENNIS EAGLE LTD,Neighbourhoods,830.48,Fire Service Workshops,2122P07_CR00368,01004865
Sandwell Metropolitan Borough Council,http://www.sandwell.gov.uk/info/200202/performance_and_spending/1079/payments_over_500,21-Oct-2021,Housing & Communities,TEL SERVICES,Neighbourhoods,966.00,Fire Service Workshops,2122P07_CR00369,84262
Sandwell Metropolitan Borough Council,http://www.sandwell.gov.uk/info/200202/performance_and_spending/1079/payments_over_500,11-Oct-2021,Housing & Communities,TAYLOR ENGINEERING & FABRICATIONS LTD,Neighbourhoods,1138.58,Fire Service Workshops,2122P07_CR00370,87793
Sandwell Metropolitan Borough Council,http://www.sandwell.gov.uk/info/200202/performance_and_spending/1079/payments_over_500,01-Oct-2021,Housing & Communities,DENNIS EAGLE LTD,Neighbourhoods,1203.29,Fire Service Workshops,2122P07_CR00371,01004865
Sandwell Metropolitan Borough Council,http://www.sandwell.gov.uk/info/200202/performance_and_spending/1079/payments_over_500,01-Oct-2021,Housing & Communities,MACKWORTH VEHICLE CONVERSIONS,Neighbourhoods,1252.00,Fire Service Workshops,2122P07_CR00372,124922
Sandwell Metropolitan Borough Council,http://www.sandwell.gov.uk/info/200202/performance_and_spending/1079/payments_over_500,01-Oct-2021,Housing & Communities,DENNIS EAGLE LTD,Neighbourhoods,1368.83,Fire Service Workshops,2122P07_CR00373,01004865
Sandwell Metropolitan Borough Council,http://www.sandwell.gov.uk/info/200202/performance_and_spending/1079/payments_over_500,12-Oct-2021,Housing & Communities,TEL SERVICES,Neighbourhoods,1372.48,Fire Service Workshops,2122P07_CR00374,84262
Sandwell Metropolitan Borough Council,http://www.sandwell.gov.uk/info/200202/performance_and_spending/1079/payments_over_500,19-Oct-2021,Housing & Communities,DENNIS EAGLE LTD,Neighbourhoods,1463.89,Fire Service Workshops,2122P07_CR00375,01004865
Sandwell Metropolitan Borough Council,http://www.sandwell.gov.uk/info/200202/performance_and_spending/1079/payments_over_500,26-Oct-2021,Housing & Communities,TERBERG MATEC UK LTD,Neighbourhoods,1661.58,Fire Service Workshops,2122P07_CR00376,21235
Sandwell Metropolitan Borough Council,http://www.sandwell.gov.uk/info/200202/performance_and_spending/1079/payments_over_500,27-Oct-2021,Housing & Communities,MOTUS COMMERCIALS HALESOWEN,Neighbourhoods,1890.00,Fire Service Workshops,2122P07_CR00377,142253
Sandwell Metropolitan Borough Council,http://www.sandwell.gov.uk/info/200202/performance_and_spending/1079/payments_over_500,27-Oct-2021,Housing & Communities,COOPER MOBILE SERVICES LTD,Neighbourhoods,3285.00,Fire Service Workshops,2122P07_CR00378,01304378
Sandwell Metropolitan Borough Council,http://www.sandwell.gov.uk/info/200202/performance_and_spending/1079/payments_over_500,06-Oct-2021,Housing & Communities,WHALE TANKERS LTD,Neighbourhoods,6403.02,Fire Service Workshops,2122P07_CR00379,01048151
Sandwell Metropolitan Borough Council,http://www.sandwell.gov.uk/info/200202/performance_and_spending/1079/payments_over_500,17-Oct-2021,Housing & Communities,PHS BESAFE,Neighbourhoods,1054.83,Laundry,2122P07_CR00380,124613
Sandwell Metropolitan Borough Council,http://www.sandwell.gov.uk/info/200202/performance_and_spending/1079/payments_over_500,01-Oct-2021,Housing & Communities,PHS BESAFE,Neighbourhoods,1054.83,Protective Clothing & Uniforms,2122P07_CR00381,124613
Sandwell Metropolitan Borough Council,http://www.sandwell.gov.uk/info/200202/performance_and_spending/1079/payments_over_500,25-Oct-2021,Housing & Communities,SIMON TULLETT MACHINERY COMPANY LIMITED,Neighbourhoods,502.31,Repairs & Maintenance,2122P07_CR00382,109117
Sandwell Metropolitan Borough Council,http://www.sandwell.gov.uk/info/200202/performance_and_spending/1079/payments_over_500,21-Oct-2021,Housing & Communities,SIMON TULLETT MACHINERY COMPANY LIMITED,Neighbourhoods,558.38,Repairs & Maintenance,2122P07_CR00383,109117
Sandwell Metropolitan Borough Council,http://www.sandwell.gov.uk/info/200202/performance_and_spending/1079/payments_over_500,01-Oct-2021,Housing & Communities,OAKLEYS LTD,Neighbourhoods,817.05,Repairs & Maintenance,2122P07_CR00384,01598115
Sandwell Metropolitan Borough Council,http://www.sandwell.gov.uk/info/200202/performance_and_spending/1079/payments_over_500,12-Oct-2021,Housing & Communities,UNI-POWER,Neighbourhoods,957.74,Repairs & Maintenance,2122P07_CR00385,137493
Sandwell Metropolitan Borough Council,http://www.sandwell.gov.uk/info/200202/performance_and_spending/1079/payments_over_500,12-Oct-2021,Housing & Communities,UNI-POWER,Neighbourhoods,957.74,Repairs & Maintenance,2122P07_CR00386,137493
Sandwell Metropolitan Borough Council,http://www.sandwell.gov.uk/info/200202/performance_and_spending/1079/payments_over_500,14-Oct-2021,Housing & Communities,OAKLEYS LTD,Neighbourhoods,1080.00,Repairs & Maintenance,2122P07_CR00387,01598115
Sandwell Metropolitan Borough Council,http://www.sandwell.gov.uk/info/200202/performance_and_spending/1079/payments_over_500,01-Oct-2021,Housing & Communities,HADLEYS STEAM CLEANING LTD,Neighbourhoods,2239.00,Repairs & Maintenance,2122P07_CR00388,132536
Sandwell Metropolitan Borough Council,http://www.sandwell.gov.uk/info/200202/performance_and_spending/1079/payments_over_500,01-Oct-2021,Housing & Communities,TRUCKSTOP-HAWKES,Neighbourhoods,1570.00,Subscriptions,2122P07_CR00389,109408
Sandwell Metropolitan Borough Council,http://www.sandwell.gov.uk/info/200202/performance_and_spending/1079/payments_over_500,01-Oct-2021,Housing & Communities,DAWSONGROUP VANS,Neighbourhoods,511.50,Vehicle Hiring Charges,2122P07_CR00390,151498
Sandwell Metropolitan Borough Council,http://www.sandwell.gov.uk/info/200202/performance_and_spending/1079/payments_over_500,01-Oct-2021,Housing & Communities,DAWSONGROUP VANS,Neighbourhoods,511.50,Vehicle Hiring Charges,2122P07_CR00391,151498
Sandwell Metropolitan Borough Council,http://www.sandwell.gov.uk/info/200202/performance_and_spending/1079/payments_over_500,01-Oct-2021,Housing & Communities,NORTHGATE VEHICLE HIRE (WEST MIDLANDS) LTD,Neighbourhoods,513.90,Vehicle Hiring Charges,2122P07_CR00392,01057676
Sandwell Metropolitan Borough Council,http://www.sandwell.gov.uk/info/200202/performance_and_spending/1079/payments_over_500,01-Oct-2021,Housing & Communities,DAWSONGROUP VANS,Neighbourhoods,546.22,Vehicle Hiring Charges,2122P07_CR00393,151498
Sandwell Metropolitan Borough Council,http://www.sandwell.gov.uk/info/200202/performance_and_spending/1079/payments_over_500,03-Oct-2021,Housing & Communities,PUGH'S PLANT HIRE,Neighbourhoods,600.00,Vehicle Hiring Charges,2122P07_CR00394,147204
Sandwell Metropolitan Borough Council,http://www.sandwell.gov.uk/info/200202/performance_and_spending/1079/payments_over_500,01-Oct-2021,Housing & Communities,ENTERPRISE FLEX-E-RENT,Neighbourhoods,620.00,Vehicle Hiring Charges,2122P07_CR00395,142092
Sandwell Metropolitan Borough Council,http://www.sandwell.gov.uk/info/200202/performance_and_spending/1079/payments_over_500,18-Oct-2021,Housing & Communities,DAYS RENTAL,Neighbourhoods,1054.68,Vehicle Hiring Charges,2122P07_CR00396,128169
Sandwell Metropolitan Borough Council,http://www.sandwell.gov.uk/info/200202/performance_and_spending/1079/payments_over_500,20-Oct-2021,Housing & Communities,COOKE RUDLING LIMITED,Assistant Chief Executive (Excl SIU),1950.00,Externally Purchased Professional Services ,2122P07_CR00397,01577073
Sandwell Metropolitan Borough Council,http://www.sandwell.gov.uk/info/200202/performance_and_spending/1079/payments_over_500,01-Oct-2021,Housing & Communities,COOKE RUDLING LIMITED,Assistant Chief Executive (Excl SIU),2775.00,Externally Purchased Professional Services ,2122P07_CR00398,01577073
Sandwell Metropolitan Borough Council,http://www.sandwell.gov.uk/info/200202/performance_and_spending/1079/payments_over_500,01-Oct-2021,Housing & Communities,DATA POWER LTD,Housing & Communities,3944.28,CIP - Fixtures & Fittings,2122P07_CR00399,78780
Sandwell Metropolitan Borough Council,http://www.sandwell.gov.uk/info/200202/performance_and_spending/1079/payments_over_500,12-Oct-2021,Housing & Communities,J MCCANN & CO LIMITED,Housing & Communities,128553.52,CIP - Fixtures & Fittings,2122P07_CR00400,127457
Sandwell Metropolitan Borough Council,http://www.sandwell.gov.uk/info/200202/performance_and_spending/1079/payments_over_500,04-Oct-2021,Housing & Communities,J P LANDSCAPES & CONSTRUCTION LIMITED,Housing & Communities,1430.00,CIP - Infrastructure,2122P07_CR00401,105636
Sandwell Metropolitan Borough Council,http://www.sandwell.gov.uk/info/200202/performance_and_spending/1079/payments_over_500,04-Oct-2021,Housing & Communities,TOTALENERGIES GAS & POWER LTD,Housing & Communities,2587.27,"CIP - New Construction,Conversion, Enhancement & Reno",2122P07_CR00402,107605
Sandwell Metropolitan Borough Council,http://www.sandwell.gov.uk/info/200202/performance_and_spending/1079/payments_over_500,09-Oct-2021,Housing & Communities,TOTALENERGIES GAS & POWER LTD,Housing & Communities,4212.12,"CIP - New Construction,Conversion, Enhancement & Reno",2122P07_CR00403,107605
Sandwell Metropolitan Borough Council,http://www.sandwell.gov.uk/info/200202/performance_and_spending/1079/payments_over_500,06-Oct-2021,Housing & Communities,P CASEY LTD,Housing & Communities,242906.68,"CIP - New Construction,Conversion, Enhancement & Reno",2122P07_CR00404,149276
Sandwell Metropolitan Borough Council,http://www.sandwell.gov.uk/info/200202/performance_and_spending/1079/payments_over_500,12-Oct-2021,Housing & Communities,INTERCLASS PLC,Housing & Communities,440642.83,"CIP - New Construction,Conversion, Enhancement & Reno",2122P07_CR00405,77001959
Sandwell Metropolitan Borough Council,http://www.sandwell.gov.uk/info/200202/performance_and_spending/1079/payments_over_500,25-Oct-2021,Housing & Communities,WATES CONSTRUCTION LTD                                 01,Housing & Communities,1005103.98,"CIP - New Construction,Conversion, Enhancement & Reno",2122P07_CR00406,77000882
Sandwell Metropolitan Borough Council,http://www.sandwell.gov.uk/info/200202/performance_and_spending/1079/payments_over_500,06-Oct-2021,Housing & Communities,WATES CONSTRUCTION LTD                                 01,Housing & Communities,1470298.08,"CIP - New Construction,Conversion, Enhancement & Reno",2122P07_CR00407,77000882
Sandwell Metropolitan Borough Council,http://www.sandwell.gov.uk/info/200202/performance_and_spending/1079/payments_over_500,01-Oct-2021,Housing & Communities,C F BARKER AND SONS (MARQUEES) LTD,Housing & Communities,5761.00,Equipment & Furniture ,2122P07_CR00408,152338
Sandwell Metropolitan Borough Council,http://www.sandwell.gov.uk/info/200202/performance_and_spending/1079/payments_over_500,01-Oct-2021,Housing & Communities,RENAISSANCE CREATIVE DESIGN & PRINT LTD,Neighbourhoods,769.00,Advertising & Publicity,2122P07_CR00409,97376
Sandwell Metropolitan Borough Council,http://www.sandwell.gov.uk/info/200202/performance_and_spending/1079/payments_over_500,01-Oct-2021,Housing & Communities,Q TECHNICAL SERVICES UK LTD,Neighbourhoods,526.00,Building Maintenance & Improvements,2122P07_CR00410,135645
Sandwell Metropolitan Borough Council,http://www.sandwell.gov.uk/info/200202/performance_and_spending/1079/payments_over_500,01-Oct-2021,Housing & Communities,BUCKINGHAM'S RETINUE,Neighbourhoods,537.25,Civic Events,2122P07_CR00411,124656
Sandwell Metropolitan Borough Council,http://www.sandwell.gov.uk/info/200202/performance_and_spending/1079/payments_over_500,01-Oct-2021,Housing & Communities,LORD CHAMBERLAINS MEN,Neighbourhoods,3156.00,Civic Events,2122P07_CR00412,154367
Sandwell Metropolitan Borough Council,http://www.sandwell.gov.uk/info/200202/performance_and_spending/1079/payments_over_500,16-Oct-2021,Housing & Communities,HOARE LEA LLP,Neighbourhoods,3550.00,Consultancy,2122P07_CR00413,137607
Sandwell Metropolitan Borough Council,http://www.sandwell.gov.uk/info/200202/performance_and_spending/1079/payments_over_500,01-Oct-2021,Housing & Communities,MACE LTD,Neighbourhoods,9060.00,Consultancy,2122P07_CR00414,30882
Sandwell Metropolitan Borough Council,http://www.sandwell.gov.uk/info/200202/performance_and_spending/1079/payments_over_500,07-Oct-2021,Housing & Communities,HARWELL TECHNICAL SERVICES LTD,Neighbourhoods,1095.00,Contract Cleaning,2122P07_CR00415,9025
Sandwell Metropolitan Borough Council,http://www.sandwell.gov.uk/info/200202/performance_and_spending/1079/payments_over_500,09-Oct-2021,Housing & Communities,TOTALENERGIES GAS & POWER LTD,Neighbourhoods,940.33,Electricity,2122P07_CR00416,107605
Sandwell Metropolitan Borough Council,http://www.sandwell.gov.uk/info/200202/performance_and_spending/1079/payments_over_500,20-Oct-2021,Housing & Communities,TUDOR ENVIRONMENTAL,Neighbourhoods,789.60,Equipment & Furniture ,2122P07_CR00417,01528713
Sandwell Metropolitan Borough Council,http://www.sandwell.gov.uk/info/200202/performance_and_spending/1079/payments_over_500,21-Oct-2021,Housing & Communities,GREEN MAGIC CO. UK LTD,Neighbourhoods,1125.00,Equipment & Furniture ,2122P07_CR00418,127319
Sandwell Metropolitan Borough Council,http://www.sandwell.gov.uk/info/200202/performance_and_spending/1079/payments_over_500,01-Oct-2021,Housing & Communities,WEST MIDLANDS HOUSING SOLUTIONS LTD,Neighbourhoods,1360.00,Equipment & Furniture ,2122P07_CR00419,150318
Sandwell Metropolitan Borough Council,http://www.sandwell.gov.uk/info/200202/performance_and_spending/1079/payments_over_500,01-Oct-2021,Housing & Communities,WEST MIDLANDS HOUSING SOLUTIONS LTD,Neighbourhoods,1410.00,Equipment & Furniture ,2122P07_CR00420,150318
Sandwell Metropolitan Borough Council,http://www.sandwell.gov.uk/info/200202/performance_and_spending/1079/payments_over_500,01-Oct-2021,Housing & Communities,WEST MIDLANDS HOUSING SOLUTIONS LTD,Neighbourhoods,1410.00,Equipment & Furniture ,2122P07_CR00421,150318
Sandwell Metropolitan Borough Council,http://www.sandwell.gov.uk/info/200202/performance_and_spending/1079/payments_over_500,01-Oct-2021,Housing & Communities,WEST MIDLANDS HOUSING SOLUTIONS LTD,Neighbourhoods,1460.00,Equipment & Furniture ,2122P07_CR00422,150318
Sandwell Metropolitan Borough Council,http://www.sandwell.gov.uk/info/200202/performance_and_spending/1079/payments_over_500,01-Oct-2021,Housing & Communities,XEROX FINANCE LTD,Neighbourhoods,2402.82,Equipment & Furniture ,2122P07_CR00423,2269
Sandwell Metropolitan Borough Council,http://www.sandwell.gov.uk/info/200202/performance_and_spending/1079/payments_over_500,15-Oct-2021,Housing & Communities,TOMKINSON STAINED GLASS LTD,Neighbourhoods,3500.00,Equipment & Furniture ,2122P07_CR00424,155141
Sandwell Metropolitan Borough Council,http://www.sandwell.gov.uk/info/200202/performance_and_spending/1079/payments_over_500,01-Oct-2021,Housing & Communities,FG LIBRARY PRODUCTS LIMITED,Neighbourhoods,3686.00,Equipment & Furniture ,2122P07_CR00425,01735798
Sandwell Metropolitan Borough Council,http://www.sandwell.gov.uk/info/200202/performance_and_spending/1079/payments_over_500,01-Oct-2021,Housing & Communities,WEST MIDLANDS HOUSING SOLUTIONS LTD,Neighbourhoods,3855.00,Equipment & Furniture ,2122P07_CR00426,150318
Sandwell Metropolitan Borough Council,http://www.sandwell.gov.uk/info/200202/performance_and_spending/1079/payments_over_500,08-Oct-2021,Housing & Communities,HAYSTOUN CONSTRUCTION LTD,Neighbourhoods,12230.08,Equipment & Furniture ,2122P07_CR00427,11849
Sandwell Metropolitan Borough Council,http://www.sandwell.gov.uk/info/200202/performance_and_spending/1079/payments_over_500,14-Oct-2021,Housing & Communities,MIDLAND FORESTRY LIMITED,Neighbourhoods,500.00,Externally Purchased Professional Services ,2122P07_CR00428,45812
Sandwell Metropolitan Borough Council,http://www.sandwell.gov.uk/info/200202/performance_and_spending/1079/payments_over_500,14-Oct-2021,Housing & Communities,MIDLAND FORESTRY LIMITED,Neighbourhoods,506.00,Externally Purchased Professional Services ,2122P07_CR00429,45812
Sandwell Metropolitan Borough Council,http://www.sandwell.gov.uk/info/200202/performance_and_spending/1079/payments_over_500,01-Oct-2021,Housing & Communities,MIDLAND FORESTRY LIMITED,Neighbourhoods,525.00,Externally Purchased Professional Services ,2122P07_CR00430,45812
Sandwell Metropolitan Borough Council,http://www.sandwell.gov.uk/info/200202/performance_and_spending/1079/payments_over_500,19-Oct-2021,Housing & Communities,MIDLAND FORESTRY LIMITED,Neighbourhoods,528.00,Externally Purchased Professional Services ,2122P07_CR00431,45812
Sandwell Metropolitan Borough Council,http://www.sandwell.gov.uk/info/200202/performance_and_spending/1079/payments_over_500,01-Oct-2021,Housing & Communities,MIDLAND FORESTRY LIMITED,Neighbourhoods,565.00,Externally Purchased Professional Services ,2122P07_CR00432,45812
Sandwell Metropolitan Borough Council,http://www.sandwell.gov.uk/info/200202/performance_and_spending/1079/payments_over_500,14-Oct-2021,Housing & Communities,TREDOMEN FARM LTD,Neighbourhoods,610.00,Externally Purchased Professional Services ,2122P07_CR00433,154259
Sandwell Metropolitan Borough Council,http://www.sandwell.gov.uk/info/200202/performance_and_spending/1079/payments_over_500,14-Oct-2021,Housing & Communities,MIDLAND FORESTRY LIMITED,Neighbourhoods,622.00,Externally Purchased Professional Services ,2122P07_CR00434,45812
Sandwell Metropolitan Borough Council,http://www.sandwell.gov.uk/info/200202/performance_and_spending/1079/payments_over_500,22-Oct-2021,Housing & Communities,MIDLAND FORESTRY LIMITED,Neighbourhoods,646.00,Externally Purchased Professional Services ,2122P07_CR00435,45812
Sandwell Metropolitan Borough Council,http://www.sandwell.gov.uk/info/200202/performance_and_spending/1079/payments_over_500,01-Oct-2021,Housing & Communities,BEECHWOOD TREES & LANDSCAPE LTD,Neighbourhoods,675.00,Externally Purchased Professional Services ,2122P07_CR00436,93287
Sandwell Metropolitan Borough Council,http://www.sandwell.gov.uk/info/200202/performance_and_spending/1079/payments_over_500,12-Oct-2021,Housing & Communities,BEECHWOOD TREES & LANDSCAPE LTD,Neighbourhoods,700.00,Externally Purchased Professional Services ,2122P07_CR00437,93287
Sandwell Metropolitan Borough Council,http://www.sandwell.gov.uk/info/200202/performance_and_spending/1079/payments_over_500,05-Oct-2021,Housing & Communities,MIDLAND FORESTRY LIMITED,Neighbourhoods,720.00,Externally Purchased Professional Services ,2122P07_CR00438,45812
Sandwell Metropolitan Borough Council,http://www.sandwell.gov.uk/info/200202/performance_and_spending/1079/payments_over_500,01-Oct-2021,Housing & Communities,WYNNSTAY (AGRICULTURAL SUPPLIES) LIMITED,Neighbourhoods,749.85,Externally Purchased Professional Services ,2122P07_CR00439,121165
Sandwell Metropolitan Borough Council,http://www.sandwell.gov.uk/info/200202/performance_and_spending/1079/payments_over_500,19-Oct-2021,Housing & Communities,MIDLAND FORESTRY LIMITED,Neighbourhoods,792.00,Externally Purchased Professional Services ,2122P07_CR00440,45812
Sandwell Metropolitan Borough Council,http://www.sandwell.gov.uk/info/200202/performance_and_spending/1079/payments_over_500,01-Oct-2021,Housing & Communities,WYNNSTAY (AGRICULTURAL SUPPLIES) LIMITED,Neighbourhoods,794.03,Externally Purchased Professional Services ,2122P07_CR00441,121165
Sandwell Metropolitan Borough Council,http://www.sandwell.gov.uk/info/200202/performance_and_spending/1079/payments_over_500,12-Oct-2021,Housing & Communities,BEECHWOOD TREES & LANDSCAPE LTD,Neighbourhoods,885.00,Externally Purchased Professional Services ,2122P07_CR00442,93287
Sandwell Metropolitan Borough Council,http://www.sandwell.gov.uk/info/200202/performance_and_spending/1079/payments_over_500,07-Oct-2021,Housing & Communities,MIDLAND FORESTRY LIMITED,Neighbourhoods,904.00,Externally Purchased Professional Services ,2122P07_CR00443,45812
Sandwell Metropolitan Borough Council,http://www.sandwell.gov.uk/info/200202/performance_and_spending/1079/payments_over_500,12-Oct-2021,Housing & Communities,BEECHWOOD TREES & LANDSCAPE LTD,Neighbourhoods,950.00,Externally Purchased Professional Services ,2122P07_CR00444,93287
Sandwell Metropolitan Borough Council,http://www.sandwell.gov.uk/info/200202/performance_and_spending/1079/payments_over_500,15-Oct-2021,Housing & Communities,MIDLAND FORESTRY LIMITED,Neighbourhoods,958.00,Externally Purchased Professional Services ,2122P07_CR00445,45812
Sandwell Metropolitan Borough Council,http://www.sandwell.gov.uk/info/200202/performance_and_spending/1079/payments_over_500,01-Oct-2021,Housing & Communities,WYNNSTAY (AGRICULTURAL SUPPLIES) LIMITED,Neighbourhoods,969.86,Externally Purchased Professional Services ,2122P07_CR00446,121165
Sandwell Metropolitan Borough Council,http://www.sandwell.gov.uk/info/200202/performance_and_spending/1079/payments_over_500,12-Oct-2021,Housing & Communities,BEECHWOOD TREES & LANDSCAPE LTD,Neighbourhoods,992.50,Externally Purchased Professional Services ,2122P07_CR00447,93287
Sandwell Metropolitan Borough Council,http://www.sandwell.gov.uk/info/200202/performance_and_spending/1079/payments_over_500,13-Oct-2021,Housing & Communities,MIDLAND FORESTRY LIMITED,Neighbourhoods,1260.00,Externally Purchased Professional Services ,2122P07_CR00448,45812
Sandwell Metropolitan Borough Council,http://www.sandwell.gov.uk/info/200202/performance_and_spending/1079/payments_over_500,15-Oct-2021,Housing & Communities,MIDLAND FORESTRY LIMITED,Neighbourhoods,1560.00,Externally Purchased Professional Services ,2122P07_CR00449,45812
Sandwell Metropolitan Borough Council,http://www.sandwell.gov.uk/info/200202/performance_and_spending/1079/payments_over_500,05-Oct-2021,Housing & Communities,OVERBURY PLC,Neighbourhoods,1566.81,Externally Purchased Professional Services ,2122P07_CR00450,154855
Sandwell Metropolitan Borough Council,http://www.sandwell.gov.uk/info/200202/performance_and_spending/1079/payments_over_500,07-Oct-2021,Housing & Communities,MIDLAND FORESTRY LIMITED,Neighbourhoods,1850.00,Externally Purchased Professional Services ,2122P07_CR00451,45812
Sandwell Metropolitan Borough Council,http://www.sandwell.gov.uk/info/200202/performance_and_spending/1079/payments_over_500,01-Oct-2021,Housing & Communities,MIDLAND FORESTRY LIMITED,Neighbourhoods,2280.00,Externally Purchased Professional Services ,2122P07_CR00452,45812
Sandwell Metropolitan Borough Council,http://www.sandwell.gov.uk/info/200202/performance_and_spending/1079/payments_over_500,01-Oct-2021,Housing & Communities,BEECHWOOD TREES & LANDSCAPE LTD,Neighbourhoods,4200.00,Externally Purchased Professional Services ,2122P07_CR00453,93287
Sandwell Metropolitan Borough Council,http://www.sandwell.gov.uk/info/200202/performance_and_spending/1079/payments_over_500,04-Oct-2021,Housing & Communities,ACORN ENVIRONMENTAL MANAGEMENT GROUP LIMITED,Neighbourhoods,5950.00,Externally Purchased Professional Services ,2122P07_CR00454,24254
Sandwell Metropolitan Borough Council,http://www.sandwell.gov.uk/info/200202/performance_and_spending/1079/payments_over_500,12-Oct-2021,Housing & Communities,BEECHWOOD TREES & LANDSCAPE LTD,Neighbourhoods,9100.00,Externally Purchased Professional Services ,2122P07_CR00455,93287
Sandwell Metropolitan Borough Council,http://www.sandwell.gov.uk/info/200202/performance_and_spending/1079/payments_over_500,01-Oct-2021,Housing & Communities,ALLSTAR BUSINESS SOLUTIONS LIMITED,Neighbourhoods,2533.33,Fuel ,2122P07_CR00456,104057
Sandwell Metropolitan Borough Council,http://www.sandwell.gov.uk/info/200202/performance_and_spending/1079/payments_over_500,15-Oct-2021,Housing & Communities,ALLSTAR BUSINESS SOLUTIONS LIMITED,Neighbourhoods,2595.20,Fuel ,2122P07_CR00457,104057
Sandwell Metropolitan Borough Council,http://www.sandwell.gov.uk/info/200202/performance_and_spending/1079/payments_over_500,01-Oct-2021,Housing & Communities,REWIND UK EDUCATION AND INTERVENTIONS LTD,Neighbourhoods,1800.00,Grant Payments,2122P07_CR00458,110507
Sandwell Metropolitan Borough Council,http://www.sandwell.gov.uk/info/200202/performance_and_spending/1079/payments_over_500,14-Oct-2021,Housing & Communities,CREATIVE ACADEMIES LTD,Neighbourhoods,2053.00,Grant Payments,2122P07_CR00459,116825
Sandwell Metropolitan Borough Council,http://www.sandwell.gov.uk/info/200202/performance_and_spending/1079/payments_over_500,07-Oct-2021,Housing & Communities,COMMUNITY SKILLS AND KNOWLEDGE NETWORK CIC,Neighbourhoods,3220.00,Grant Payments,2122P07_CR00460,133735
Sandwell Metropolitan Borough Council,http://www.sandwell.gov.uk/info/200202/performance_and_spending/1079/payments_over_500,01-Oct-2021,Housing & Communities,KRUNCH UK,Neighbourhoods,3581.75,Grant Payments,2122P07_CR00461,08588452
Sandwell Metropolitan Borough Council,http://www.sandwell.gov.uk/info/200202/performance_and_spending/1079/payments_over_500,02-Oct-2021,Housing & Communities,TSA SPORTS AND EDUCATION CIC,Neighbourhoods,5817.75,Grant Payments,2122P07_CR00462,139844
Sandwell Metropolitan Borough Council,http://www.sandwell.gov.uk/info/200202/performance_and_spending/1079/payments_over_500,01-Oct-2021,Housing & Communities,BLACK COUNTRY WOMEN'S AID,Neighbourhoods,10000.00,Grant Payments,2122P07_CR00463,127401
Sandwell Metropolitan Borough Council,http://www.sandwell.gov.uk/info/200202/performance_and_spending/1079/payments_over_500,01-Oct-2021,Housing & Communities,PHOENIX SOFTWARE LTD,Neighbourhoods,683.04,ICT ,2122P07_CR00464,01504689
Sandwell Metropolitan Borough Council,http://www.sandwell.gov.uk/info/200202/performance_and_spending/1079/payments_over_500,01-Oct-2021,Housing & Communities,TRISCAN SYSTEMS LIMITED,Neighbourhoods,1918.00,ICT ,2122P07_CR00465,01437851
Sandwell Metropolitan Borough Council,http://www.sandwell.gov.uk/info/200202/performance_and_spending/1079/payments_over_500,12-Oct-2021,Housing & Communities,GREENWICH LEISURE LTD,Neighbourhoods,3000.00,ICT ,2122P07_CR00466,136157
Sandwell Metropolitan Borough Council,http://www.sandwell.gov.uk/info/200202/performance_and_spending/1079/payments_over_500,07-Oct-2021,Housing & Communities,VENDAID LTD,Neighbourhoods,605.89,Materials & Consumables,2122P07_CR00467,01045695
Sandwell Metropolitan Borough Council,http://www.sandwell.gov.uk/info/200202/performance_and_spending/1079/payments_over_500,07-Oct-2021,Housing & Communities,BEEHIVE BITS LIMITED,Neighbourhoods,619.20,Materials & Consumables,2122P07_CR00468,130628
Sandwell Metropolitan Borough Council,http://www.sandwell.gov.uk/info/200202/performance_and_spending/1079/payments_over_500,16-Oct-2021,Housing & Communities,REDACTED PERSONAL DATA,Neighbourhoods,750.00,Materials & Consumables,2122P07_CR00469,REDACTED PERSONAL DATA
Sandwell Metropolitan Borough Council,http://www.sandwell.gov.uk/info/200202/performance_and_spending/1079/payments_over_500,05-Oct-2021,Housing & Communities,SHERRIFFS FOODS LIMITED T/A FOSTERS,Neighbourhoods,852.24,Materials & Consumables,2122P07_CR00470,139776
Sandwell Metropolitan Borough Council,http://www.sandwell.gov.uk/info/200202/performance_and_spending/1079/payments_over_500,01-Oct-2021,Housing & Communities,EMBLEM PRINT PRODUCTS LTD,Neighbourhoods,1276.44,Materials & Consumables,2122P07_CR00471,01744823
Sandwell Metropolitan Borough Council,http://www.sandwell.gov.uk/info/200202/performance_and_spending/1079/payments_over_500,07-Oct-2021,Housing & Communities,CITRON HYGIENE UK LTD,Neighbourhoods,1389.45,Materials & Consumables,2122P07_CR00472,140849
Sandwell Metropolitan Borough Council,http://www.sandwell.gov.uk/info/200202/performance_and_spending/1079/payments_over_500,21-Oct-2021,Housing & Communities,COULTERS LTD,Neighbourhoods,2030.00,Materials & Consumables,2122P07_CR00473,154910
Sandwell Metropolitan Borough Council,http://www.sandwell.gov.uk/info/200202/performance_and_spending/1079/payments_over_500,21-Oct-2021,Housing & Communities,LOCKWOOD SALADS LTD,Neighbourhoods,4025.00,Materials & Consumables,2122P07_CR00474,155145
Sandwell Metropolitan Borough Council,http://www.sandwell.gov.uk/info/200202/performance_and_spending/1079/payments_over_500,01-Oct-2021,Housing & Communities,OVERDRIVE GLOBAL LTD,Neighbourhoods,7109.00,Materials & Consumables,2122P07_CR00475,153017
Sandwell Metropolitan Borough Council,http://www.sandwell.gov.uk/info/200202/performance_and_spending/1079/payments_over_500,01-Oct-2021,Housing & Communities,HOME FARM NURSERIES (PINVIN) LIMITED,Neighbourhoods,20940.78,Materials & Consumables,2122P07_CR00476,77003445
Sandwell Metropolitan Borough Council,http://www.sandwell.gov.uk/info/200202/performance_and_spending/1079/payments_over_500,04-Oct-2021,Housing & Communities,DOOCEY INFRASTRUCTURE LIMITED,Neighbourhoods,520.00,Operational Services ,2122P07_CR00477,102966
Sandwell Metropolitan Borough Council,http://www.sandwell.gov.uk/info/200202/performance_and_spending/1079/payments_over_500,01-Oct-2021,Housing & Communities,DOOCEY INFRASTRUCTURE LIMITED,Neighbourhoods,950.00,Operational Services ,2122P07_CR00478,102966
Sandwell Metropolitan Borough Council,http://www.sandwell.gov.uk/info/200202/performance_and_spending/1079/payments_over_500,01-Oct-2021,Housing & Communities,DOOCEY INFRASTRUCTURE LIMITED,Neighbourhoods,950.00,Operational Services ,2122P07_CR00479,102966
Sandwell Metropolitan Borough Council,http://www.sandwell.gov.uk/info/200202/performance_and_spending/1079/payments_over_500,01-Oct-2021,Housing & Communities,MOVECORP HOLDINGS LTD,Neighbourhoods,1170.00,Operational Services ,2122P07_CR00480,152623
Sandwell Metropolitan Borough Council,http://www.sandwell.gov.uk/info/200202/performance_and_spending/1079/payments_over_500,01-Oct-2021,Housing & Communities,DOOCEY INFRASTRUCTURE LIMITED,Neighbourhoods,1370.00,Operational Services ,2122P07_CR00481,102966
Sandwell Metropolitan Borough Council,http://www.sandwell.gov.uk/info/200202/performance_and_spending/1079/payments_over_500,01-Oct-2021,Housing & Communities,B & S CHAINS (MIDLANDS) LIMITED,Neighbourhoods,1418.50,Operational Services ,2122P07_CR00482,01357251
Sandwell Metropolitan Borough Council,http://www.sandwell.gov.uk/info/200202/performance_and_spending/1079/payments_over_500,01-Oct-2021,Housing & Communities,DOOCEY INFRASTRUCTURE LIMITED,Neighbourhoods,1570.00,Operational Services ,2122P07_CR00483,102966
Sandwell Metropolitan Borough Council,http://www.sandwell.gov.uk/info/200202/performance_and_spending/1079/payments_over_500,01-Oct-2021,Housing & Communities,THE PLAY INSPECTION COMPANY LIMITED,Neighbourhoods,4929.75,Operational Services ,2122P07_CR00484,73544
Sandwell Metropolitan Borough Council,http://www.sandwell.gov.uk/info/200202/performance_and_spending/1079/payments_over_500,18-Oct-2021,Housing & Communities,HAYSTOUN CONSTRUCTION LTD,Neighbourhoods,15000.00,Operational Services ,2122P07_CR00485,11849
Sandwell Metropolitan Borough Council,http://www.sandwell.gov.uk/info/200202/performance_and_spending/1079/payments_over_500,06-Oct-2021,Housing & Communities,TUDOR ENVIRONMENTAL,Neighbourhoods,525.00,Protective Clothing & Uniforms,2122P07_CR00486,01528713
Sandwell Metropolitan Borough Council,http://www.sandwell.gov.uk/info/200202/performance_and_spending/1079/payments_over_500,01-Oct-2021,Housing & Communities,VALUE HOTELS LIMITED,Neighbourhoods,560.00,Rents,2122P07_CR00487,146264
Sandwell Metropolitan Borough Council,http://www.sandwell.gov.uk/info/200202/performance_and_spending/1079/payments_over_500,07-Oct-2021,Housing & Communities,CONTRACT LETTINGS LTD,Neighbourhoods,678.60,Rents,2122P07_CR00488,76625
Sandwell Metropolitan Borough Council,http://www.sandwell.gov.uk/info/200202/performance_and_spending/1079/payments_over_500,07-Oct-2021,Housing & Communities,CONTRACT LETTINGS LTD,Neighbourhoods,738.60,Rents,2122P07_CR00489,76625
Sandwell Metropolitan Borough Council,http://www.sandwell.gov.uk/info/200202/performance_and_spending/1079/payments_over_500,07-Oct-2021,Housing & Communities,CONTRACT LETTINGS LTD,Neighbourhoods,747.00,Rents,2122P07_CR00490,76625
Sandwell Metropolitan Borough Council,http://www.sandwell.gov.uk/info/200202/performance_and_spending/1079/payments_over_500,28-Oct-2021,Housing & Communities,LETTINGS BY APEX,Neighbourhoods,775.00,Rents,2122P07_CR00491,155280
Sandwell Metropolitan Borough Council,http://www.sandwell.gov.uk/info/200202/performance_and_spending/1079/payments_over_500,01-Oct-2021,Housing & Communities,BCH PROPERTY LIMITED,Neighbourhoods,952.00,Rents,2122P07_CR00492,01011861
Sandwell Metropolitan Borough Council,http://www.sandwell.gov.uk/info/200202/performance_and_spending/1079/payments_over_500,01-Oct-2021,Housing & Communities,VALUE HOTELS LIMITED,Neighbourhoods,1120.00,Rents,2122P07_CR00493,146264
Sandwell Metropolitan Borough Council,http://www.sandwell.gov.uk/info/200202/performance_and_spending/1079/payments_over_500,01-Oct-2021,Housing & Communities,REDACTED PERSONAL DATA,Neighbourhoods,1200.00,Rents,2122P07_CR00494,REDACTED PERSONAL DATA
Sandwell Metropolitan Borough Council,http://www.sandwell.gov.uk/info/200202/performance_and_spending/1079/payments_over_500,01-Oct-2021,Housing & Communities,BCH PROPERTY LIMITED,Neighbourhoods,1283.52,Rents,2122P07_CR00495,01011861
Sandwell Metropolitan Borough Council,http://www.sandwell.gov.uk/info/200202/performance_and_spending/1079/payments_over_500,01-Oct-2021,Housing & Communities,BCH PROPERTY LIMITED,Neighbourhoods,1666.80,Rents,2122P07_CR00496,01011861
Sandwell Metropolitan Borough Council,http://www.sandwell.gov.uk/info/200202/performance_and_spending/1079/payments_over_500,18-Oct-2021,Housing & Communities,REDACTED PERSONAL DATA,Neighbourhoods,1700.00,Rents,2122P07_CR00497,REDACTED PERSONAL DATA
Sandwell Metropolitan Borough Council,http://www.sandwell.gov.uk/info/200202/performance_and_spending/1079/payments_over_500,07-Oct-2021,Housing & Communities,STUDIO LODGE,Neighbourhoods,2070.00,Rents,2122P07_CR00498,138742
Sandwell Metropolitan Borough Council,http://www.sandwell.gov.uk/info/200202/performance_and_spending/1079/payments_over_500,04-Oct-2021,Housing & Communities,SHARP,Neighbourhoods,2445.80,Rents,2122P07_CR00499,08280972
Sandwell Metropolitan Borough Council,http://www.sandwell.gov.uk/info/200202/performance_and_spending/1079/payments_over_500,11-Oct-2021,Housing & Communities,SHARP,Neighbourhoods,2445.80,Rents,2122P07_CR00500,08280972
Sandwell Metropolitan Borough Council,http://www.sandwell.gov.uk/info/200202/performance_and_spending/1079/payments_over_500,01-Oct-2021,Housing & Communities,SHARP,Neighbourhoods,2690.38,Rents,2122P07_CR00501,08280972
Sandwell Metropolitan Borough Council,http://www.sandwell.gov.uk/info/200202/performance_and_spending/1079/payments_over_500,06-Oct-2021,Housing & Communities,REDACTED PERSONAL DATA,Neighbourhoods,3200.00,Rents,2122P07_CR00502,REDACTED PERSONAL DATA
Sandwell Metropolitan Borough Council,http://www.sandwell.gov.uk/info/200202/performance_and_spending/1079/payments_over_500,27-Oct-2021,Housing & Communities,ENVISAGE PROMOTIONS LTD,Neighbourhoods,574.00,Rents & Accomodation Charges,2122P07_CR00503,140438
Sandwell Metropolitan Borough Council,http://www.sandwell.gov.uk/info/200202/performance_and_spending/1079/payments_over_500,01-Oct-2021,Housing & Communities,PROFILE SECURITY SERVICES LTD,Neighbourhoods,570.36,Security,2122P07_CR00504,131253
Sandwell Metropolitan Borough Council,http://www.sandwell.gov.uk/info/200202/performance_and_spending/1079/payments_over_500,01-Oct-2021,Housing & Communities,PROFILE SECURITY SERVICES LTD,Neighbourhoods,611.10,Security,2122P07_CR00505,131253
Sandwell Metropolitan Borough Council,http://www.sandwell.gov.uk/info/200202/performance_and_spending/1079/payments_over_500,01-Oct-2021,Housing & Communities,PROFILE SECURITY SERVICES LTD,Neighbourhoods,651.84,Security,2122P07_CR00506,131253
Sandwell Metropolitan Borough Council,http://www.sandwell.gov.uk/info/200202/performance_and_spending/1079/payments_over_500,01-Oct-2021,Housing & Communities,PROFILE SECURITY SERVICES LTD,Neighbourhoods,679.00,Security,2122P07_CR00507,131253
Sandwell Metropolitan Borough Council,http://www.sandwell.gov.uk/info/200202/performance_and_spending/1079/payments_over_500,20-Oct-2021,Housing & Communities,ADT FIRE & SECURITY PLC,Neighbourhoods,1153.50,Security,2122P07_CR00508,01115015
Sandwell Metropolitan Borough Council,http://www.sandwell.gov.uk/info/200202/performance_and_spending/1079/payments_over_500,01-Oct-2021,Housing & Communities,PROFILE SECURITY SERVICES LTD,Neighbourhoods,1396.50,Security,2122P07_CR00509,131253
Sandwell Metropolitan Borough Council,http://www.sandwell.gov.uk/info/200202/performance_and_spending/1079/payments_over_500,01-Oct-2021,Housing & Communities,PROFILE SECURITY SERVICES LTD,Neighbourhoods,1423.10,Security,2122P07_CR00510,131253
Sandwell Metropolitan Borough Council,http://www.sandwell.gov.uk/info/200202/performance_and_spending/1079/payments_over_500,01-Oct-2021,Housing & Communities,PROFILE SECURITY SERVICES LTD,Neighbourhoods,1556.10,Security,2122P07_CR00511,131253
Sandwell Metropolitan Borough Council,http://www.sandwell.gov.uk/info/200202/performance_and_spending/1079/payments_over_500,01-Oct-2021,Housing & Communities,PROFILE SECURITY SERVICES LTD,Neighbourhoods,1582.07,Security,2122P07_CR00512,131253
Sandwell Metropolitan Borough Council,http://www.sandwell.gov.uk/info/200202/performance_and_spending/1079/payments_over_500,01-Oct-2021,Housing & Communities,PROFILE SECURITY SERVICES LTD,Neighbourhoods,1702.40,Security,2122P07_CR00513,131253
Sandwell Metropolitan Borough Council,http://www.sandwell.gov.uk/info/200202/performance_and_spending/1079/payments_over_500,01-Oct-2021,Housing & Communities,PROFILE SECURITY SERVICES LTD,Neighbourhoods,1768.80,Security,2122P07_CR00514,131253
Sandwell Metropolitan Borough Council,http://www.sandwell.gov.uk/info/200202/performance_and_spending/1079/payments_over_500,01-Oct-2021,Housing & Communities,PROFILE SECURITY SERVICES LTD,Neighbourhoods,1935.15,Security,2122P07_CR00515,131253
Sandwell Metropolitan Borough Council,http://www.sandwell.gov.uk/info/200202/performance_and_spending/1079/payments_over_500,01-Oct-2021,Housing & Communities,SANDWELL LIFT PROJECT COMPANY (NO 3) LIMITED,Neighbourhoods,3048.79,SH Payments,2122P07_CR00516,113986
Sandwell Metropolitan Borough Council,http://www.sandwell.gov.uk/info/200202/performance_and_spending/1079/payments_over_500,20-Oct-2021,Housing & Communities,PLACES FOR PEOPLE LEISURE MANAGEMENT LTD,Neighbourhoods,14630.80,SH Payments,2122P07_CR00517,118956
Sandwell Metropolitan Borough Council,http://www.sandwell.gov.uk/info/200202/performance_and_spending/1079/payments_over_500,01-Oct-2021,Housing & Communities,SANDWELL LIFT PROJECT COMPANY (NO 3) LIMITED,Neighbourhoods,111833.08,SH Payments,2122P07_CR00518,113986
Sandwell Metropolitan Borough Council,http://www.sandwell.gov.uk/info/200202/performance_and_spending/1079/payments_over_500,01-Oct-2021,Housing & Communities,REDACTED PERSONAL DATA,Neighbourhoods,1150.00,Tenants Expenses,2122P07_CR00519,REDACTED PERSONAL DATA
Sandwell Metropolitan Borough Council,http://www.sandwell.gov.uk/info/200202/performance_and_spending/1079/payments_over_500,25-Oct-2021,Housing & Communities,CONNELLS RESIDENTIAL LETTINGS,Neighbourhoods,1202.00,Tenants Expenses,2122P07_CR00520,126463
Sandwell Metropolitan Borough Council,http://www.sandwell.gov.uk/info/200202/performance_and_spending/1079/payments_over_500,26-Oct-2021,Housing & Communities,CONNELLS RESIDENTIAL LETTINGS,Neighbourhoods,1346.00,Tenants Expenses,2122P07_CR00521,126463
Sandwell Metropolitan Borough Council,http://www.sandwell.gov.uk/info/200202/performance_and_spending/1079/payments_over_500,07-Oct-2021,Housing & Communities,SCRIVEN CLIENT'S CURRENT ACCOUNT,Neighbourhoods,1495.00,Tenants Expenses,2122P07_CR00522,118006
Sandwell Metropolitan Borough Council,http://www.sandwell.gov.uk/info/200202/performance_and_spending/1079/payments_over_500,01-Oct-2021,Housing & Communities,GREEN & CO LETTINGS,Neighbourhoods,1538.49,Tenants Expenses,2122P07_CR00523,113190
Sandwell Metropolitan Borough Council,http://www.sandwell.gov.uk/info/200202/performance_and_spending/1079/payments_over_500,01-Oct-2021,Housing & Communities,SUPPORT MOVE LIMITED,Neighbourhoods,1550.00,Tenants Expenses,2122P07_CR00524,147358
Sandwell Metropolitan Borough Council,http://www.sandwell.gov.uk/info/200202/performance_and_spending/1079/payments_over_500,27-Oct-2021,Housing & Communities,SELECT PROPERTY MANAGEMENT,Neighbourhoods,1877.52,Tenants Expenses,2122P07_CR00525,8379
Sandwell Metropolitan Borough Council,http://www.sandwell.gov.uk/info/200202/performance_and_spending/1079/payments_over_500,01-Oct-2021,Housing & Communities,JH ENVIRONMENTAL & CLEANSING SERVICES LTD,Neighbourhoods,550.00,Waste Disposal Charges,2122P07_CR00526,63576
Sandwell Metropolitan Borough Council,http://www.sandwell.gov.uk/info/200202/performance_and_spending/1079/payments_over_500,01-Oct-2021,Housing & Communities,MOVECORP HOLDINGS LTD,Neighbourhoods,600.00,Waste Disposal Charges,2122P07_CR00527,152623
Sandwell Metropolitan Borough Council,http://www.sandwell.gov.uk/info/200202/performance_and_spending/1079/payments_over_500,04-Oct-2021,Housing & Communities,SERCO LIMITED,Neighbourhoods,728.37,Waste Disposal Charges,2122P07_CR00528,53771
Sandwell Metropolitan Borough Council,http://www.sandwell.gov.uk/info/200202/performance_and_spending/1079/payments_over_500,01-Oct-2021,Housing & Communities,SUEZ RECYLING AND RECOVERY HOLDINGS UK LTD,Neighbourhoods,1340.14,Waste Disposal Charges,2122P07_CR00529,129939
Sandwell Metropolitan Borough Council,http://www.sandwell.gov.uk/info/200202/performance_and_spending/1079/payments_over_500,22-Oct-2021,Housing & Communities,SERCO LIMITED,Neighbourhoods,12744.44,Waste Disposal Charges,2122P07_CR00530,53771
Sandwell Metropolitan Borough Council,http://www.sandwell.gov.uk/info/200202/performance_and_spending/1079/payments_over_500,05-Oct-2021,Housing & Communities,STAFFORDSHIRE COUNTY COUNCIL,Neighbourhoods,386789.36,Waste Disposal Charges,2122P07_CR00531,01124861
Sandwell Metropolitan Borough Council,http://www.sandwell.gov.uk/info/200202/performance_and_spending/1079/payments_over_500,05-Oct-2021,Housing & Communities,SERCO LIMITED,Neighbourhoods,552714.96,Waste Disposal Charges,2122P07_CR00532,53771
Sandwell Metropolitan Borough Council,http://www.sandwell.gov.uk/info/200202/performance_and_spending/1079/payments_over_500,22-Oct-2021,Housing & Communities,SERCO LIMITED,Neighbourhoods,622450.18,Waste Disposal Charges,2122P07_CR00533,53771
Sandwell Metropolitan Borough Council,http://www.sandwell.gov.uk/info/200202/performance_and_spending/1079/payments_over_500,22-Oct-2021,Housing & Communities,SERCO LIMITED,Neighbourhoods,1550467.08,Waste Disposal Charges,2122P07_CR00534,53771
Sandwell Metropolitan Borough Council,http://www.sandwell.gov.uk/info/200202/performance_and_spending/1079/payments_over_500,01-Oct-2021,Housing & Communities,WATER PLUS SELECT LIMITED,Neighbourhoods,745.72,Water Services,2122P07_CR00535,129644
Sandwell Metropolitan Borough Council,http://www.sandwell.gov.uk/info/200202/performance_and_spending/1079/payments_over_500,01-Oct-2021,Housing & Communities,WATER PLUS SELECT LIMITED,Neighbourhoods,769.48,Water Services,2122P07_CR00536,129644
Sandwell Metropolitan Borough Council,http://www.sandwell.gov.uk/info/200202/performance_and_spending/1079/payments_over_500,26-Oct-2021,Housing & Communities,REDACTED PERSONAL DATA,Neighbourhoods,500.00,Rents,2122P07_CR00537,REDACTED PERSONAL DATA
Sandwell Metropolitan Borough Council,http://www.sandwell.gov.uk/info/200202/performance_and_spending/1079/payments_over_500,26-Oct-2021,Housing & Communities,REDACTED PERSONAL DATA,Neighbourhoods,500.00,Rents,2122P07_CR00538,REDACTED PERSONAL DATA
Sandwell Metropolitan Borough Council,http://www.sandwell.gov.uk/info/200202/performance_and_spending/1079/payments_over_500,26-Oct-2021,Housing & Communities,REDACTED PERSONAL DATA,Neighbourhoods,500.00,Rents,2122P07_CR00539,REDACTED PERSONAL DATA
Sandwell Metropolitan Borough Council,http://www.sandwell.gov.uk/info/200202/performance_and_spending/1079/payments_over_500,26-Oct-2021,Housing & Communities,REDACTED PERSONAL DATA,Neighbourhoods,500.00,Rents,2122P07_CR00540,REDACTED PERSONAL DATA
Sandwell Metropolitan Borough Council,http://www.sandwell.gov.uk/info/200202/performance_and_spending/1079/payments_over_500,26-Oct-2021,Housing & Communities,REDACTED PERSONAL DATA,Neighbourhoods,500.00,Rents,2122P07_CR00541,REDACTED PERSONAL DATA
Sandwell Metropolitan Borough Council,http://www.sandwell.gov.uk/info/200202/performance_and_spending/1079/payments_over_500,26-Oct-2021,Housing & Communities,REDACTED PERSONAL DATA,Neighbourhoods,500.00,Rents,2122P07_CR00542,REDACTED PERSONAL DATA
Sandwell Metropolitan Borough Council,http://www.sandwell.gov.uk/info/200202/performance_and_spending/1079/payments_over_500,26-Oct-2021,Housing & Communities,REDACTED PERSONAL DATA,Neighbourhoods,500.00,Rents,2122P07_CR00543,REDACTED PERSONAL DATA
Sandwell Metropolitan Borough Council,http://www.sandwell.gov.uk/info/200202/performance_and_spending/1079/payments_over_500,26-Oct-2021,Housing & Communities,REDACTED PERSONAL DATA,Neighbourhoods,500.00,Rents,2122P07_CR00544,REDACTED PERSONAL DATA
Sandwell Metropolitan Borough Council,http://www.sandwell.gov.uk/info/200202/performance_and_spending/1079/payments_over_500,26-Oct-2021,Housing & Communities,REDACTED PERSONAL DATA,Neighbourhoods,500.00,Rents,2122P07_CR00545,REDACTED PERSONAL DATA
Sandwell Metropolitan Borough Council,http://www.sandwell.gov.uk/info/200202/performance_and_spending/1079/payments_over_500,26-Oct-2021,Housing & Communities,REDACTED PERSONAL DATA,Neighbourhoods,500.00,Rents,2122P07_CR00546,REDACTED PERSONAL DATA
Sandwell Metropolitan Borough Council,http://www.sandwell.gov.uk/info/200202/performance_and_spending/1079/payments_over_500,26-Oct-2021,Housing & Communities,REDACTED PERSONAL DATA,Neighbourhoods,500.00,Rents,2122P07_CR00547,REDACTED PERSONAL DATA
Sandwell Metropolitan Borough Council,http://www.sandwell.gov.uk/info/200202/performance_and_spending/1079/payments_over_500,26-Oct-2021,Housing & Communities,REDACTED PERSONAL DATA,Neighbourhoods,550.00,Rents,2122P07_CR00548,REDACTED PERSONAL DATA
Sandwell Metropolitan Borough Council,http://www.sandwell.gov.uk/info/200202/performance_and_spending/1079/payments_over_500,26-Oct-2021,Housing & Communities,REDACTED PERSONAL DATA,Neighbourhoods,550.00,Rents,2122P07_CR00549,REDACTED PERSONAL DATA
Sandwell Metropolitan Borough Council,http://www.sandwell.gov.uk/info/200202/performance_and_spending/1079/payments_over_500,26-Oct-2021,Housing & Communities,REDACTED PERSONAL DATA,Neighbourhoods,550.00,Rents,2122P07_CR00550,REDACTED PERSONAL DATA
Sandwell Metropolitan Borough Council,http://www.sandwell.gov.uk/info/200202/performance_and_spending/1079/payments_over_500,26-Oct-2021,Housing & Communities,REDACTED PERSONAL DATA,Neighbourhoods,550.00,Rents,2122P07_CR00551,REDACTED PERSONAL DATA
Sandwell Metropolitan Borough Council,http://www.sandwell.gov.uk/info/200202/performance_and_spending/1079/payments_over_500,26-Oct-2021,Housing & Communities,REDACTED PERSONAL DATA,Neighbourhoods,550.00,Rents,2122P07_CR00552,REDACTED PERSONAL DATA
Sandwell Metropolitan Borough Council,http://www.sandwell.gov.uk/info/200202/performance_and_spending/1079/payments_over_500,26-Oct-2021,Housing & Communities,REDACTED PERSONAL DATA,Neighbourhoods,1000.00,Rents,2122P07_CR00553,REDACTED PERSONAL DATA
Sandwell Metropolitan Borough Council,http://www.sandwell.gov.uk/info/200202/performance_and_spending/1079/payments_over_500,01-Oct-2021,Housing & Communities,S.C.V.O.,Housing & Communities,154313.00,Grant Payments,2122P07_CR00554,109813
Sandwell Metropolitan Borough Council,http://www.sandwell.gov.uk/info/200202/performance_and_spending/1079/payments_over_500,01-Oct-2021,Housing & Communities,SANDWELL IRISH SOCIETY,Neighbourhoods,1707.00,Grant Payments,2122P07_CR00555,21029971
Sandwell Metropolitan Borough Council,http://www.sandwell.gov.uk/info/200202/performance_and_spending/1079/payments_over_500,01-Oct-2021,Housing & Communities,GAYTON ROAD COMMUNITY CENTRE ASSOCIATION,Neighbourhoods,5334.00,Grant Payments,2122P07_CR00556,112420
Sandwell Metropolitan Borough Council,http://www.sandwell.gov.uk/info/200202/performance_and_spending/1079/payments_over_500,01-Oct-2021,Housing & Communities,REWIND UK EDUCATION AND INTERVENTIONS LTD,Neighbourhoods,6250.00,Grant Payments,2122P07_CR00557,110507
Sandwell Metropolitan Borough Council,http://www.sandwell.gov.uk/info/200202/performance_and_spending/1079/payments_over_500,01-Oct-2021,Housing & Communities,SANDWELL COMMUNITY HUBS CO-OPERATIVE,Neighbourhoods,7467.50,Grant Payments,2122P07_CR00558,112422
Sandwell Metropolitan Borough Council,http://www.sandwell.gov.uk/info/200202/performance_and_spending/1079/payments_over_500,01-Oct-2021,Housing & Communities,VICTIM SUPPORT,Neighbourhoods,7917.50,Grant Payments,2122P07_CR00559,63106
Sandwell Metropolitan Borough Council,http://www.sandwell.gov.uk/info/200202/performance_and_spending/1079/payments_over_500,01-Oct-2021,Housing & Communities,YEW TREE & TAME BRIDGE COMMUNITY CENTRE,Neighbourhoods,8321.00,Grant Payments,2122P07_CR00560,108389
Sandwell Metropolitan Borough Council,http://www.sandwell.gov.uk/info/200202/performance_and_spending/1079/payments_over_500,01-Oct-2021,Housing & Communities,SANDWELL IRISH COMMUNITY ASSOCIATION,Neighbourhoods,8325.00,Grant Payments,2122P07_CR00561,37424
Sandwell Metropolitan Borough Council,http://www.sandwell.gov.uk/info/200202/performance_and_spending/1079/payments_over_500,01-Oct-2021,Housing & Communities,BLACK COUNTRY TOURING,Neighbourhoods,10555.00,Grant Payments,2122P07_CR00562,01661722
Sandwell Metropolitan Borough Council,http://www.sandwell.gov.uk/info/200202/performance_and_spending/1079/payments_over_500,01-Oct-2021,Housing & Communities,YEMENI COMMUNITY ASSOCIATION IN SANDWELL,Neighbourhoods,11472.50,Grant Payments,2122P07_CR00563,01711292
Sandwell Metropolitan Borough Council,http://www.sandwell.gov.uk/info/200202/performance_and_spending/1079/payments_over_500,01-Oct-2021,Housing & Communities,FRIAR PARK MILLENNIUM CENTRE,Neighbourhoods,12003.50,Grant Payments,2122P07_CR00564,28476
Sandwell Metropolitan Borough Council,http://www.sandwell.gov.uk/info/200202/performance_and_spending/1079/payments_over_500,01-Oct-2021,Housing & Communities,WARLEY COMMUNITY GYM,Neighbourhoods,12484.00,Grant Payments,2122P07_CR00565,01705613
Sandwell Metropolitan Borough Council,http://www.sandwell.gov.uk/info/200202/performance_and_spending/1079/payments_over_500,01-Oct-2021,Housing & Communities,SANDWELL COMMUNITY HUBS CO-OPERATIVE,Neighbourhoods,12535.00,Grant Payments,2122P07_CR00566,112422
Sandwell Metropolitan Borough Council,http://www.sandwell.gov.uk/info/200202/performance_and_spending/1079/payments_over_500,01-Oct-2021,Housing & Communities,SMETHWICK PAKISTANI MUSLIM ASSOCIATION LTD,Neighbourhoods,15917.50,Grant Payments,2122P07_CR00567,01715191
Sandwell Metropolitan Borough Council,http://www.sandwell.gov.uk/info/200202/performance_and_spending/1079/payments_over_500,01-Oct-2021,Housing & Communities,BANGLADESHI ISLAMIC CENTRE,Neighbourhoods,21628.00,Grant Payments,2122P07_CR00568,01722187
Sandwell Metropolitan Borough Council,http://www.sandwell.gov.uk/info/200202/performance_and_spending/1079/payments_over_500,01-Oct-2021,Housing & Communities,NORTH SMETHWICK DEVELOPMENT TRUST,Neighbourhoods,22936.00,Grant Payments,2122P07_CR00569,01346623
Sandwell Metropolitan Borough Council,http://www.sandwell.gov.uk/info/200202/performance_and_spending/1079/payments_over_500,01-Oct-2021,Housing & Communities,WEST SMETHWICK ENTERPRISE AND STEPPING STONES PRE-SCHOOL,Neighbourhoods,24623.00,Grant Payments,2122P07_CR00570,01722169
Sandwell Metropolitan Borough Council,http://www.sandwell.gov.uk/info/200202/performance_and_spending/1079/payments_over_500,01-Oct-2021,Housing & Communities,COMMUNITY ACTION PROJECT,Neighbourhoods,25265.50,Grant Payments,2122P07_CR00571,01702622
Sandwell Metropolitan Borough Council,http://www.sandwell.gov.uk/info/200202/performance_and_spending/1079/payments_over_500,01-Oct-2021,Housing & Communities,MULTISTORY,Neighbourhoods,28541.50,Grant Payments,2122P07_CR00572,6471
Sandwell Metropolitan Borough Council,http://www.sandwell.gov.uk/info/200202/performance_and_spending/1079/payments_over_500,01-Oct-2021,Housing & Communities,BANGLADESHI WOMEN'S ASSOCIATION LIMITED,Neighbourhoods,35438.50,Grant Payments,2122P07_CR00573,69648
Sandwell Metropolitan Borough Council,http://www.sandwell.gov.uk/info/200202/performance_and_spending/1079/payments_over_500,01-Oct-2021,Housing & Communities,WARLEY WOODS COMMUNITY TRUST                           01,Neighbourhoods,36244.00,Grant Payments,2122P07_CR00574,08588603
Sandwell Metropolitan Borough Council,http://www.sandwell.gov.uk/info/200202/performance_and_spending/1079/payments_over_500,01-Oct-2021,Housing & Communities,SHARP LTD,Neighbourhoods,36905.00,Grant Payments,2122P07_CR00575,01601345
Sandwell Metropolitan Borough Council,http://www.sandwell.gov.uk/info/200202/performance_and_spending/1079/payments_over_500,01-Oct-2021,Housing & Communities,ST ALBANS COMMUNITY ASSOCIATION,Neighbourhoods,50012.50,Grant Payments,2122P07_CR00576,08323189
Sandwell Metropolitan Borough Council,http://www.sandwell.gov.uk/info/200202/performance_and_spending/1079/payments_over_500,28-Oct-2021,Housing & Communities,SANDWELL CONSORTIUM CIC,Neighbourhoods,170285.00,Grant Payments,2122P07_CR00577,104616
Sandwell Metropolitan Borough Council,http://www.sandwell.gov.uk/info/200202/performance_and_spending/1079/payments_over_500,01-Oct-2021,Housing Revenue Account Capital,HIGGS LLP,Housing Revenue Account Capital,88554.20,CIP - Acquisition of Land & Existing Buildings,2122P07_CR00578,120965
Sandwell Metropolitan Borough Council,http://www.sandwell.gov.uk/info/200202/performance_and_spending/1079/payments_over_500,14-Oct-2021,Housing Revenue Account Capital,HIGGS LLP,Housing Revenue Account Capital,194908.00,CIP - Acquisition of Land & Existing Buildings,2122P07_CR00579,120965
Sandwell Metropolitan Borough Council,http://www.sandwell.gov.uk/info/200202/performance_and_spending/1079/payments_over_500,17-Oct-2021,Housing Revenue Account Capital,B & Q PLC,Housing Revenue Account Capital,609.18,"CIP - New Construction,Conversion, Enhancement & Reno",2122P07_CR00580,28651
Sandwell Metropolitan Borough Council,http://www.sandwell.gov.uk/info/200202/performance_and_spending/1079/payments_over_500,01-Oct-2021,Housing Revenue Account Capital,LOVELL PARTNERSHIPS  LTD,Housing Revenue Account Capital,20558.63,"CIP - New Construction,Conversion, Enhancement & Reno",2122P07_CR00581,77007398
Sandwell Metropolitan Borough Council,http://www.sandwell.gov.uk/info/200202/performance_and_spending/1079/payments_over_500,06-Oct-2021,Housing Revenue Account Capital,LOVELL PARTNERSHIPS  LTD,Housing Revenue Account Capital,46446.85,"CIP - New Construction,Conversion, Enhancement & Reno",2122P07_CR00582,77007398
Sandwell Metropolitan Borough Council,http://www.sandwell.gov.uk/info/200202/performance_and_spending/1079/payments_over_500,05-Oct-2021,Housing Revenue Account Capital,FORKERS LTD,Housing Revenue Account Capital,57514.40,"CIP - New Construction,Conversion, Enhancement & Reno",2122P07_CR00583,10149
Sandwell Metropolitan Borough Council,http://www.sandwell.gov.uk/info/200202/performance_and_spending/1079/payments_over_500,06-Oct-2021,Housing Revenue Account Capital,LOVELL PARTNERSHIPS  LTD,Housing Revenue Account Capital,94844.81,"CIP - New Construction,Conversion, Enhancement & Reno",2122P07_CR00584,77007398
Sandwell Metropolitan Borough Council,http://www.sandwell.gov.uk/info/200202/performance_and_spending/1079/payments_over_500,06-Oct-2021,Housing Revenue Account Capital,J.HARPER & SONS (LEOMINSTER) LIMITED,Housing Revenue Account Capital,99543.66,"CIP - New Construction,Conversion, Enhancement & Reno",2122P07_CR00585,111814
Sandwell Metropolitan Borough Council,http://www.sandwell.gov.uk/info/200202/performance_and_spending/1079/payments_over_500,08-Oct-2021,Housing Revenue Account Capital,VINCI CONSTRUCTION LTD,Housing Revenue Account Capital,107409.60,"CIP - New Construction,Conversion, Enhancement & Reno",2122P07_CR00586,36361
Sandwell Metropolitan Borough Council,http://www.sandwell.gov.uk/info/200202/performance_and_spending/1079/payments_over_500,01-Oct-2021,Housing Revenue Account Capital,J.HARPER & SONS (LEOMINSTER) LIMITED,Housing Revenue Account Capital,157215.28,"CIP - New Construction,Conversion, Enhancement & Reno",2122P07_CR00587,111814
Sandwell Metropolitan Borough Council,http://www.sandwell.gov.uk/info/200202/performance_and_spending/1079/payments_over_500,05-Oct-2021,Housing Revenue Account Capital,FORKERS LTD,Housing Revenue Account Capital,159748.30,"CIP - New Construction,Conversion, Enhancement & Reno",2122P07_CR00588,10149
Sandwell Metropolitan Borough Council,http://www.sandwell.gov.uk/info/200202/performance_and_spending/1079/payments_over_500,12-Oct-2021,Housing Revenue Account Capital,SEDDON CONSTRUCTION LIMITED,Housing Revenue Account Capital,269583.32,"CIP - New Construction,Conversion, Enhancement & Reno",2122P07_CR00589,132999
Sandwell Metropolitan Borough Council,http://www.sandwell.gov.uk/info/200202/performance_and_spending/1079/payments_over_500,05-Oct-2021,Housing Revenue Account Capital,SPELLER METCALFE MALVERN LIMITED,Housing Revenue Account Capital,378394.57,"CIP - New Construction,Conversion, Enhancement & Reno",2122P07_CR00590,92473
Sandwell Metropolitan Borough Council,http://www.sandwell.gov.uk/info/200202/performance_and_spending/1079/payments_over_500,05-Oct-2021,Housing Revenue Account Capital,SEDDON CONSTRUCTION LIMITED,Housing Revenue Account Capital,413949.06,"CIP - New Construction,Conversion, Enhancement & Reno",2122P07_CR00591,132999
Sandwell Metropolitan Borough Council,http://www.sandwell.gov.uk/info/200202/performance_and_spending/1079/payments_over_500,01-Oct-2021,Housing Revenue Account Capital,LOVELL PARTNERSHIPS  LTD,Housing Revenue Account Capital,469737.29,"CIP - New Construction,Conversion, Enhancement & Reno",2122P07_CR00592,77007398
Sandwell Metropolitan Borough Council,http://www.sandwell.gov.uk/info/200202/performance_and_spending/1079/payments_over_500,08-Oct-2021,Housing Revenue Account Capital,VINCI CONSTRUCTION LTD,Housing Revenue Account Capital,491088.09,"CIP - New Construction,Conversion, Enhancement & Reno",2122P07_CR00593,36361
Sandwell Metropolitan Borough Council,http://www.sandwell.gov.uk/info/200202/performance_and_spending/1079/payments_over_500,10-Oct-2021,Housing Revenue Account Capital,SELECT WINDOWS (HOME IMPROVEMENTS) LIMITED,Housing Revenue Account Capital,507.68,Contract Payments,2122P07_CR00594,42616
Sandwell Metropolitan Borough Council,http://www.sandwell.gov.uk/info/200202/performance_and_spending/1079/payments_over_500,08-Oct-2021,Housing Revenue Account Capital,SELECT WINDOWS (HOME IMPROVEMENTS) LIMITED,Housing Revenue Account Capital,539.12,Contract Payments,2122P07_CR00595,42616
Sandwell Metropolitan Borough Council,http://www.sandwell.gov.uk/info/200202/performance_and_spending/1079/payments_over_500,08-Oct-2021,Housing Revenue Account Capital,SELECT WINDOWS (HOME IMPROVEMENTS) LIMITED,Housing Revenue Account Capital,614.82,Contract Payments,2122P07_CR00596,42616
Sandwell Metropolitan Borough Council,http://www.sandwell.gov.uk/info/200202/performance_and_spending/1079/payments_over_500,06-Oct-2021,Housing Revenue Account Capital,SELECT WINDOWS (HOME IMPROVEMENTS) LIMITED,Housing Revenue Account Capital,675.00,Contract Payments,2122P07_CR00597,42616
Sandwell Metropolitan Borough Council,http://www.sandwell.gov.uk/info/200202/performance_and_spending/1079/payments_over_500,10-Oct-2021,Housing Revenue Account Capital,SELECT WINDOWS (HOME IMPROVEMENTS) LIMITED,Housing Revenue Account Capital,675.00,Contract Payments,2122P07_CR00598,42616
Sandwell Metropolitan Borough Council,http://www.sandwell.gov.uk/info/200202/performance_and_spending/1079/payments_over_500,01-Oct-2021,Housing Revenue Account Capital,DOLPHIN LIFTS MIDLANDS LTD,Housing Revenue Account Capital,1000.00,Deferred Charges/Grant Payments,2122P07_CR00599,123852
Sandwell Metropolitan Borough Council,http://www.sandwell.gov.uk/info/200202/performance_and_spending/1079/payments_over_500,01-Oct-2021,Housing Revenue Account Capital,DOLPHIN LIFTS MIDLANDS LTD,Housing Revenue Account Capital,1094.35,Deferred Charges/Grant Payments,2122P07_CR00600,123852
Sandwell Metropolitan Borough Council,http://www.sandwell.gov.uk/info/200202/performance_and_spending/1079/payments_over_500,04-Oct-2021,Housing Revenue Account Capital,PR PROPERTY MAINTENANCE,Housing Revenue Account Capital,1395.00,Deferred Charges/Grant Payments,2122P07_CR00601,33836
Sandwell Metropolitan Borough Council,http://www.sandwell.gov.uk/info/200202/performance_and_spending/1079/payments_over_500,05-Oct-2021,Housing Revenue Account Capital,DOLPHIN LIFTS MIDLANDS LTD,Housing Revenue Account Capital,1398.73,Deferred Charges/Grant Payments,2122P07_CR00602,123852
Sandwell Metropolitan Borough Council,http://www.sandwell.gov.uk/info/200202/performance_and_spending/1079/payments_over_500,01-Oct-2021,Housing Revenue Account Capital,PR PROPERTY MAINTENANCE,Housing Revenue Account Capital,1650.00,Deferred Charges/Grant Payments,2122P07_CR00603,33836
Sandwell Metropolitan Borough Council,http://www.sandwell.gov.uk/info/200202/performance_and_spending/1079/payments_over_500,20-Oct-2021,Housing Revenue Account Capital,AXIS EUROPE PLC                                                           02,Housing Revenue Account Capital,4464.50,Deferred Charges/Grant Payments,2122P07_CR00604,64946
Sandwell Metropolitan Borough Council,http://www.sandwell.gov.uk/info/200202/performance_and_spending/1079/payments_over_500,01-Oct-2021,Housing Revenue Account Capital,PR PROPERTY MAINTENANCE,Housing Revenue Account Capital,5604.80,Deferred Charges/Grant Payments,2122P07_CR00605,33836
Sandwell Metropolitan Borough Council,http://www.sandwell.gov.uk/info/200202/performance_and_spending/1079/payments_over_500,01-Oct-2021,Housing Revenue Account Capital,PR PROPERTY MAINTENANCE,Housing Revenue Account Capital,5886.26,Deferred Charges/Grant Payments,2122P07_CR00606,33836
Sandwell Metropolitan Borough Council,http://www.sandwell.gov.uk/info/200202/performance_and_spending/1079/payments_over_500,01-Oct-2021,Housing Revenue Account Capital,PR PROPERTY MAINTENANCE,Housing Revenue Account Capital,7249.40,Deferred Charges/Grant Payments,2122P07_CR00607,33836
Sandwell Metropolitan Borough Council,http://www.sandwell.gov.uk/info/200202/performance_and_spending/1079/payments_over_500,01-Oct-2021,Housing Revenue Account Capital,PR PROPERTY MAINTENANCE,Housing Revenue Account Capital,8926.51,Deferred Charges/Grant Payments,2122P07_CR00608,33836
Sandwell Metropolitan Borough Council,http://www.sandwell.gov.uk/info/200202/performance_and_spending/1079/payments_over_500,01-Oct-2021,Housing Revenue Account Capital,PR PROPERTY MAINTENANCE,Housing Revenue Account Capital,9462.43,Deferred Charges/Grant Payments,2122P07_CR00609,33836
Sandwell Metropolitan Borough Council,http://www.sandwell.gov.uk/info/200202/performance_and_spending/1079/payments_over_500,09-Oct-2021,Housing Revenue Account Capital,TERRY GROUP LIMITED,Housing Revenue Account Capital,12255.00,Deferred Charges/Grant Payments,2122P07_CR00610,77002029
Sandwell Metropolitan Borough Council,http://www.sandwell.gov.uk/info/200202/performance_and_spending/1079/payments_over_500,01-Oct-2021,Housing Revenue Account Capital,TERRY GROUP LIMITED,Housing Revenue Account Capital,12255.00,Deferred Charges/Grant Payments,2122P07_CR00611,77002029
Sandwell Metropolitan Borough Council,http://www.sandwell.gov.uk/info/200202/performance_and_spending/1079/payments_over_500,04-Oct-2021,Housing Revenue Account Capital,DOLPHIN LIFTS MIDLANDS LTD,Housing Revenue Account Capital,12474.46,Deferred Charges/Grant Payments,2122P07_CR00612,123852
Sandwell Metropolitan Borough Council,http://www.sandwell.gov.uk/info/200202/performance_and_spending/1079/payments_over_500,01-Oct-2021,Housing Revenue Account Capital,PR PROPERTY MAINTENANCE,Housing Revenue Account Capital,18629.24,Deferred Charges/Grant Payments,2122P07_CR00613,33836
Sandwell Metropolitan Borough Council,http://www.sandwell.gov.uk/info/200202/performance_and_spending/1079/payments_over_500,01-Oct-2021,Housing Revenue Account Capital,TERRY GROUP LIMITED,Housing Revenue Account Capital,19259.00,Deferred Charges/Grant Payments,2122P07_CR00614,77002029
Sandwell Metropolitan Borough Council,http://www.sandwell.gov.uk/info/200202/performance_and_spending/1079/payments_over_500,20-Oct-2021,Housing Revenue Account Capital,PR PROPERTY MAINTENANCE,Housing Revenue Account Capital,19451.17,Deferred Charges/Grant Payments,2122P07_CR00615,33836
Sandwell Metropolitan Borough Council,http://www.sandwell.gov.uk/info/200202/performance_and_spending/1079/payments_over_500,20-Oct-2021,Housing Revenue Account Capital,PR PROPERTY MAINTENANCE,Housing Revenue Account Capital,21518.63,Deferred Charges/Grant Payments,2122P07_CR00616,33836
Sandwell Metropolitan Borough Council,http://www.sandwell.gov.uk/info/200202/performance_and_spending/1079/payments_over_500,01-Oct-2021,Housing Revenue Account Capital,PR PROPERTY MAINTENANCE,Housing Revenue Account Capital,32531.85,Deferred Charges/Grant Payments,2122P07_CR00617,33836
Sandwell Metropolitan Borough Council,http://www.sandwell.gov.uk/info/200202/performance_and_spending/1079/payments_over_500,01-Oct-2021,Housing Revenue Account Capital,FRASER WOOD (MIDLANDS) LIMITED,Housing Revenue Account Capital,9335.00,Externally Purchased Professional Services ,2122P07_CR00618,57157
Sandwell Metropolitan Borough Council,http://www.sandwell.gov.uk/info/200202/performance_and_spending/1079/payments_over_500,01-Oct-2021,Housing Revenue Account Capital,POWRED HEATING COMPONENTS LIMITED,Housing Revenue Account Capital,1819.26,Materials & Consumables,2122P07_CR00619,133978
Sandwell Metropolitan Borough Council,http://www.sandwell.gov.uk/info/200202/performance_and_spending/1079/payments_over_500,01-Oct-2021,Housing Revenue Account Capital,AA PROJECTS LIMITED,Housing Revenue Account Capital,960.00,Deferred Charges/Grant Payments,2122P07_CR00620,116074
Sandwell Metropolitan Borough Council,http://www.sandwell.gov.uk/info/200202/performance_and_spending/1079/payments_over_500,01-Oct-2021,Housing Revenue Account Capital,ECLIPSE ACCESS SOLUTIONS LTD,Housing Revenue Account Capital,2844.00,Deferred Charges/Grant Payments,2122P07_CR00621,131248
Sandwell Metropolitan Borough Council,http://www.sandwell.gov.uk/info/200202/performance_and_spending/1079/payments_over_500,01-Oct-2021,Housing Revenue Account Capital,ECLIPSE ACCESS SOLUTIONS LTD,Housing Revenue Account Capital,3384.00,Deferred Charges/Grant Payments,2122P07_CR00622,131248
Sandwell Metropolitan Borough Council,http://www.sandwell.gov.uk/info/200202/performance_and_spending/1079/payments_over_500,01-Oct-2021,Housing Revenue Account Capital,FORMBUILD INSTALLATIONS LTD,Housing Revenue Account Capital,4407.05,Deferred Charges/Grant Payments,2122P07_CR00623,153985
Sandwell Metropolitan Borough Council,http://www.sandwell.gov.uk/info/200202/performance_and_spending/1079/payments_over_500,22-Oct-2021,Housing Revenue Account Capital,FORMBUILD INSTALLATIONS LTD,Housing Revenue Account Capital,8528.15,Deferred Charges/Grant Payments,2122P07_CR00624,153985
Sandwell Metropolitan Borough Council,http://www.sandwell.gov.uk/info/200202/performance_and_spending/1079/payments_over_500,21-Oct-2021,Individual School Budgets With Inclusion,JENNIE THOMAS,Individual School Budgets With Inclusion,575.50,Grant Payments,2122P07_CR00625,134322
Sandwell Metropolitan Borough Council,http://www.sandwell.gov.uk/info/200202/performance_and_spending/1079/payments_over_500,21-Oct-2021,Individual School Budgets With Inclusion,CARA PRATT,Individual School Budgets With Inclusion,686.70,Grant Payments,2122P07_CR00626,140537
Sandwell Metropolitan Borough Council,http://www.sandwell.gov.uk/info/200202/performance_and_spending/1079/payments_over_500,21-Oct-2021,Individual School Budgets With Inclusion,CAROLINE HENDERSON,Individual School Budgets With Inclusion,686.70,Grant Payments,2122P07_CR00627,129980
Sandwell Metropolitan Borough Council,http://www.sandwell.gov.uk/info/200202/performance_and_spending/1079/payments_over_500,21-Oct-2021,Individual School Budgets With Inclusion,MAC-E-MOOZ DAYCARE LTD,Individual School Budgets With Inclusion,718.20,Grant Payments,2122P07_CR00628,112058
Sandwell Metropolitan Borough Council,http://www.sandwell.gov.uk/info/200202/performance_and_spending/1079/payments_over_500,21-Oct-2021,Individual School Budgets With Inclusion,HAYLEY GODDARD,Individual School Budgets With Inclusion,726.07,Grant Payments,2122P07_CR00629,139835
Sandwell Metropolitan Borough Council,http://www.sandwell.gov.uk/info/200202/performance_and_spending/1079/payments_over_500,21-Oct-2021,Individual School Budgets With Inclusion,ABIGAIL CRUMPTON,Individual School Budgets With Inclusion,902.94,Grant Payments,2122P07_CR00630,130863
Sandwell Metropolitan Borough Council,http://www.sandwell.gov.uk/info/200202/performance_and_spending/1079/payments_over_500,21-Oct-2021,Individual School Budgets With Inclusion,GEMMA ADAMS,Individual School Budgets With Inclusion,915.60,Grant Payments,2122P07_CR00631,129661
Sandwell Metropolitan Borough Council,http://www.sandwell.gov.uk/info/200202/performance_and_spending/1079/payments_over_500,21-Oct-2021,Individual School Budgets With Inclusion,LISA HINTON,Individual School Budgets With Inclusion,915.60,Grant Payments,2122P07_CR00632,92923
Sandwell Metropolitan Borough Council,http://www.sandwell.gov.uk/info/200202/performance_and_spending/1079/payments_over_500,21-Oct-2021,Individual School Budgets With Inclusion,TULIP DAY NURSERY LTD,Individual School Budgets With Inclusion,915.60,Grant Payments,2122P07_CR00633,152250
Sandwell Metropolitan Borough Council,http://www.sandwell.gov.uk/info/200202/performance_and_spending/1079/payments_over_500,21-Oct-2021,Individual School Budgets With Inclusion,CATHERINE HOUSE DAY NURSERY,Individual School Budgets With Inclusion,926.10,Grant Payments,2122P07_CR00634,08587767
Sandwell Metropolitan Borough Council,http://www.sandwell.gov.uk/info/200202/performance_and_spending/1079/payments_over_500,21-Oct-2021,Individual School Budgets With Inclusion,GAIL FAY PREECE,Individual School Budgets With Inclusion,936.60,Grant Payments,2122P07_CR00635,61415
Sandwell Metropolitan Borough Council,http://www.sandwell.gov.uk/info/200202/performance_and_spending/1079/payments_over_500,21-Oct-2021,Individual School Budgets With Inclusion,DAWN PERRY,Individual School Budgets With Inclusion,968.10,Grant Payments,2122P07_CR00636,118604
Sandwell Metropolitan Borough Council,http://www.sandwell.gov.uk/info/200202/performance_and_spending/1079/payments_over_500,21-Oct-2021,Individual School Budgets With Inclusion,ROWINA WINDSOR,Individual School Budgets With Inclusion,1048.77,Grant Payments,2122P07_CR00637,138305
Sandwell Metropolitan Borough Council,http://www.sandwell.gov.uk/info/200202/performance_and_spending/1079/payments_over_500,21-Oct-2021,Individual School Budgets With Inclusion,VICTORIA HARRISON,Individual School Budgets With Inclusion,1144.50,Grant Payments,2122P07_CR00638,127111
Sandwell Metropolitan Borough Council,http://www.sandwell.gov.uk/info/200202/performance_and_spending/1079/payments_over_500,21-Oct-2021,Individual School Budgets With Inclusion,JAQUELINE CHANCE,Individual School Budgets With Inclusion,1157.62,Grant Payments,2122P07_CR00639,123463
Sandwell Metropolitan Borough Council,http://www.sandwell.gov.uk/info/200202/performance_and_spending/1079/payments_over_500,21-Oct-2021,Individual School Budgets With Inclusion,WENDY MAXWELL,Individual School Budgets With Inclusion,1157.62,Grant Payments,2122P07_CR00640,37344
Sandwell Metropolitan Borough Council,http://www.sandwell.gov.uk/info/200202/performance_and_spending/1079/payments_over_500,21-Oct-2021,Individual School Budgets With Inclusion,VANESSA BILLINGSLEY,Individual School Budgets With Inclusion,1170.75,Grant Payments,2122P07_CR00641,125216
Sandwell Metropolitan Borough Council,http://www.sandwell.gov.uk/info/200202/performance_and_spending/1079/payments_over_500,21-Oct-2021,Individual School Budgets With Inclusion,TWO STEPS PRE-SCHOOL,Individual School Budgets With Inclusion,1170.75,Grant Payments,2122P07_CR00642,109186
Sandwell Metropolitan Borough Council,http://www.sandwell.gov.uk/info/200202/performance_and_spending/1079/payments_over_500,21-Oct-2021,Individual School Budgets With Inclusion,JOYFUL CHILDRENS NURSERY,Individual School Budgets With Inclusion,1278.90,Grant Payments,2122P07_CR00643,150961
Sandwell Metropolitan Borough Council,http://www.sandwell.gov.uk/info/200202/performance_and_spending/1079/payments_over_500,21-Oct-2021,Individual School Budgets With Inclusion,AL KAHIR SCHOOL,Individual School Budgets With Inclusion,1639.05,Grant Payments,2122P07_CR00644,128728
Sandwell Metropolitan Borough Council,http://www.sandwell.gov.uk/info/200202/performance_and_spending/1079/payments_over_500,21-Oct-2021,Individual School Budgets With Inclusion,LITTLE ANGELS DAY NURSERY LIMITED,Individual School Budgets With Inclusion,1639.05,Grant Payments,2122P07_CR00645,10207
Sandwell Metropolitan Borough Council,http://www.sandwell.gov.uk/info/200202/performance_and_spending/1079/payments_over_500,21-Oct-2021,Individual School Budgets With Inclusion,JENNIFER LOUISE LEATHERLAND,Individual School Budgets With Inclusion,1852.20,Grant Payments,2122P07_CR00646,131850
Sandwell Metropolitan Borough Council,http://www.sandwell.gov.uk/info/200202/performance_and_spending/1079/payments_over_500,21-Oct-2021,Individual School Budgets With Inclusion,LITTLE ACADEMY NURSERY,Individual School Budgets With Inclusion,2107.35,Grant Payments,2122P07_CR00647,81904
Sandwell Metropolitan Borough Council,http://www.sandwell.gov.uk/info/200202/performance_and_spending/1079/payments_over_500,21-Oct-2021,Individual School Budgets With Inclusion,N & K VARMA LIMITED T/A (KIDDIES PLAYHOUSE TIPTON),Individual School Budgets With Inclusion,2107.35,Grant Payments,2122P07_CR00648,26124
Sandwell Metropolitan Borough Council,http://www.sandwell.gov.uk/info/200202/performance_and_spending/1079/payments_over_500,21-Oct-2021,Individual School Budgets With Inclusion,LITTLE LEGEND NURSERIES LTD,Individual School Budgets With Inclusion,2236.50,Grant Payments,2122P07_CR00649,117890
Sandwell Metropolitan Borough Council,http://www.sandwell.gov.uk/info/200202/performance_and_spending/1079/payments_over_500,21-Oct-2021,Individual School Budgets With Inclusion,FERNDALE PRIMARY SCHOOL                                    01,Individual School Budgets With Inclusion,2289.00,Grant Payments,2122P07_CR00650,11562
Sandwell Metropolitan Borough Council,http://www.sandwell.gov.uk/info/200202/performance_and_spending/1079/payments_over_500,21-Oct-2021,Individual School Budgets With Inclusion,LITTLE STEPPERS,Individual School Budgets With Inclusion,2323.44,Grant Payments,2122P07_CR00651,120240
Sandwell Metropolitan Borough Council,http://www.sandwell.gov.uk/info/200202/performance_and_spending/1079/payments_over_500,21-Oct-2021,Individual School Budgets With Inclusion,BRIGHT LIGHTS DAY NURSERY,Individual School Budgets With Inclusion,2793.00,Grant Payments,2122P07_CR00652,89877
Sandwell Metropolitan Borough Council,http://www.sandwell.gov.uk/info/200202/performance_and_spending/1079/payments_over_500,21-Oct-2021,Individual School Budgets With Inclusion,ADVENTURE QUEST (GREAT BRIDGE) LTD,Individual School Budgets With Inclusion,2975.70,Grant Payments,2122P07_CR00653,153563
Sandwell Metropolitan Borough Council,http://www.sandwell.gov.uk/info/200202/performance_and_spending/1079/payments_over_500,21-Oct-2021,Individual School Budgets With Inclusion,TIP TOP DAY NURSERY WEDNESBURY,Individual School Budgets With Inclusion,2975.70,Grant Payments,2122P07_CR00654,147082
Sandwell Metropolitan Borough Council,http://www.sandwell.gov.uk/info/200202/performance_and_spending/1079/payments_over_500,21-Oct-2021,Individual School Budgets With Inclusion,JUNIPER'S PRESCHOOL,Individual School Budgets With Inclusion,3180.45,Grant Payments,2122P07_CR00655,154579
Sandwell Metropolitan Borough Council,http://www.sandwell.gov.uk/info/200202/performance_and_spending/1079/payments_over_500,21-Oct-2021,Individual School Budgets With Inclusion,LITTLE VALERS PRE SCHOOL,Individual School Budgets With Inclusion,3204.60,Grant Payments,2122P07_CR00656,99107
Sandwell Metropolitan Borough Council,http://www.sandwell.gov.uk/info/200202/performance_and_spending/1079/payments_over_500,21-Oct-2021,Individual School Budgets With Inclusion,BLUEBELLS DAY NURSERY,Individual School Budgets With Inclusion,3241.35,Grant Payments,2122P07_CR00657,01721314
Sandwell Metropolitan Borough Council,http://www.sandwell.gov.uk/info/200202/performance_and_spending/1079/payments_over_500,21-Oct-2021,Individual School Budgets With Inclusion,KANGAROO POUCH CHARLEMONT,Individual School Budgets With Inclusion,3278.10,Grant Payments,2122P07_CR00658,117283
Sandwell Metropolitan Borough Council,http://www.sandwell.gov.uk/info/200202/performance_and_spending/1079/payments_over_500,21-Oct-2021,Individual School Budgets With Inclusion,KANGAROO POUCH LIMITED,Individual School Budgets With Inclusion,3512.25,Grant Payments,2122P07_CR00659,106981
Sandwell Metropolitan Borough Council,http://www.sandwell.gov.uk/info/200202/performance_and_spending/1079/payments_over_500,21-Oct-2021,Individual School Budgets With Inclusion,ST MICHAELS DAY NURSERY,Individual School Budgets With Inclusion,3872.40,Grant Payments,2122P07_CR00660,01698538
Sandwell Metropolitan Borough Council,http://www.sandwell.gov.uk/info/200202/performance_and_spending/1079/payments_over_500,21-Oct-2021,Individual School Budgets With Inclusion,KANGAROO POUCH AT GREAT BRIDGE,Individual School Budgets With Inclusion,3935.92,Grant Payments,2122P07_CR00661,129771
Sandwell Metropolitan Borough Council,http://www.sandwell.gov.uk/info/200202/performance_and_spending/1079/payments_over_500,21-Oct-2021,Individual School Budgets With Inclusion,BLOXCIDGE HOUSE DAY NURSERY,Individual School Budgets With Inclusion,3935.92,Grant Payments,2122P07_CR00662,82862
Sandwell Metropolitan Borough Council,http://www.sandwell.gov.uk/info/200202/performance_and_spending/1079/payments_over_500,21-Oct-2021,Individual School Budgets With Inclusion,PITTA PATTA DAYCARE,Individual School Budgets With Inclusion,3980.55,Grant Payments,2122P07_CR00663,114742
Sandwell Metropolitan Borough Council,http://www.sandwell.gov.uk/info/200202/performance_and_spending/1079/payments_over_500,21-Oct-2021,Individual School Budgets With Inclusion,THE TODDLER HOUSE LIMITED,Individual School Budgets With Inclusion,3980.55,Grant Payments,2122P07_CR00664,122166
Sandwell Metropolitan Borough Council,http://www.sandwell.gov.uk/info/200202/performance_and_spending/1079/payments_over_500,21-Oct-2021,Individual School Budgets With Inclusion,SADWICA DAY NURSERY,Individual School Budgets With Inclusion,3990.00,Grant Payments,2122P07_CR00665,01667892
Sandwell Metropolitan Borough Council,http://www.sandwell.gov.uk/info/200202/performance_and_spending/1079/payments_over_500,21-Oct-2021,Individual School Budgets With Inclusion,DAFFODILS NURSERY LTD,Individual School Budgets With Inclusion,4069.80,Grant Payments,2122P07_CR00666,120066
Sandwell Metropolitan Borough Council,http://www.sandwell.gov.uk/info/200202/performance_and_spending/1079/payments_over_500,21-Oct-2021,Individual School Budgets With Inclusion,SANTOS DAY NURSERIES,Individual School Budgets With Inclusion,4120.20,Grant Payments,2122P07_CR00667,129262
Sandwell Metropolitan Borough Council,http://www.sandwell.gov.uk/info/200202/performance_and_spending/1079/payments_over_500,21-Oct-2021,Individual School Budgets With Inclusion,PLAYHOUSE DAY NURSERY,Individual School Budgets With Inclusion,4167.45,Grant Payments,2122P07_CR00668,01586669
Sandwell Metropolitan Borough Council,http://www.sandwell.gov.uk/info/200202/performance_and_spending/1079/payments_over_500,21-Oct-2021,Individual School Budgets With Inclusion,STEPPING STONES NURSERY,Individual School Budgets With Inclusion,4260.06,Grant Payments,2122P07_CR00669,50029
Sandwell Metropolitan Borough Council,http://www.sandwell.gov.uk/info/200202/performance_and_spending/1079/payments_over_500,21-Oct-2021,Individual School Budgets With Inclusion,LITTLE LEARNERS LTD,Individual School Budgets With Inclusion,4548.60,Grant Payments,2122P07_CR00670,01424133
Sandwell Metropolitan Borough Council,http://www.sandwell.gov.uk/info/200202/performance_and_spending/1079/payments_over_500,21-Oct-2021,Individual School Budgets With Inclusion,BUSY BEE NURSERY,Individual School Budgets With Inclusion,4683.00,Grant Payments,2122P07_CR00671,01222577
Sandwell Metropolitan Borough Council,http://www.sandwell.gov.uk/info/200202/performance_and_spending/1079/payments_over_500,21-Oct-2021,Individual School Budgets With Inclusion,ROOTS & SHOOTS PLAYGROUP,Individual School Budgets With Inclusion,4804.80,Grant Payments,2122P07_CR00672,75502
Sandwell Metropolitan Borough Council,http://www.sandwell.gov.uk/info/200202/performance_and_spending/1079/payments_over_500,21-Oct-2021,Individual School Budgets With Inclusion,FATIMA DAY NURSERY,Individual School Budgets With Inclusion,5093.55,Grant Payments,2122P07_CR00673,131343
Sandwell Metropolitan Borough Council,http://www.sandwell.gov.uk/info/200202/performance_and_spending/1079/payments_over_500,21-Oct-2021,Individual School Budgets With Inclusion,UNITED KIDS LIMITED,Individual School Budgets With Inclusion,5093.55,Grant Payments,2122P07_CR00674,136360
Sandwell Metropolitan Borough Council,http://www.sandwell.gov.uk/info/200202/performance_and_spending/1079/payments_over_500,21-Oct-2021,Individual School Budgets With Inclusion,KANGAROO POUCH AT TIVIDALE,Individual School Budgets With Inclusion,5325.07,Grant Payments,2122P07_CR00675,113715
Sandwell Metropolitan Borough Council,http://www.sandwell.gov.uk/info/200202/performance_and_spending/1079/payments_over_500,21-Oct-2021,Individual School Budgets With Inclusion,LITTLE SAPLINGS CHILDCARE CENTRES,Individual School Budgets With Inclusion,5385.45,Grant Payments,2122P07_CR00676,131043
Sandwell Metropolitan Borough Council,http://www.sandwell.gov.uk/info/200202/performance_and_spending/1079/payments_over_500,21-Oct-2021,Individual School Budgets With Inclusion,FIRST STEPS DAY NURSERY,Individual School Budgets With Inclusion,5385.45,Grant Payments,2122P07_CR00677,51155
Sandwell Metropolitan Borough Council,http://www.sandwell.gov.uk/info/200202/performance_and_spending/1079/payments_over_500,21-Oct-2021,Individual School Budgets With Inclusion,TIPTON EXPLORERS NURSERY,Individual School Budgets With Inclusion,5385.45,Grant Payments,2122P07_CR00678,132351
Sandwell Metropolitan Borough Council,http://www.sandwell.gov.uk/info/200202/performance_and_spending/1079/payments_over_500,21-Oct-2021,Individual School Budgets With Inclusion,HAPPY DAYS NURSERY (GREETS GREEN),Individual School Budgets With Inclusion,5506.20,Grant Payments,2122P07_CR00679,125840
Sandwell Metropolitan Borough Council,http://www.sandwell.gov.uk/info/200202/performance_and_spending/1079/payments_over_500,21-Oct-2021,Individual School Budgets With Inclusion,TIPTON NURSERY,Individual School Budgets With Inclusion,5506.20,Grant Payments,2122P07_CR00680,89881
Sandwell Metropolitan Borough Council,http://www.sandwell.gov.uk/info/200202/performance_and_spending/1079/payments_over_500,21-Oct-2021,Individual School Budgets With Inclusion,CAP DAY NURSERY,Individual School Budgets With Inclusion,5808.60,Grant Payments,2122P07_CR00681,51154
Sandwell Metropolitan Borough Council,http://www.sandwell.gov.uk/info/200202/performance_and_spending/1079/payments_over_500,21-Oct-2021,Individual School Budgets With Inclusion,MINI MONKEYS LTD,Individual School Budgets With Inclusion,6019.65,Grant Payments,2122P07_CR00682,114818
Sandwell Metropolitan Borough Council,http://www.sandwell.gov.uk/info/200202/performance_and_spending/1079/payments_over_500,21-Oct-2021,Individual School Budgets With Inclusion,MINNS LIMITED,Individual School Budgets With Inclusion,6087.90,Grant Payments,2122P07_CR00683,120067
Sandwell Metropolitan Borough Council,http://www.sandwell.gov.uk/info/200202/performance_and_spending/1079/payments_over_500,21-Oct-2021,Individual School Budgets With Inclusion,SPON LANE DAY NURSERY LIMITED,Individual School Budgets With Inclusion,6224.40,Grant Payments,2122P07_CR00684,127024
Sandwell Metropolitan Borough Council,http://www.sandwell.gov.uk/info/200202/performance_and_spending/1079/payments_over_500,21-Oct-2021,Individual School Budgets With Inclusion,SMARTY PANTS @ LIGHTWOODS HOUSE LTD,Individual School Budgets With Inclusion,6251.17,Grant Payments,2122P07_CR00685,130645
Sandwell Metropolitan Borough Council,http://www.sandwell.gov.uk/info/200202/performance_and_spending/1079/payments_over_500,21-Oct-2021,Individual School Budgets With Inclusion,TINY TOEZ LIMITED,Individual School Budgets With Inclusion,6409.20,Grant Payments,2122P07_CR00686,23618
Sandwell Metropolitan Borough Council,http://www.sandwell.gov.uk/info/200202/performance_and_spending/1079/payments_over_500,21-Oct-2021,Individual School Budgets With Inclusion,FIREFLIES NURSERY LIMITED,Individual School Budgets With Inclusion,6556.20,Grant Payments,2122P07_CR00687,124120
Sandwell Metropolitan Borough Council,http://www.sandwell.gov.uk/info/200202/performance_and_spending/1079/payments_over_500,21-Oct-2021,Individual School Budgets With Inclusion,PERRYFIELDS PRE SCHOOL,Individual School Budgets With Inclusion,6577.06,Grant Payments,2122P07_CR00688,18879
Sandwell Metropolitan Borough Council,http://www.sandwell.gov.uk/info/200202/performance_and_spending/1079/payments_over_500,21-Oct-2021,Individual School Budgets With Inclusion,BOOKWORMS DAYCARE LIMITED,Individual School Budgets With Inclusion,6714.22,Grant Payments,2122P07_CR00689,114741
Sandwell Metropolitan Borough Council,http://www.sandwell.gov.uk/info/200202/performance_and_spending/1079/payments_over_500,21-Oct-2021,Individual School Budgets With Inclusion,THE PATCH DAY NURSERY,Individual School Budgets With Inclusion,6790.35,Grant Payments,2122P07_CR00690,126020
Sandwell Metropolitan Borough Council,http://www.sandwell.gov.uk/info/200202/performance_and_spending/1079/payments_over_500,21-Oct-2021,Individual School Budgets With Inclusion,5 STAR DAY NURSERY - OLDBURY,Individual School Budgets With Inclusion,6945.75,Grant Payments,2122P07_CR00691,120730
Sandwell Metropolitan Borough Council,http://www.sandwell.gov.uk/info/200202/performance_and_spending/1079/payments_over_500,21-Oct-2021,Individual School Budgets With Inclusion,MOORLANDS LITTLE LEARNERS PLAYGROUP,Individual School Budgets With Inclusion,7177.27,Grant Payments,2122P07_CR00692,46390
Sandwell Metropolitan Borough Council,http://www.sandwell.gov.uk/info/200202/performance_and_spending/1079/payments_over_500,21-Oct-2021,Individual School Budgets With Inclusion,UNITED KIDS CHILDCARE,Individual School Budgets With Inclusion,7258.65,Grant Payments,2122P07_CR00693,134806
Sandwell Metropolitan Borough Council,http://www.sandwell.gov.uk/info/200202/performance_and_spending/1079/payments_over_500,21-Oct-2021,Individual School Budgets With Inclusion,GNG NURSERY,Individual School Budgets With Inclusion,7258.65,Grant Payments,2122P07_CR00694,114805
Sandwell Metropolitan Borough Council,http://www.sandwell.gov.uk/info/200202/performance_and_spending/1079/payments_over_500,21-Oct-2021,Individual School Budgets With Inclusion,THE FAMILY NURSERY COMPANY LTD,Individual School Budgets With Inclusion,7258.65,Grant Payments,2122P07_CR00695,89879
Sandwell Metropolitan Borough Council,http://www.sandwell.gov.uk/info/200202/performance_and_spending/1079/payments_over_500,21-Oct-2021,Individual School Budgets With Inclusion,FIRST STEPS OLDBURY,Individual School Budgets With Inclusion,7408.80,Grant Payments,2122P07_CR00696,118886
Sandwell Metropolitan Borough Council,http://www.sandwell.gov.uk/info/200202/performance_and_spending/1079/payments_over_500,21-Oct-2021,Individual School Budgets With Inclusion,LILLIPUT LODGE CHILDRENS DAY NURSERY,Individual School Budgets With Inclusion,7408.80,Grant Payments,2122P07_CR00697,2980
Sandwell Metropolitan Borough Council,http://www.sandwell.gov.uk/info/200202/performance_and_spending/1079/payments_over_500,21-Oct-2021,Individual School Budgets With Inclusion,TIDDLYWINKS KIDDYS NURSERY LIMITED,Individual School Budgets With Inclusion,7408.80,Grant Payments,2122P07_CR00698,110667
Sandwell Metropolitan Borough Council,http://www.sandwell.gov.uk/info/200202/performance_and_spending/1079/payments_over_500,21-Oct-2021,Individual School Budgets With Inclusion,LOLA BELLES PRIVATE DAY NURSERY,Individual School Budgets With Inclusion,7492.80,Grant Payments,2122P07_CR00699,89271
Sandwell Metropolitan Borough Council,http://www.sandwell.gov.uk/info/200202/performance_and_spending/1079/payments_over_500,21-Oct-2021,Individual School Budgets With Inclusion,5 STAR DAY NURSERY LIMITED,Individual School Budgets With Inclusion,7553.70,Grant Payments,2122P07_CR00700,105382
Sandwell Metropolitan Borough Council,http://www.sandwell.gov.uk/info/200202/performance_and_spending/1079/payments_over_500,21-Oct-2021,Individual School Budgets With Inclusion,ABC DAY NURSERY & PRE SCHOOL LTD,Individual School Budgets With Inclusion,7782.60,Grant Payments,2122P07_CR00701,01472823
Sandwell Metropolitan Borough Council,http://www.sandwell.gov.uk/info/200202/performance_and_spending/1079/payments_over_500,21-Oct-2021,Individual School Budgets With Inclusion,CONIFERS DAY NURSERY LTD,Individual School Budgets With Inclusion,7871.85,Grant Payments,2122P07_CR00702,131957
Sandwell Metropolitan Borough Council,http://www.sandwell.gov.uk/info/200202/performance_and_spending/1079/payments_over_500,21-Oct-2021,Individual School Budgets With Inclusion,RARE WOOD LIMITED,Individual School Budgets With Inclusion,7900.20,Grant Payments,2122P07_CR00703,20167
Sandwell Metropolitan Borough Council,http://www.sandwell.gov.uk/info/200202/performance_and_spending/1079/payments_over_500,21-Oct-2021,Individual School Budgets With Inclusion,BANANA MOON DAY NURSERY,Individual School Budgets With Inclusion,8195.25,Grant Payments,2122P07_CR00704,124220
Sandwell Metropolitan Borough Council,http://www.sandwell.gov.uk/info/200202/performance_and_spending/1079/payments_over_500,21-Oct-2021,Individual School Budgets With Inclusion,ROWLEY VILLAGE DAY NURSERY,Individual School Budgets With Inclusion,8334.90,Grant Payments,2122P07_CR00705,24228
Sandwell Metropolitan Borough Council,http://www.sandwell.gov.uk/info/200202/performance_and_spending/1079/payments_over_500,21-Oct-2021,Individual School Budgets With Inclusion,HUMPTY DUMPTYS DAY NURSERY,Individual School Budgets With Inclusion,8429.40,Grant Payments,2122P07_CR00706,08510771
Sandwell Metropolitan Borough Council,http://www.sandwell.gov.uk/info/200202/performance_and_spending/1079/payments_over_500,21-Oct-2021,Individual School Budgets With Inclusion,RAK DAY CARE LTD T/A HAPPY VALLEY PRE SCHOOL LTD,Individual School Budgets With Inclusion,8429.40,Grant Payments,2122P07_CR00707,01572212
Sandwell Metropolitan Borough Council,http://www.sandwell.gov.uk/info/200202/performance_and_spending/1079/payments_over_500,21-Oct-2021,Individual School Budgets With Inclusion,FAIRYTALES NURSERY LTD,Individual School Budgets With Inclusion,8473.81,Grant Payments,2122P07_CR00708,106247
Sandwell Metropolitan Borough Council,http://www.sandwell.gov.uk/info/200202/performance_and_spending/1079/payments_over_500,21-Oct-2021,Individual School Budgets With Inclusion,KAI DRUMS,Individual School Budgets With Inclusion,9492.52,Grant Payments,2122P07_CR00709,120729
Sandwell Metropolitan Borough Council,http://www.sandwell.gov.uk/info/200202/performance_and_spending/1079/payments_over_500,21-Oct-2021,Individual School Budgets With Inclusion,THE WONDER YEARS DAY NURSERY LIMITED,Individual School Budgets With Inclusion,10068.45,Grant Payments,2122P07_CR00710,01647249
Sandwell Metropolitan Borough Council,http://www.sandwell.gov.uk/info/200202/performance_and_spending/1079/payments_over_500,21-Oct-2021,Individual School Budgets With Inclusion,THE RIVERS MULTI ACADEMY TRUST,Individual School Budgets With Inclusion,10302.60,Grant Payments,2122P07_CR00711,61014
Sandwell Metropolitan Borough Council,http://www.sandwell.gov.uk/info/200202/performance_and_spending/1079/payments_over_500,21-Oct-2021,Individual School Budgets With Inclusion,TIMBERTREE NEIGHBOURHOOD NURSERY,Individual School Budgets With Inclusion,10650.15,Grant Payments,2122P07_CR00712,135664
Sandwell Metropolitan Borough Council,http://www.sandwell.gov.uk/info/200202/performance_and_spending/1079/payments_over_500,21-Oct-2021,Individual School Budgets With Inclusion,ST HUBERTS PRE-SCHOOL PLAYGROUP 2,Individual School Budgets With Inclusion,11576.25,Grant Payments,2122P07_CR00713,123074
Sandwell Metropolitan Borough Council,http://www.sandwell.gov.uk/info/200202/performance_and_spending/1079/payments_over_500,21-Oct-2021,Individual School Budgets With Inclusion,SANDWELL NHS TRUST DAY NURSERY,Individual School Budgets With Inclusion,11785.55,Grant Payments,2122P07_CR00714,40788
Sandwell Metropolitan Borough Council,http://www.sandwell.gov.uk/info/200202/performance_and_spending/1079/payments_over_500,21-Oct-2021,Individual School Budgets With Inclusion,OUR LADY AND ST HUBERTS CATHOLIC PRIMARY SCHOOL                                      02,Individual School Budgets With Inclusion,11807.77,Grant Payments,2122P07_CR00715,61053
Sandwell Metropolitan Borough Council,http://www.sandwell.gov.uk/info/200202/performance_and_spending/1079/payments_over_500,21-Oct-2021,Individual School Budgets With Inclusion,LITTLE WENDY HOUSE DAY NURSERY,Individual School Budgets With Inclusion,11941.65,Grant Payments,2122P07_CR00716,91544
Sandwell Metropolitan Borough Council,http://www.sandwell.gov.uk/info/200202/performance_and_spending/1079/payments_over_500,21-Oct-2021,Individual School Budgets With Inclusion,TIPTON TODDLERS DAY NURSERY,Individual School Budgets With Inclusion,11941.65,Grant Payments,2122P07_CR00717,4397
Sandwell Metropolitan Borough Council,http://www.sandwell.gov.uk/info/200202/performance_and_spending/1079/payments_over_500,21-Oct-2021,Individual School Budgets With Inclusion,SMARTY PANTS PRIVATE DAY NURSERY LTD,Individual School Budgets With Inclusion,12409.95,Grant Payments,2122P07_CR00718,74037
Sandwell Metropolitan Borough Council,http://www.sandwell.gov.uk/info/200202/performance_and_spending/1079/payments_over_500,21-Oct-2021,Individual School Budgets With Inclusion,TICK TOCK DAY NURSERY LTD,Individual School Budgets With Inclusion,13580.70,Grant Payments,2122P07_CR00719,9391
Sandwell Metropolitan Borough Council,http://www.sandwell.gov.uk/info/200202/performance_and_spending/1079/payments_over_500,21-Oct-2021,Individual School Budgets With Inclusion,UNICORN DAY NURSERY,Individual School Budgets With Inclusion,14508.90,Grant Payments,2122P07_CR00720,91543
Sandwell Metropolitan Borough Council,http://www.sandwell.gov.uk/info/200202/performance_and_spending/1079/payments_over_500,21-Oct-2021,Individual School Budgets With Inclusion,WEST BROMWICH & DISTRICT Y.M.C.A. COMMUNITY ENTERPRISES,Individual School Budgets With Inclusion,14603.40,Grant Payments,2122P07_CR00721,01088376
Sandwell Metropolitan Borough Council,http://www.sandwell.gov.uk/info/200202/performance_and_spending/1079/payments_over_500,21-Oct-2021,Individual School Budgets With Inclusion,LITTLE EXPLORERS (WEST MIDLANDS) LTD,Individual School Budgets With Inclusion,16669.80,Grant Payments,2122P07_CR00722,114804
Sandwell Metropolitan Borough Council,http://www.sandwell.gov.uk/info/200202/performance_and_spending/1079/payments_over_500,21-Oct-2021,Individual School Budgets With Inclusion,TINY WOODS PRE SCHOOL,Individual School Budgets With Inclusion,17396.40,Grant Payments,2122P07_CR00723,91788
Sandwell Metropolitan Borough Council,http://www.sandwell.gov.uk/info/200202/performance_and_spending/1079/payments_over_500,21-Oct-2021,Individual School Budgets With Inclusion,WIGGLES & GIGGLES LTD,Individual School Budgets With Inclusion,20143.20,Grant Payments,2122P07_CR00724,01674799
Sandwell Metropolitan Borough Council,http://www.sandwell.gov.uk/info/200202/performance_and_spending/1079/payments_over_500,21-Oct-2021,Individual School Budgets With Inclusion,WONDERLAND CHILDRENS DAY NURSERY (UK) LTD,Individual School Budgets With Inclusion,22478.40,Grant Payments,2122P07_CR00725,50852
Sandwell Metropolitan Borough Council,http://www.sandwell.gov.uk/info/200202/performance_and_spending/1079/payments_over_500,21-Oct-2021,Individual School Budgets With Inclusion,LAVENDER FARM DAY NURSERY,Individual School Budgets With Inclusion,23883.30,Grant Payments,2122P07_CR00726,65596
Sandwell Metropolitan Borough Council,http://www.sandwell.gov.uk/info/200202/performance_and_spending/1079/payments_over_500,06-Oct-2021,Individual School Budgets With Inclusion,FIRST FOR EDUCATION LIMITED,Individual School Budgets With Inclusion,575.00,Agency Staff,2122P07_CR00727,62052
Sandwell Metropolitan Borough Council,http://www.sandwell.gov.uk/info/200202/performance_and_spending/1079/payments_over_500,01-Oct-2021,Individual School Budgets With Inclusion,COLMORE EDUCATION RECRUITMENT,Individual School Budgets With Inclusion,600.00,Agency Staff,2122P07_CR00728,148720
Sandwell Metropolitan Borough Council,http://www.sandwell.gov.uk/info/200202/performance_and_spending/1079/payments_over_500,01-Oct-2021,Individual School Budgets With Inclusion,COLMORE EDUCATION RECRUITMENT,Individual School Budgets With Inclusion,600.00,Agency Staff,2122P07_CR00729,148720
Sandwell Metropolitan Borough Council,http://www.sandwell.gov.uk/info/200202/performance_and_spending/1079/payments_over_500,01-Oct-2021,Individual School Budgets With Inclusion,COLMORE EDUCATION RECRUITMENT,Individual School Budgets With Inclusion,600.00,Agency Staff,2122P07_CR00730,148720
Sandwell Metropolitan Borough Council,http://www.sandwell.gov.uk/info/200202/performance_and_spending/1079/payments_over_500,01-Oct-2021,Individual School Budgets With Inclusion,COLMORE EDUCATION RECRUITMENT,Individual School Budgets With Inclusion,617.90,Agency Staff,2122P07_CR00731,148720
Sandwell Metropolitan Borough Council,http://www.sandwell.gov.uk/info/200202/performance_and_spending/1079/payments_over_500,01-Oct-2021,Individual School Budgets With Inclusion,COLMORE EDUCATION RECRUITMENT,Individual School Budgets With Inclusion,617.90,Agency Staff,2122P07_CR00732,148720
Sandwell Metropolitan Borough Council,http://www.sandwell.gov.uk/info/200202/performance_and_spending/1079/payments_over_500,01-Oct-2021,Individual School Budgets With Inclusion,COLMORE EDUCATION RECRUITMENT,Individual School Budgets With Inclusion,675.00,Agency Staff,2122P07_CR00733,148720
Sandwell Metropolitan Borough Council,http://www.sandwell.gov.uk/info/200202/performance_and_spending/1079/payments_over_500,01-Oct-2021,Individual School Budgets With Inclusion,COLMORE EDUCATION RECRUITMENT,Individual School Budgets With Inclusion,675.00,Agency Staff,2122P07_CR00734,148720
Sandwell Metropolitan Borough Council,http://www.sandwell.gov.uk/info/200202/performance_and_spending/1079/payments_over_500,01-Oct-2021,Individual School Budgets With Inclusion,COLMORE EDUCATION RECRUITMENT,Individual School Budgets With Inclusion,780.00,Agency Staff,2122P07_CR00735,148720
Sandwell Metropolitan Borough Council,http://www.sandwell.gov.uk/info/200202/performance_and_spending/1079/payments_over_500,01-Oct-2021,Individual School Budgets With Inclusion,COLMORE EDUCATION RECRUITMENT,Individual School Budgets With Inclusion,975.00,Agency Staff,2122P07_CR00736,148720
Sandwell Metropolitan Borough Council,http://www.sandwell.gov.uk/info/200202/performance_and_spending/1079/payments_over_500,01-Oct-2021,Individual School Budgets With Inclusion,COLMORE EDUCATION RECRUITMENT,Individual School Budgets With Inclusion,975.00,Agency Staff,2122P07_CR00737,148720
Sandwell Metropolitan Borough Council,http://www.sandwell.gov.uk/info/200202/performance_and_spending/1079/payments_over_500,01-Oct-2021,Individual School Budgets With Inclusion,COLMORE EDUCATION RECRUITMENT,Individual School Budgets With Inclusion,995.00,Agency Staff,2122P07_CR00738,148720
Sandwell Metropolitan Borough Council,http://www.sandwell.gov.uk/info/200202/performance_and_spending/1079/payments_over_500,01-Oct-2021,Individual School Budgets With Inclusion,COLMORE EDUCATION RECRUITMENT,Individual School Budgets With Inclusion,1100.00,Agency Staff,2122P07_CR00739,148720
Sandwell Metropolitan Borough Council,http://www.sandwell.gov.uk/info/200202/performance_and_spending/1079/payments_over_500,28-Oct-2021,Individual School Budgets With Inclusion,SIPS EDUCATION LTD,Individual School Budgets With Inclusion,2040.00,Catering Provisions,2122P07_CR00740,110784
Sandwell Metropolitan Borough Council,http://www.sandwell.gov.uk/info/200202/performance_and_spending/1079/payments_over_500,01-Oct-2021,Individual School Budgets With Inclusion,MUNCHIES SANDWICHES LTD,Individual School Budgets With Inclusion,713.40,Contract Catering,2122P07_CR00741,145631
Sandwell Metropolitan Borough Council,http://www.sandwell.gov.uk/info/200202/performance_and_spending/1079/payments_over_500,06-Oct-2021,Individual School Budgets With Inclusion,MUNCHIES SANDWICHES LTD,Individual School Budgets With Inclusion,754.20,Contract Catering,2122P07_CR00742,145631
Sandwell Metropolitan Borough Council,http://www.sandwell.gov.uk/info/200202/performance_and_spending/1079/payments_over_500,06-Oct-2021,Individual School Budgets With Inclusion,MUNCHIES SANDWICHES LTD,Individual School Budgets With Inclusion,777.00,Contract Catering,2122P07_CR00743,145631
